Organisation Name,Effective Date,Purch Date,Service Area,Expense Area,Beneficiary,Net amount,    Tax,    Gross,Long Text,MCC Description
Buckinghamshire Council ,31.10.2023,31.10.2023,Children's Services,Education & Childrens Services - CS Dir,AMZNMKTPLACE,26.85,5.37,32.22,Educational Equipment,Miscellaneous retail
Buckinghamshire Council ,31.10.2023,31.10.2023,Children's Services,Education & Childrens Services - CS Dir,AMZNMKTPLACE,3.32,0,3.32,Educational Equipment,Miscellaneous retail
Buckinghamshire Council ,31.10.2023,31.10.2023,Resources,AH&R - Res Dir,FACEBK *G9Z9ET3742,225.79,0,225.79,Advertising,Advertising services
Buckinghamshire Council ,31.10.2023,31.10.2023,Children's Services,Education & Childrens Services - CS Dir,AMZNMKTPLACE,14.99,0,14.99,Printing & Stationery,Miscellaneous retail
Buckinghamshire Council ,31.10.2023,31.10.2023,Communities,Transport - Communities Dir,AMZNMktplace,19.98,0,19.98,Awaiting Coding,Miscellaneous retail
Buckinghamshire Council ,31.10.2023,31.10.2023,Children's Services,Education & Childrens Services - CS Dir,SKYLINE TAXIS,27,0,27,Staff Travelling Expenses,Taxicabs & limousines
Buckinghamshire Council ,31.10.2023,31.10.2023,Children's Services,Education & Childrens Services - CS Dir,SKYLINE TAXIS,27,0,27,Staff Travelling Expenses,Taxicabs & limousines
Buckinghamshire Council ,31.10.2023,31.10.2023,Children's Services,Education & Childrens Services - CS Dir,SKYLINE TAXIS,27,0,27,Staff Travelling Expenses,Taxicabs & limousines
Buckinghamshire Council ,31.10.2023,31.10.2023,Children's Services,Education & Childrens Services - CS Dir,ODEON AYLESBURY,4.45,0,4.45,"Exp of School, Club & College Activities",Cinemas
Buckinghamshire Council ,31.10.2023,31.10.2023,Deputy Chief Executive,Communities - DCE,AO RETAIL LIMITED,211.65,42.33,253.98,Other Personal Needs,Household appliance stores
Buckinghamshire Council ,31.10.2023,31.10.2023,Deputy Chief Executive,Communities - DCE,AO RETAIL LIMITED,0.02,0,0.02,Other Personal Needs,Household appliance stores
Buckinghamshire Council ,31.10.2023,31.10.2023,Deputy Chief Executive,Communities - DCE,AO RETAIL LIMITED,414.99,83.01,498,Other Personal Needs,Household appliance stores
Buckinghamshire Council ,31.10.2023,31.10.2023,Deputy Chief Executive,Communities - DCE,AO RETAIL LIMITED,473.33,94.67,568,Other Personal Needs,Household appliance stores
Buckinghamshire Council ,31.10.2023,31.10.2023,Deputy Chief Executive,Communities - DCE,AO RETAIL LIMITED,818.33,163.67,982,Other Personal Needs,Household appliance stores
Buckinghamshire Council ,31.10.2023,31.10.2023,Resources,AH&R - Res Dir,ROYAL MAIL GROUP LTD,12.65,0,12.65,General Postage,Postal services
Buckinghamshire Council ,31.10.2023,31.10.2023,Deputy Chief Executive,AH&R- DCE Dir,SMYTHS TOYS,100,0,100,Miscellaneous (Other)  Expenses,Misc. general merchandise
Buckinghamshire Council ,31.10.2023,31.10.2023,Communities,artnerships - Communities,NEW YORK DELI GATEHOUSE,1,0,1,Subsistence,Restaurants
Buckinghamshire Council ,31.10.2023,31.10.2023,Communities,artnerships - Communities,NEW YORK DELI GATEHOUSE,64.9,0,64.9,Subsistence,Restaurants
Buckinghamshire Council ,31.10.2023,31.10.2023,"Planning, Growth & Sustainability",AH&R - PGS Dir,SCREWFIX DIR LTD,23.02,0,23.02,Other Equipment and Materials,Timber & building supplies
Buckinghamshire Council ,31.10.2023,31.10.2023,"Planning, Growth & Sustainability",AH&R - PGS Dir,MARKS&SPENCER PLC SF,7.25,0,7.25,Purchase.of Refreshments and Food,Grocery stores
Buckinghamshire Council ,31.10.2023,31.10.2023,"Planning, Growth & Sustainability",AH&R - PGS Dir,SCREWFIX DIR LTD,126.98,0,126.98,General Repairs & Maintenance,Timber & building supplies
Buckinghamshire Council ,31.10.2023,31.10.2023,Children's Services,Education & Childrens Services - CS Dir,SAINSBURYS S/MKTS,19.53,0,19.53,Activities & General Recreation,Grocery stores
Buckinghamshire Council ,31.10.2023,31.10.2023,Children's Services,Education & Childrens Services - CS Dir,AMAZON.CO.UK,14.7,0,14.7,Stationery & Office Supplies,Direct sales companies
Buckinghamshire Council ,31.10.2023,31.10.2023,Communities,Transport - Communities Dir,AMAZON* 204-8447983-02,200,0,200,Miscellaneous (Other)  Expenses,Misc. general merchandise
Buckinghamshire Council ,31.10.2023,31.10.2023,Communities,Transport - Communities Dir,VOUCHER EXPRESS,100,0,100,Miscellaneous (Other)  Expenses,Miscellaneous retail
Buckinghamshire Council ,31.10.2023,31.10.2023,"Planning, Growth & Sustainability",AH&R - PGS Dir,B & Q 1305,192.98,37,192.98,Materials,Home supply warehouse stores
Buckinghamshire Council ,31.10.2023,31.10.2023,"Planning, Growth & Sustainability",AH&R - PGS Dir,B & Q 1305,27,0,27,Materials,Home supply warehouse stores
Buckinghamshire Council ,31.10.2023,31.10.2023,Children's Services,Education & Childrens Services - CS Dir,NEALES TAXIS LTD,"2,160.00",0,"2,160.00",Sec 20/31: Supp for Contact,Taxicabs & limousines
Buckinghamshire Council ,31.10.2023,31.10.2023,Children's Services,Education & Childrens Services - CS Dir,EBAY O*01-10733-68887,159.99,0,159.99,Furniture,Department stores
Buckinghamshire Council ,31.10.2023,31.10.2023,Children's Services,Education & Childrens Services - CS Dir,AMAZON MUSIC,9.99,0,9.99,Furniture,Record shops
Buckinghamshire Council ,31.10.2023,31.10.2023,Adults and Health,Health & Wellbeing - Adults & Health Dir,TRAVELODGE GB0000,"1,732.72",0,"1,732.72",Other Short Term Support,Travelodge
Buckinghamshire Council ,31.10.2023,31.10.2023,"Planning, Growth & Sustainability",Planning & Regeneration - PGS,TESCO STORES 2162,9,0,9,"Courses, Conference and Seminar Fees",Grocery stores
Buckinghamshire Council ,31.10.2023,31.10.2023,"Planning, Growth & Sustainability",Planning & Regeneration - PGS,LIDL GB BUCKINGHAM,16.27,0,16.27,"Courses, Conference and Seminar Fees",Grocery stores
Buckinghamshire Council ,31.10.2023,31.10.2023,Children's Services,Education & Childrens Services - CS Dir,HM PASSPORT OFFICE,82.5,0,82.5,Sec 20/31: Financial Assistance,Government services
Buckinghamshire Council ,31.10.2023,31.10.2023,Children's Services,Education & Childrens Services - CS Dir,BUCKINGHAMSHIRE CNCL,11,0,11,Sec 20/31: Financial Assistance,Government services
Buckinghamshire Council ,31.10.2023,31.10.2023,Children's Services,Education & Childrens Services - CS Dir,BUCKINGHAMSHIRE CNCL,11,0,11,Sec 20/31: Financial Assistance,Government services
Buckinghamshire Council ,31.10.2023,31.10.2023,Resources,AH&R - Res Dir,AMZNMKTPLACE,39.99,0,39.99,Computer Consumables,Miscellaneous retail
Buckinghamshire Council ,31.10.2023,31.10.2023,Children's Services,Education & Childrens Services - CS Dir,AMZNMKTPLACE,24.99,0,24.99,Support for Foster Carers,Miscellaneous retail
Buckinghamshire Council ,31.10.2023,31.10.2023,Communities,artnerships - Communities,EB *CITY BREAKFAST CLU,27.8,0,27.8,Awaiting Coding,Misc business services
Buckinghamshire Council ,31.10.2023,31.10.2023,Deputy Chief Executive,Leader - DCE,WWW.PRCA.ORG.UK,60,0,60,Professional Services (non curriculum) - External,Consultants & public relation services
Buckinghamshire Council ,31.10.2023,31.10.2023,Deputy Chief Executive,Leader - DCE,FACEBK 8ZYWZUXPN2,792.5,0,792.5,Advertising,Advertising services
Buckinghamshire Council ,31.10.2023,31.10.2023,Adults and Health,Health & Wellbeing - Adults & Health Dir,ASDA SUPERSTORE,35.75,0,35.75,General Provisions (Food),Grocery stores
Buckinghamshire Council ,31.10.2023,31.10.2023,Adults and Health,Health & Wellbeing - Adults & Health Dir,TRAVELODGE GB0000,440.97,0,440.97,"Courses, Conference and Seminar Fees",Travelodge
Buckinghamshire Council ,31.10.2023,31.10.2023,Children's Services,Education & Childrens Services - CS Dir,DUNELM SOFTFURNISHINGS,35.95,0,35.95,Leaving Care - Grants for Care Leavers,Furniture & home furnishing
Buckinghamshire Council ,31.10.2023,31.10.2023,Children's Services,Education & Childrens Services - CS Dir,TRAINLINE,87.38,0,87.38,Leaving Care - Transport,Passenger railways
Buckinghamshire Council ,31.10.2023,31.10.2023,Children's Services,Education & Childrens Services - CS Dir,CURRYS ONLINE,628,0,628,Leaving Care - Grants for Care Leavers,Electronics shops
Buckinghamshire Council ,31.10.2023,31.10.2023,Children's Services,Education & Childrens Services - CS Dir,AO RETAIL LIMITED,643,0,643,Leaving Care - Grants for Care Leavers,Household appliance stores
Buckinghamshire Council ,31.10.2023,31.10.2023,Children's Services,Education & Childrens Services - CS Dir,STUDENT ROOST,818.57,0,818.57,Leaving Care - Higher Education Supp,Estate Agents & Property Management
Buckinghamshire Council ,31.10.2023,31.10.2023,Children's Services,Education & Childrens Services - CS Dir,ASDA GEORGE COM LEEDS,38.5,0,38.5,Leaving Care - Grants for Care Leavers,Grocery stores
Buckinghamshire Council ,31.10.2023,31.10.2023,Communities,ommunities - Trust Accounts,WWW.PGA.INFO M/SHIPS,464,0,464,Awaiting Coding,Membership organisations
Buckinghamshire Council ,31.10.2023,31.10.2023,Resources,AH&R - Res Dir,FACEBK *SAS66UK742,13.75,0,13.75,Permanent Recruitment Costs,Advertising services
Buckinghamshire Council ,31.10.2023,31.10.2023,Resources,AH&R - Res Dir,FACEBK 8YBU2UKG82,49.98,0,49.98,Permanent Recruitment Costs,Advertising services
Buckinghamshire Council ,31.10.2023,31.10.2023,Children's Services,Education & Childrens Services - CS Dir,AMZNMktplace,56.95,0,56.95,Awaiting Coding,Miscellaneous retail
Buckinghamshire Council ,31.10.2023,31.10.2023,"Planning, Growth & Sustainability",Climate Change & Environment - PGS,NHBS LTD,27.13,0,27.13,Administrative Equipment & Tools,"Books, periodicals & newspapers"
Buckinghamshire Council ,31.10.2023,31.10.2023,Communities,Climate Change & Environment - Community,POST OFFICE COUNTER,7.35,0,7.35,General Postage,Postal services
Buckinghamshire Council ,31.10.2023,31.10.2023,Adults and Health,Health & Wellbeing - Adults & Health Dir,AMZNMKTPLACE,9.84,0,9.84,Other Supplies,Miscellaneous retail
Buckinghamshire Council ,31.10.2023,31.10.2023,"Planning, Growth & Sustainability",Housing & Homelessness & Regulatory PGS,TRAVELODGE GB0000,183.58,0,183.58,Bed & Breakfast,Travelodge
Buckinghamshire Council ,31.10.2023,31.10.2023,Adults and Health,Health & Wellbeing - Adults & Health Dir,AMZNMKTPLACE,26.98,0,26.98,Other Equipment and Materials,Miscellaneous retail
Buckinghamshire Council ,31.10.2023,31.10.2023,Children's Services,Education & Childrens Services - CS Dir,AMZNMKTPLACE,-21,0,-21,Sec 20/31: Specialist Services,Miscellaneous retail
Buckinghamshire Council ,31.10.2023,31.10.2023,Communities,Transport - Communities Dir,AMZNMktplace,35.98,0,35.98,Awaiting Coding,Miscellaneous retail
Buckinghamshire Council ,31.10.2023,31.10.2023,Communities,Transport - Communities Dir,AMZNMktplace,114.98,0,114.98,Awaiting Coding,Miscellaneous retail
Buckinghamshire Council ,31.10.2023,31.10.2023,Children's Services,Education & Childrens Services - CS Dir,KFC - AYLESBURY RST,16.46,0,16.46,Subsistence,Fast food restaurants
Buckinghamshire Council ,31.10.2023,30.10.2023,Children's Services,Education & Childrens Services - CS Dir,AMZNMKTPLACE,11.37,0,11.37,Educational Equipment,Miscellaneous retail
Buckinghamshire Council ,31.10.2023,30.10.2023,Children's Services,Education & Childrens Services - CS Dir,AMZNMKTPLACE,24.88,0,24.88,Educational Equipment,Miscellaneous retail
Buckinghamshire Council ,31.10.2023,30.10.2023,Resources,AH&R - Res Dir,AMZNMktplace,22.96,0,22.96,Awaiting Coding,Miscellaneous retail
Buckinghamshire Council ,31.10.2023,30.10.2023,Deputy Chief Executive,AH&R- DCE Dir,PAYPAL,-160,0,-160,Awaiting Coding,Variety stores
Buckinghamshire Council ,31.10.2023,30.10.2023,Adults and Health,Health & Wellbeing - Adults & Health Dir,WM MORRISONS STORE,44.7,0,44.7,Awaiting Coding,Grocery stores
Buckinghamshire Council ,31.10.2023,30.10.2023,"Planning, Growth & Sustainability",Climate Change & Environment - PGS,EVENT* RETHINK EVENTS,"1,194.00",0,"1,194.00",Computer Consumables,Computer software stores
Buckinghamshire Council ,31.10.2023,30.10.2023,"Planning, Growth & Sustainability",Climate Change & Environment - PGS,EVENT* RETHINK EVENTS,"1,194.00",0,"1,194.00",Computer Consumables,Computer software stores
Buckinghamshire Council ,31.10.2023,30.10.2023,Adults and Health,Health & Wellbeing - Adults & Health Dir,LYRECO UK LTD,44.3,8.86,53.16,Stationery & Office Supplies,Stationery & office supplies
Buckinghamshire Council ,31.10.2023,30.10.2023,Adults and Health,Health & Wellbeing - Adults & Health Dir,LYRECO UK LTD,0.02,0,0.02,Stationery & Office Supplies,Stationery & office supplies
Buckinghamshire Council ,31.10.2023,30.10.2023,Deputy Chief Executive,Communities - DCE,AO RETAIL LIMITED,701.66,140.34,842,Other Personal Needs,Household appliance stores
Buckinghamshire Council ,31.10.2023,30.10.2023,Deputy Chief Executive,Communities - DCE,AO RETAIL LIMITED,190.83,38.17,229,Other Personal Needs,Household appliance stores
Buckinghamshire Council ,31.10.2023,30.10.2023,Deputy Chief Executive,Communities - DCE,AO RETAIL LIMITED,394.16,78.84,473,Other Personal Needs,Household appliance stores
Buckinghamshire Council ,31.10.2023,30.10.2023,Deputy Chief Executive,Communities - DCE,AO RETAIL LIMITED,211.65,42.33,253.98,Other Personal Needs,Household appliance stores
Buckinghamshire Council ,31.10.2023,30.10.2023,Deputy Chief Executive,Communities - DCE,AO RETAIL LIMITED,0.02,0,0.02,Other Personal Needs,Household appliance stores
Buckinghamshire Council ,31.10.2023,30.10.2023,"Planning, Growth & Sustainability",AH&R - PGS Dir,WWW.WAVE-UTILITIES.CO.,900,0,900,Water Services & Sewerage - Unmetered,Utilities
Buckinghamshire Council ,31.10.2023,30.10.2023,"Planning, Growth & Sustainability",AH&R - PGS Dir,WWW.WAVE-UTILITIES.CO.,209.4,0,209.4,Water Services & Sewerage - Unmetered,Utilities
Buckinghamshire Council ,31.10.2023,30.10.2023,"Planning, Growth & Sustainability",AH&R - PGS Dir,LONDIS,18,0,18,General Provisions (Food),Sweets & confectionary
Buckinghamshire Council ,31.10.2023,30.10.2023,Children's Services,Education & Childrens Services - CS Dir,WAITROSE,4,0,4,YOS - Direct Work,Grocery stores
Buckinghamshire Council ,31.10.2023,30.10.2023,Children's Services,Education & Childrens Services - CS Dir,AMAZON.CO.UK,11.94,0,11.94,Stationery & Office Supplies,Direct sales companies
Buckinghamshire Council ,31.10.2023,30.10.2023,Children's Services,Education & Childrens Services - CS Dir,AMAZON.CO.UK,40,0,40,Stationery & Office Supplies,Direct sales companies
Buckinghamshire Council ,31.10.2023,30.10.2023,Children's Services,Education & Childrens Services - CS Dir,AMZNMKTPLACE,139.95,0,139.95,Consumable Supplies,Miscellaneous retail
Buckinghamshire Council ,31.10.2023,30.10.2023,Children's Services,Education & Childrens Services - CS Dir,TRAINLINE,50.41,0,50.41,Sec 20/31: Supp for Contact,Passenger railways
Buckinghamshire Council ,31.10.2023,30.10.2023,Children's Services,Education & Childrens Services - CS Dir,TRAINLINE,-33.5,0,-33.5,Sec 20/31: Supp for Contact,Passenger railways
Buckinghamshire Council ,31.10.2023,30.10.2023,Children's Services,artnerships - Children's Services,THE BROAD LEYS,99.75,0,99.75,"Courses, Conference and Seminar Fees","Hotels, motels & resorts"
Buckinghamshire Council ,31.10.2023,30.10.2023,Children's Services,Education & Childrens Services - CS Dir,O2 UK,10,0,10,Security & Safety Supplies & Equipment,Phone equipment & sales
Buckinghamshire Council ,31.10.2023,30.10.2023,Children's Services,Education & Childrens Services - CS Dir,ASDA  STORES 4396,1.5,0,1.5,General Provisions (Food),Grocery stores
Buckinghamshire Council ,31.10.2023,30.10.2023,"Planning, Growth & Sustainability",Transport - PGS Dir,LANDOR LINKS LTD,234,0,234,"Courses, Conference and Seminar Fees",Misc business services
Buckinghamshire Council ,31.10.2023,30.10.2023,Children's Services,Education & Childrens Services - CS Dir,CURRYS ONLINE,199,0,199,Activities & General Recreation,Electronics shops
Buckinghamshire Council ,31.10.2023,30.10.2023,Children's Services,Education & Childrens Services - CS Dir,REES FOUNDATION,60,0,60,Leaving Care  - Financial Assistance,Charitable organisations
Buckinghamshire Council ,31.10.2023,30.10.2023,Children's Services,Education & Childrens Services - CS Dir,SQUARE TREE HOUSE B&B,70.88,0,70.88,Staff Travelling Expenses,"Hotels, motels & resorts"
Buckinghamshire Council ,31.10.2023,30.10.2023,Children's Services,Education & Childrens Services - CS Dir,PAY.AMAZON.COM,50.98,0,50.98,Leaving Care ? Financial Assistance One Off,Sports & riding apparel shops
Buckinghamshire Council ,31.10.2023,30.10.2023,Adults and Health,Health & Wellbeing - Adults & Health Dir,TESCO STORES 5135,190.34,0,190.34,Awaiting Coding,Grocery stores
Buckinghamshire Council ,31.10.2023,30.10.2023,Adults and Health,Health & Wellbeing - Adults & Health Dir,TESCO STORES 5135,-1.45,0,-1.45,Awaiting Coding,Grocery stores
Buckinghamshire Council ,31.10.2023,30.10.2023,"Planning, Growth & Sustainability",Planning & Regeneration - PGS,TRAINLINE.COM LTD,17.19,0,17.19,Staff Travelling Expenses,Passenger railways
Buckinghamshire Council ,31.10.2023,30.10.2023,"Planning, Growth & Sustainability",Planning & Regeneration - PGS,TFL TRAVEL CH,8.1,0,8.1,Staff Travelling Expenses,Local commuter transport
Buckinghamshire Council ,31.10.2023,30.10.2023,"Planning, Growth & Sustainability",Planning & Regeneration - PGS,FOYLES WATERLOO STATIO,34.99,0,34.99,"Books, Records, Films & Oth Publications",Book stores
Buckinghamshire Council ,31.10.2023,30.10.2023,Children's Services,Education & Childrens Services - CS Dir,DMN/YATESHIGHWYCOMBE,100,0,100,Equipment (including storage),Misc business services
Buckinghamshire Council ,31.10.2023,30.10.2023,"Planning, Growth & Sustainability",Climate Change & Environment - PGS,LAND REGISTRY ECOM CCC,3,0,3,Surveys,Government services
Buckinghamshire Council ,31.10.2023,30.10.2023,Deputy Chief Executive,Communities - DCE,PARKING-KINGSMD,2.6,0,2.6,Staff Travelling Expenses,Car parking & garages
Buckinghamshire Council ,31.10.2023,30.10.2023,Adults and Health,Health & Wellbeing - Adults & Health Dir,ASDA GROCERIES ONLINE,102.38,0,102.38,General Provisions (Food),Grocery stores
Buckinghamshire Council ,31.10.2023,30.10.2023,Adults and Health,Health & Wellbeing - Adults & Health Dir,AMZNMKTPLACE,43.57,0,43.57,Other Equipment and Materials,Miscellaneous retail
Buckinghamshire Council ,31.10.2023,30.10.2023,Adults and Health,Health & Wellbeing - Adults & Health Dir,ASDA GROCERIES ONLINE,-6.5,0,-6.5,General Provisions (Food),Grocery stores
Buckinghamshire Council ,31.10.2023,30.10.2023,Children's Services,Education & Childrens Services - CS Dir,ARRIVA UK BUS,8,0,8,Sec 20/31: Supp for Contact,"Buses, charter & tour"
Buckinghamshire Council ,31.10.2023,30.10.2023,Children's Services,Education & Childrens Services - CS Dir,FIRST BUS - WEB,15.6,0,15.6,Sec 20/31: Supp for Contact,"Buses, charter & tour"
Buckinghamshire Council ,31.10.2023,30.10.2023,Communities,Transport - Communities Dir,J&S ACCESSORIES,99.99,0,99.99,Repair & Maint of Vehicles & Plant,Motor vehicle supplies & parts
Buckinghamshire Council ,31.10.2023,30.10.2023,Children's Services,Education & Childrens Services - CS Dir,AMZNMktplace,422.58,0,422.58,Awaiting Coding,Miscellaneous retail
Buckinghamshire Council ,31.10.2023,30.10.2023,Communities,Climate Change & Environment - Community,PAYPAL,171.95,0,171.95,Waste Prevention costs,Discount stores
Buckinghamshire Council ,31.10.2023,30.10.2023,Deputy Chief Executive,AH&R- DCE Dir,PAYPAL,593.95,0,593.95,Awaiting Coding,Variety stores
Buckinghamshire Council ,31.10.2023,30.10.2023,Deputy Chief Executive,AH&R- DCE Dir,PAYPAL,9,0,9,Awaiting Coding,Variety stores
Buckinghamshire Council ,31.10.2023,30.10.2023,Deputy Chief Executive,AH&R- DCE Dir,PAYPAL,207,0,207,Awaiting Coding,Variety stores
Buckinghamshire Council ,31.10.2023,30.10.2023,Deputy Chief Executive,AH&R- DCE Dir,PAYPAL,461.44,0,461.44,Awaiting Coding,Variety stores
Buckinghamshire Council ,31.10.2023,29.10.2023,Children's Services,Education & Childrens Services - CS Dir,AMZNMKTPLACE,23.62,0,23.62,Educational Equipment,Miscellaneous retail
Buckinghamshire Council ,31.10.2023,29.10.2023,Children's Services,Education & Childrens Services - CS Dir,AMZNMKTPLACE,17.98,0,17.98,Educational Equipment,Miscellaneous retail
Buckinghamshire Council ,31.10.2023,29.10.2023,Children's Services,Education & Childrens Services - CS Dir,AMZNMKTPLACE,105.52,0,105.52,Activities & General Recreation,Miscellaneous retail
Buckinghamshire Council ,31.10.2023,29.10.2023,Children's Services,Education & Childrens Services - CS Dir,ASDA GEORGE COM LEEDS,315,63,378,Educational Equipment,Grocery stores
Buckinghamshire Council ,31.10.2023,29.10.2023,Deputy Chief Executive,AH&R- DCE Dir,AMZNMktplace,61.86,0,61.86,Awaiting Coding,Miscellaneous retail
Buckinghamshire Council ,31.10.2023,29.10.2023,"Planning, Growth & Sustainability",AH&R - PGS Dir,AMZNMKTPLACE,72.48,0,72.48,General Repairs & Maintenance,Miscellaneous retail
Buckinghamshire Council ,31.10.2023,29.10.2023,"Planning, Growth & Sustainability",AH&R - PGS Dir,ASDA SUPERSTORE,46.4,0,46.4,Cleaning & Domestic Equipment,Grocery stores
Buckinghamshire Council ,31.10.2023,29.10.2023,"Planning, Growth & Sustainability",Planning & Regeneration - PGS,TRAINLINE,22.39,0,22.39,Staff Travelling Expenses,Passenger railways
Buckinghamshire Council ,31.10.2023,29.10.2023,Children's Services,Education & Childrens Services - CS Dir,AMZNMktplace,453.83,0,453.83,Awaiting Coding,Miscellaneous retail
Buckinghamshire Council ,31.10.2023,29.10.2023,Adults and Health,Health & Wellbeing - Adults & Health Dir,WM MORRISONS STORE,25.62,0,25.62,General Provisions (Food),Grocery stores
Buckinghamshire Council ,31.10.2023,28.10.2023,Deputy Chief Executive,Communities - DCE,WYCOMBE SWAN,6.4,0,6.4,Subsistence,Restaurants
Buckinghamshire Council ,31.10.2023,28.10.2023,Deputy Chief Executive,Communities - DCE,WYCOMBE SWAN,8.3,0,8.3,Subsistence,Restaurants
Buckinghamshire Council ,31.10.2023,28.10.2023,Communities,Housing & Homelessness & Regulatory Comm,WWW.FIRSTFENCE.CO.UK,548.89,0,548.89,Maintenance of Grounds,Misc business services
Buckinghamshire Council ,31.10.2023,28.10.2023,Adults and Health,Health & Wellbeing - Adults & Health Dir,AMZNMKTPLACE,114,0,114,Payments To Contractors,Miscellaneous retail
Buckinghamshire Council ,31.10.2023,28.10.2023,Children's Services,Education & Childrens Services - CS Dir,GRAMMARLY COPEFFGLB,122.49,0,122.49,Computer Consumables,Computer software stores
Buckinghamshire Council ,31.10.2023,28.10.2023,Resources,AH&R - Res Dir,ABRATAX - MTD,10,2,12,Computer Consumables,Computer software stores
Buckinghamshire Council ,31.10.2023,28.10.2023,Resources,AH&R - Res Dir,PAYPAL,7.2,0,7.2,IT - Computer Network Charges,Computer network information services
Buckinghamshire Council ,31.10.2023,28.10.2023,Deputy Chief Executive,AH&R- DCE Dir,LINKEDIN ADS 9562616434,76.73,0,76.73,Other internal recharge��������������,Advertising services
Buckinghamshire Council ,31.10.2023,28.10.2023,Resources,AH&R - Res Dir,LINKEDIN ADS 9563348684,127.1,0,127.1,Permanent Recruitment Costs,Advertising services
Buckinghamshire Council ,31.10.2023,28.10.2023,Children's Services,Education & Childrens Services - CS Dir,AMZNMKTPLACE,29.14,0,29.14,Other Personal Needs,Miscellaneous retail
Buckinghamshire Council ,31.10.2023,28.10.2023,Children's Services,Education & Childrens Services - CS Dir,SAINSBURYS S/MKTS,7.4,0,7.4,Activities Programme,Grocery stores
Buckinghamshire Council ,31.10.2023,27.10.2023,Deputy Chief Executive,AH&R- DCE Dir,PAYPAL,270,0,270,Awaiting Coding,Electronics shops
Buckinghamshire Council ,31.10.2023,27.10.2023,Communities,Culture & Leisure - Communities Dir,CJ'S LOCKSMITHS,5.95,0,5.95,Security & Safety Supplies & Equipment,Misc. repair services
Buckinghamshire Council ,31.10.2023,27.10.2023,"Planning, Growth & Sustainability",Housing & Homelessness & Regulatory PGS,TRAVELODGE GB0000,371.22,0,371.22,Miscellaneous (Other)  Expenses,Travelodge
Buckinghamshire Council ,31.10.2023,27.10.2023,"Planning, Growth & Sustainability",Housing & Homelessness & Regulatory PGS,LAND REGISTRY ECOM CCC,3,0,3,Homelessness,Government services
Buckinghamshire Council ,31.10.2023,27.10.2023,"Planning, Growth & Sustainability",Climate Change & Environment - PGS,TRAINLINE,63.34,0,63.34,Staff Travelling Expenses,Passenger railways
Buckinghamshire Council ,31.10.2023,27.10.2023,Children's Services,Education & Childrens Services - CS Dir,AMZNMKTPLACE,67.49,0,67.49,Educational Equipment,Miscellaneous retail
Buckinghamshire Council ,31.10.2023,27.10.2023,Children's Services,Education & Childrens Services - CS Dir,AMZNMKTPLACE,11.38,0,11.38,Educational Equipment,Miscellaneous retail
Buckinghamshire Council ,31.10.2023,27.10.2023,Children's Services,Education & Childrens Services - CS Dir,AMZNMKTPLACE,62.2,0,62.2,Educational Equipment,Miscellaneous retail
Buckinghamshire Council ,31.10.2023,27.10.2023,Children's Services,Education & Childrens Services - CS Dir,AMZNMKTPLACE,7.9,0,7.9,Educational Equipment,Miscellaneous retail
Buckinghamshire Council ,31.10.2023,27.10.2023,Children's Services,Education & Childrens Services - CS Dir,AMZNMKTPLACE,25.9,0,25.9,Educational Equipment,Miscellaneous retail
Buckinghamshire Council ,31.10.2023,27.10.2023,Deputy Chief Executive,Communities - DCE,AO RETAIL LIMITED,710,142,852,Other Personal Needs,Household appliance stores
Buckinghamshire Council ,31.10.2023,27.10.2023,Deputy Chief Executive,Communities - DCE,AO RETAIL LIMITED,747.49,149.51,897,Other Personal Needs,Household appliance stores
Buckinghamshire Council ,31.10.2023,27.10.2023,Deputy Chief Executive,Communities - DCE,WWW.ARGOS.CO.UK,203.95,0,203.95,Awaiting Coding,Department stores
Buckinghamshire Council ,31.10.2023,27.10.2023,Deputy Chief Executive,Communities - DCE,AO RETAIL LIMITED,203.33,40.67,244,Other Personal Needs,Household appliance stores
Buckinghamshire Council ,31.10.2023,27.10.2023,Deputy Chief Executive,Communities - DCE,AO RETAIL LIMITED,190.83,38.17,229,Other Personal Needs,Household appliance stores
Buckinghamshire Council ,31.10.2023,27.10.2023,Resources,AH&R - Res Dir,GEN REGISTER OFFICE,14,0,14,Sec 20/31: Financial Assistance,Government services
Buckinghamshire Council ,31.10.2023,27.10.2023,"Planning, Growth & Sustainability",AH&R - PGS Dir,New York Deli Gatehouse,3.4,0,3.4,Subsistence,Restaurants
Buckinghamshire Council ,31.10.2023,27.10.2023,"Planning, Growth & Sustainability",AH&R - PGS Dir,WH Smith Aylesbury,6.8,0,6.8,"Books, Records, Films & Oth Publications",Newspapers / newsagents
Buckinghamshire Council ,31.10.2023,27.10.2023,Children's Services,Education & Childrens Services - CS Dir,BUCKINGHAM HOTELS,"1,890.00",0,"1,890.00",Sec 17: Accommodation,"Hotels, motels & resorts"
Buckinghamshire Council ,31.10.2023,27.10.2023,Children's Services,Education & Childrens Services - CS Dir,BUCKINGHAM HOTELS,"1,890.00",0,"1,890.00",Sec 17: Accommodation,"Hotels, motels & resorts"
Buckinghamshire Council ,31.10.2023,27.10.2023,Children's Services,Education & Childrens Services - CS Dir,BUCKINGHAM HOTELS,"1,890.00",0,"1,890.00",Sec 17: Accommodation,"Hotels, motels & resorts"
Buckinghamshire Council ,31.10.2023,27.10.2023,Children's Services,Education & Childrens Services - CS Dir,BUCKINGHAM HOTELS,"1,890.00",0,"1,890.00",Sec 17: Accommodation,"Hotels, motels & resorts"
Buckinghamshire Council ,31.10.2023,27.10.2023,Children's Services,Education & Childrens Services - CS Dir,WESTMINSTER FORUM PROJ,95,19,114,Course Fees & Post Entry Training,Consultants & public relation services
Buckinghamshire Council ,31.10.2023,27.10.2023,Communities,Culture & Leisure - Communities Dir,AMZNMKTPLACE,8.3,1.66,9.96,Events Expenditure,Miscellaneous retail
Buckinghamshire Council ,31.10.2023,27.10.2023,Adults and Health,Health & Wellbeing - Adults & Health Dir,COURSRA*O3PO1Z2YGWN67W,38,0,38,Payments To Contractors,Business/secretarial school
Buckinghamshire Council ,31.10.2023,27.10.2023,Communities,Special Expenses,AMAZON* 204-0821096-14,78,0,78,Protective Clothing & Uniforms,Misc. general merchandise
Buckinghamshire Council ,31.10.2023,27.10.2023,Communities,Housing & Homelessness & Regulatory Comm,SCCSSURVEY.CO.UK,186,0,186,Maintenance of Grounds,Misc business services
Buckinghamshire Council ,31.10.2023,27.10.2023,"Planning, Growth & Sustainability",AH&R - PGS Dir,EDMUNDSON ELECTRICAL,114.24,0,114.24,Community Premises Expenditure,Electrical parts & equipment
Buckinghamshire Council ,31.10.2023,27.10.2023,Communities,Transport - Communities Dir,AMZNMKTPLACE,140.69,0,140.69,Area Teams and Materials,Miscellaneous retail
Buckinghamshire Council ,31.10.2023,27.10.2023,Children's Services,artnerships - Children's Services,LIDL GB OAKFIELD ROAD,45.91,0,45.91,"Courses, Conference and Seminar Fees",Grocery stores
Buckinghamshire Council ,31.10.2023,27.10.2023,Adults and Health,Health & Wellbeing - Adults & Health Dir,YOURMEMBERSHIP,350,70,420,Advertising,"Programming, data processing & system design"
Buckinghamshire Council ,31.10.2023,27.10.2023,Adults and Health,Health & Wellbeing - Adults & Health Dir,TRAVELODGE GB0000,594.96,0,594.96,Other Short Term Support,Travelodge
Buckinghamshire Council ,31.10.2023,27.10.2023,Children's Services,Education & Childrens Services - CS Dir,POST OFFICE COUNTER,20,0,20,General Postage,Postal services
Buckinghamshire Council ,31.10.2023,27.10.2023,Children's Services,Education & Childrens Services - CS Dir,NEALES TAXIS LTD,672,0,672,Sec 20/31: Transport,Taxicabs & limousines
Buckinghamshire Council ,31.10.2023,27.10.2023,Deputy Chief Executive,AH&R- DCE Dir,DOMINO S PIZZA,93.25,0,93.25,Subsistence,Restaurants
Buckinghamshire Council ,31.10.2023,27.10.2023,Deputy Chief Executive,Communities - DCE,HADDENHAM GARDEN CEN L,5.9,0,5.9,Seeds & Plants,Lawn & garden supply/nursery
Buckinghamshire Council ,31.10.2023,27.10.2023,"Planning, Growth & Sustainability",Planning & Regeneration - PGS,TRAINLINE.COM LTD,16.5,0,16.5,Staff Travelling Expenses,Passenger railways
Buckinghamshire Council ,31.10.2023,27.10.2023,Children's Services,Education & Childrens Services - CS Dir,AMAZON PRIME,8.99,0,8.99,Stationery & Office Supplies,Continuous subscriptions
Buckinghamshire Council ,31.10.2023,27.10.2023,Resources,AH&R - Res Dir,EB *BIODIVERSITY NET G,25,0,25,Awaiting Coding,Misc business services
Buckinghamshire Council ,31.10.2023,27.10.2023,Resources,AH&R - Res Dir,EB *BIODIVERSITY NET G,25,0,25,Awaiting Coding,Misc business services
Buckinghamshire Council ,31.10.2023,27.10.2023,Resources,AH&R - Res Dir,EB *BIODIVERSITY NET G,25,0,25,Awaiting Coding,Misc business services
Buckinghamshire Council ,31.10.2023,27.10.2023,Resources,AH&R - Res Dir,EB *BIODIVERSITY NET G,25,0,25,Awaiting Coding,Misc business services
Buckinghamshire Council ,31.10.2023,27.10.2023,Resources,AH&R - Res Dir,EB *BIODIVERSITY NET G,25,0,25,Awaiting Coding,Misc business services
Buckinghamshire Council ,31.10.2023,27.10.2023,Children's Services,Education & Childrens Services - CS Dir,THE RANGE,64,0,64,Awaiting Coding,Department stores
Buckinghamshire Council ,31.10.2023,27.10.2023,Children's Services,Education & Childrens Services - CS Dir,Dunelm Soft Furnishings,49,0,49,Awaiting Coding,Furniture & home furnishing
Buckinghamshire Council ,31.10.2023,27.10.2023,Communities,Housing & Homelessness & Regulatory Comm,WWW.CDC.ORG.UK,600,0,600,"Courses, Conference and Seminar Fees",Schools
Buckinghamshire Council ,31.10.2023,26.10.2023,Communities,Culture & Leisure - Communities Dir,AMZNMKTPLACE,11.65,2.33,13.98,Administrative Equipment & Tools,Miscellaneous retail
Buckinghamshire Council ,31.10.2023,26.10.2023,Communities,Culture & Leisure - Communities Dir,AMZNMKTPLACE,0.01,0,0.01,Administrative Equipment & Tools,Miscellaneous retail
Buckinghamshire Council ,31.10.2023,26.10.2023,Communities,Culture & Leisure - Communities Dir,AMZNMKTPLACE,28.98,0,28.98,Stationery & Office Supplies,Miscellaneous retail
Buckinghamshire Council ,31.10.2023,26.10.2023,Communities,Culture & Leisure - Communities Dir,AMZNMKTPLACE,3.17,0.64,3.81,Events Expenditure,Miscellaneous retail
Buckinghamshire Council ,31.10.2023,26.10.2023,"Planning, Growth & Sustainability",Climate Change & Environment - PGS,ECARDFOREST CARDS&GIFT,3.49,0,3.49,Advertising,
Buckinghamshire Council ,31.10.2023,26.10.2023,"Planning, Growth & Sustainability",Climate Change & Environment - PGS,FACEBK GVNHVS3HB2,60,0,60,Advertising,Advertising services
Buckinghamshire Council ,31.10.2023,26.10.2023,Children's Services,Education & Childrens Services - CS Dir,AMZNMKTPLACE,29.54,0,29.54,Educational Equipment,Miscellaneous retail
Buckinghamshire Council ,31.10.2023,26.10.2023,Children's Services,Education & Childrens Services - CS Dir,AMZNMKTPLACE,65.16,0,65.16,Educational Equipment,Miscellaneous retail
Buckinghamshire Council ,31.10.2023,26.10.2023,Children's Services,Education & Childrens Services - CS Dir,AMZNMKTPLACE,16.88,0,16.88,Educational Equipment,Miscellaneous retail
Buckinghamshire Council ,31.10.2023,26.10.2023,Children's Services,Education & Childrens Services - CS Dir,AMZNMKTPLACE,23.99,0,23.99,Educational Equipment,Miscellaneous retail
Buckinghamshire Council ,31.10.2023,26.10.2023,Deputy Chief Executive,Communities - DCE,AO RETAIL LIMITED,593.33,118.67,712,Other Personal Needs,Household appliance stores
Buckinghamshire Council ,31.10.2023,26.10.2023,"Planning, Growth & Sustainability",Housing & Homelessness & Regulatory PGS,LAND REGISTRY ECOM CCC,3,0,3,Homelessness,Government services
Buckinghamshire Council ,31.10.2023,26.10.2023,"Planning, Growth & Sustainability",Housing & Homelessness & Regulatory PGS,LAND REGISTRY ECOM CCC,3,0,3,Homelessness,Government services
Buckinghamshire Council ,31.10.2023,26.10.2023,Resources,AH&R - Res Dir,POSTURITE LTD,180,0,180,Equipment,Misc. home furnishing
Buckinghamshire Council ,31.10.2023,26.10.2023,Children's Services,Education & Childrens Services - CS Dir,AMZNMKTPLACE,64.25,0,64.25,YOS - Direct Work,Miscellaneous retail
Buckinghamshire Council ,31.10.2023,26.10.2023,Adults and Health,Health & Wellbeing - Adults & Health Dir,TIMPSON LTD,13.5,0,13.5,Health & Safety Supplies & Services,Miscellaneous retail
Buckinghamshire Council ,31.10.2023,26.10.2023,Communities,artnerships - Communities,TESCO STORES 2038,200,0,200,Miscellaneous (Other)  Expenses,Grocery stores
Buckinghamshire Council ,31.10.2023,26.10.2023,Communities,artnerships - Communities,CAR PARK CHARGES,2.1,0,2.1,Miscellaneous (Other)  Expenses,Car parking & garages
Buckinghamshire Council ,31.10.2023,26.10.2023,Adults and Health,Communities - Adults & Health,PATISSERIE VALERIE,2.35,0,2.35,Project Funding,Restaurants
Buckinghamshire Council ,31.10.2023,26.10.2023,Adults and Health,Communities - Adults & Health,PATISSERIE VALERIE,32.94,0,32.94,Project Funding,Restaurants
Buckinghamshire Council ,31.10.2023,26.10.2023,Adults and Health,Communities - Adults & Health,BLACKSHEEP EDEN CENTRE,8.78,0,8.78,Project Funding,Restaurants
Buckinghamshire Council ,31.10.2023,26.10.2023,Adults and Health,Communities - Adults & Health,BLACKSHEEP EDEN CENTRE,23.63,0,23.63,Project Funding,Restaurants
Buckinghamshire Council ,31.10.2023,26.10.2023,Adults and Health,Communities - Adults & Health,COFF33 LTD,19.04,0,19.04,Project Funding,Restaurants
Buckinghamshire Council ,31.10.2023,26.10.2023,Adults and Health,Communities - Adults & Health,COFF33 LTD,6.78,0,6.78,Project Funding,Restaurants
Buckinghamshire Council ,31.10.2023,26.10.2023,Deputy Chief Executive,Communities - DCE,CHILTERN POOL,5.6,0,5.6,General Provisions (Food),"Member clubs, sport, recreation & golf"
Buckinghamshire Council ,31.10.2023,26.10.2023,Deputy Chief Executive,Communities - DCE,RINGGO PARKING,1.65,0,1.65,Staff Travelling Expenses,Car parking & garages
Buckinghamshire Council ,31.10.2023,26.10.2023,Communities,Culture & Leisure - Communities Dir,EB *REFUND TO BUYER,8,0,8,Events Expenditure,Misc business services
Buckinghamshire Council ,31.10.2023,26.10.2023,Communities,Culture & Leisure - Communities Dir,FACEBK MYL75TBJB2,40,0,40,Advertising,Advertising services
Buckinghamshire Council ,31.10.2023,26.10.2023,Communities,Transport - Communities Dir,CURRYS AYLESBURY,119.99,0,119.99,Materials,Electronics shops
Buckinghamshire Council ,31.10.2023,26.10.2023,Children's Services,Education & Childrens Services - CS Dir,SUMUP  *PEBBLE BROOK SCHO,17.5,0,17.5,Activities & General Recreation,Charitable organisations
Buckinghamshire Council ,31.10.2023,26.10.2023,Children's Services,Education & Childrens Services - CS Dir,IKEA LTD SHOP ONLINE,366,0,366,Furniture,Furniture & home furnishing
Buckinghamshire Council ,31.10.2023,26.10.2023,Communities,Climate Change & Environment - Community,COFF33 LTD,16.74,0,16.74,"Courses, Conference and Seminar Fees",Restaurants
Buckinghamshire Council ,31.10.2023,26.10.2023,Children's Services,Education & Childrens Services - CS Dir,ASDA  STORES 4396,25.6,0,25.6,General Provisions (Food),Grocery stores
Buckinghamshire Council ,31.10.2023,26.10.2023,Children's Services,Education & Childrens Services - CS Dir,AMZNMKTPLACE,13.99,0,13.99,Equipment for Training and Mats for Ins.,Miscellaneous retail
Buckinghamshire Council ,31.10.2023,26.10.2023,Children's Services,Education & Childrens Services - CS Dir,TESCO STORES 2041,41.46,0,41.46,Awaiting Coding,Grocery stores
Buckinghamshire Council ,31.10.2023,26.10.2023,Children's Services,Education & Childrens Services - CS Dir,DOMINOS PIZZA,60.74,0,60.74,Subsistence,Fast food restaurants
Buckinghamshire Council ,31.10.2023,26.10.2023,Adults and Health,Communities - Adults & Health,TESCO STORES 2640,5,0,5,Project Funding,Grocery stores
Buckinghamshire Council ,31.10.2023,26.10.2023,Adults and Health,Communities - Adults & Health,EDEN CENTRE,3,0,3,Project Funding,Car parking & garages
Buckinghamshire Council ,31.10.2023,26.10.2023,Adults and Health,Communities - Adults & Health,EDEN CENTRE,9,0,9,Project Funding,Car parking & garages
Buckinghamshire Council ,31.10.2023,26.10.2023,Adults and Health,Communities - Adults & Health,PATISSERIE VALERIE,6.54,0,6.54,Project Funding,Restaurants
Buckinghamshire Council ,31.10.2023,26.10.2023,Adults and Health,Communities - Adults & Health,PATISSERIE VALERIE,6.35,0,6.35,Project Funding,Restaurants
Buckinghamshire Council ,31.10.2023,26.10.2023,Children's Services,Education & Childrens Services - CS Dir,WWW.BUCKINGHAMSHIRE.GOV,444.36,0,444.36,Leaving Care  - Financial Assistance,Government services
Buckinghamshire Council ,31.10.2023,26.10.2023,Children's Services,Education & Childrens Services - CS Dir,TRAINLINE,21.58,0,21.58,Leaving Care - Transport,Passenger railways
Buckinghamshire Council ,31.10.2023,26.10.2023,Children's Services,Education & Childrens Services - CS Dir,VOUCHER EXPRESS,300,0,300,Other Equipment and Materials,Miscellaneous retail
Buckinghamshire Council ,31.10.2023,26.10.2023,Children's Services,Education & Childrens Services - CS Dir,PAY.AMAZON.COM,50.98,0,50.98,Leaving Care ? Financial Assistance One Off,Sports & riding apparel shops
Buckinghamshire Council ,31.10.2023,26.10.2023,Communities,Culture & Leisure - Communities Dir,ENGELBERT STRAUSS LTD,65.85,13.17,79.02,Protective Clothing & Uniforms,Timber & building supplies
Buckinghamshire Council ,31.10.2023,26.10.2023,Children's Services,Education & Childrens Services - CS Dir,WWW.BUCKINGHAMSHIRE.GOV,459,0,459,Sec 17: Accommodation,Government services
Buckinghamshire Council ,31.10.2023,26.10.2023,Children's Services,Education & Childrens Services - CS Dir,SCOTTISH POWER,339.45,0,339.45,Sec 17: Financial Assistance,Fuel dealers
Buckinghamshire Council ,31.10.2023,26.10.2023,Children's Services,Education & Childrens Services - CS Dir,ROALDDAHLM* ROALD DAHL,15.9,0,15.9,Activities & General Recreation,Tourist attractions and exhibitions
Buckinghamshire Council ,31.10.2023,26.10.2023,Children's Services,Education & Childrens Services - CS Dir,HIGH SPEED TRAINING,156,0,156,Health & Safety Supplies & Services,Schools
Buckinghamshire Council ,31.10.2023,26.10.2023,Adults and Health,Communities - Adults & Health,TESCO STORES 2640,14.36,0,14.36,Project Funding,Grocery stores
Buckinghamshire Council ,31.10.2023,26.10.2023,Adults and Health,Communities - Adults & Health,PATISSERIE VALERIE,2.45,0,2.45,Project Funding,Restaurants
Buckinghamshire Council ,31.10.2023,26.10.2023,Adults and Health,Communities - Adults & Health,COFF33 LTD,16.36,0,16.36,Project Funding,Restaurants
Buckinghamshire Council ,31.10.2023,26.10.2023,Adults and Health,Communities - Adults & Health,COFF33 LTD,3.89,0,3.89,Project Funding,Restaurants
Buckinghamshire Council ,31.10.2023,26.10.2023,"Planning, Growth & Sustainability",Housing & Homelessness & Regulatory PGS,AMZNMKTPLACE,14.93,0,14.93,Stationery & Office Supplies,Miscellaneous retail
Buckinghamshire Council ,31.10.2023,26.10.2023,Children's Services,Education & Childrens Services - CS Dir,B&M 426 - HS AYLESBURY,80.44,0,80.44,Awaiting Coding,Misc. general merchandise
Buckinghamshire Council ,31.10.2023,26.10.2023,Children's Services,Education & Childrens Services - CS Dir,Dunelm Soft Furnishings,105,0,105,Awaiting Coding,Furniture & home furnishing
Buckinghamshire Council ,31.10.2023,26.10.2023,Resources,AH&R - Res Dir,NEALES TAXIS LTD,40,8,48,Staff Travelling Expenses,Taxicabs & limousines
Buckinghamshire Council ,31.10.2023,26.10.2023,Deputy Chief Executive,AH&R- DCE Dir,PAYPAL,9,0,9,Awaiting Coding,Variety stores
Buckinghamshire Council ,31.10.2023,26.10.2023,Deputy Chief Executive,AH&R- DCE Dir,PAYPAL,586.93,0,586.93,Awaiting Coding,Variety stores
Buckinghamshire Council ,31.10.2023,26.10.2023,Resources,AH&R - Res Dir,PAYPAL,73.2,0,73.2,IT - Computer Network Charges,Computer network information services
Buckinghamshire Council ,31.10.2023,26.10.2023,Communities,Culture & Leisure - Communities Dir,TVLICENSING.CO.UK,159,0,159,Professional Services (non curriculum) - External,Consultants & public relation services
Buckinghamshire Council ,31.10.2023,26.10.2023,"Planning, Growth & Sustainability",Leader - PGS,IONOS CLOUD LTD,16.82,0,16.82,Computer Support Services,Computer network information services
Buckinghamshire Council ,31.10.2023,25.10.2023,Communities,Climate Change & Environment - Community,AMZNMktplace,28.99,0,28.99,Awaiting Coding,Miscellaneous retail
Buckinghamshire Council ,31.10.2023,25.10.2023,Adults and Health,Health & Wellbeing - Adults & Health Dir,WIDGIT SOFTWARE,140,0,140,Computer Support Services,"Programming, data processing & system design"
Buckinghamshire Council ,31.10.2023,25.10.2023,Deputy Chief Executive,Communities - DCE,AO RETAIL LIMITED,303.33,60.67,364,Other Personal Needs,Household appliance stores
Buckinghamshire Council ,31.10.2023,25.10.2023,Children's Services,Education & Childrens Services - CS Dir,SUMUP  *CABS4U,14,0,14,Sec 20/31: Transport,Taxicabs & limousines
Buckinghamshire Council ,31.10.2023,25.10.2023,Children's Services,Education & Childrens Services - CS Dir,A1 TAXI SERVICE,140,28,168,Sec 20/31: Transport,Taxicabs & limousines
Buckinghamshire Council ,31.10.2023,25.10.2023,Communities,Climate Change & Environment - Community,DVLA VEHICLE TAX,322.5,0,322.5,Awaiting Coding,Government services
Buckinghamshire Council ,31.10.2023,25.10.2023,Communities,Climate Change & Environment - Community,WWW.PAYMYPARKING.COM,46.95,0,46.95,Staff Travelling Expenses,Car parking & garages
Buckinghamshire Council ,31.10.2023,25.10.2023,Communities,Climate Change & Environment - Community,WWW.PAYMYPARKING.COM,46.95,0,46.95,Staff Travelling Expenses,Car parking & garages
Buckinghamshire Council ,31.10.2023,25.10.2023,Communities,Climate Change & Environment - Community,WWW.PAYMYPARKING.COM,46.95,0,46.95,Staff Travelling Expenses,Car parking & garages
Buckinghamshire Council ,31.10.2023,25.10.2023,"Planning, Growth & Sustainability",AH&R - PGS Dir,ISAAC LORD LIMITED,21.76,0,21.76,Other Equipment and Materials,Hardware stores
Buckinghamshire Council ,31.10.2023,25.10.2023,Communities,Culture & Leisure - Communities Dir,AMZNMKTPLACE,35.8,7.16,42.96,Administrative Equipment & Tools,Miscellaneous retail
Buckinghamshire Council ,31.10.2023,25.10.2023,Communities,Culture & Leisure - Communities Dir,AMZNMKTPLACE,0.02,0,0.02,Administrative Equipment & Tools,Miscellaneous retail
Buckinghamshire Council ,31.10.2023,25.10.2023,"Planning, Growth & Sustainability",AH&R - PGS Dir,AMZNMKTPLACE,9.49,0,9.49,Purchase.of Refreshments and Food,Miscellaneous retail
Buckinghamshire Council ,31.10.2023,25.10.2023,Communities,Culture & Leisure - Communities Dir,SCREWFIX DIR LTD,13.44,0,13.44,Administrative Equipment & Tools,Timber & building supplies
Buckinghamshire Council ,31.10.2023,25.10.2023,Adults and Health,Communities - Adults & Health,BBS BAKERS AND BARISTA,4.84,0,4.84,Project Funding,Restaurants
Buckinghamshire Council ,31.10.2023,25.10.2023,Adults and Health,Communities - Adults & Health,BBS BAKERS AND BARISTA,4.09,0,4.09,Project Funding,Restaurants
Buckinghamshire Council ,31.10.2023,25.10.2023,Children's Services,Education & Childrens Services - CS Dir,TESCO STORES 3045,4.79,0,4.79,Educational Equipment,Grocery stores
Buckinghamshire Council ,31.10.2023,25.10.2023,Children's Services,Education & Childrens Services - CS Dir,AMZNMKTPLACE,74.29,0,74.29,Cleaning & Domestic Equipment,Miscellaneous retail
Buckinghamshire Council ,31.10.2023,25.10.2023,Children's Services,Education & Childrens Services - CS Dir,TRAINLINE,46.13,0,46.13,Sec 20/31: Supp for Contact,Passenger railways
Buckinghamshire Council ,31.10.2023,25.10.2023,Children's Services,Education & Childrens Services - CS Dir,ASDA  STORES 4396,22.38,0,22.38,General Provisions (Food),Grocery stores
Buckinghamshire Council ,31.10.2023,25.10.2023,Children's Services,Education & Childrens Services - CS Dir,ASDA GROCERIES ONLINE,63.32,0,63.32,General Provisions (Food),Grocery stores
Buckinghamshire Council ,31.10.2023,25.10.2023,Communities,Climate Change & Environment - Community,EXPO* HEALTH & SAFETY,215,0,215,Stationery & Office Supplies,Misc business services
Buckinghamshire Council ,31.10.2023,25.10.2023,Communities,Climate Change & Environment - Community,VF NORTHERN EUROPE LTD-GB,100,0,100,Stationery & Office Supplies,Family clothing shops
Buckinghamshire Council ,31.10.2023,25.10.2023,Communities,Culture & Leisure - Communities Dir,TOOLSTATION LTD,20.2,4.04,24.24,Administrative Equipment & Tools,Timber & building supplies
Buckinghamshire Council ,31.10.2023,25.10.2023,Communities,Climate Change & Environment - Community,ZETTLE_*64 WENZELS THE,12.75,0,12.75,"Courses, Conference and Seminar Fees",Restaurants
Buckinghamshire Council ,31.10.2023,25.10.2023,Deputy Chief Executive,AH&R- DCE Dir,IW GROUP SERVICES (UK) BU,84,0,84,Volunteer Expenses and Costs,Estate Agents & Property Management
Buckinghamshire Council ,31.10.2023,25.10.2023,Children's Services,Education & Childrens Services - CS Dir,WWW.SCREWFIX.COM,7.99,0,7.99,Stationery & Office Supplies,Timber & building supplies
Buckinghamshire Council ,31.10.2023,25.10.2023,Children's Services,Education & Childrens Services - CS Dir,TESCO STORES 3045,15.4,0,15.4,Awaiting Coding,Grocery stores
Buckinghamshire Council ,31.10.2023,25.10.2023,Children's Services,Education & Childrens Services - CS Dir,TESCO STORES 3045,28.8,0,28.8,Awaiting Coding,Grocery stores
Buckinghamshire Council ,31.10.2023,25.10.2023,Children's Services,Education & Childrens Services - CS Dir,SumUp  *Cabs4u,95,0,95,Staff Travelling Expenses,Taxicabs & limousines
Buckinghamshire Council ,31.10.2023,25.10.2023,Communities,artnerships - Communities,EB *CITY BREAKFAST CLU,27.8,0,27.8,Awaiting Coding,Misc business services
Buckinghamshire Council ,31.10.2023,25.10.2023,Children's Services,Education & Childrens Services - CS Dir,AMZNMKTPLACE,130.56,0,130.56,Consumable Supplies,Miscellaneous retail
Buckinghamshire Council ,31.10.2023,25.10.2023,Children's Services,Education & Childrens Services - CS Dir,SAINSBURYS S/MKTS,4.7,0,4.7,Consumable Supplies,Grocery stores
Buckinghamshire Council ,31.10.2023,25.10.2023,Adults and Health,Communities - Adults & Health,ONE BELOW,17.04,0,17.04,Project Funding,Grocery stores
Buckinghamshire Council ,31.10.2023,25.10.2023,Adults and Health,Communities - Adults & Health,MARKS&SPENCER PLC SACA,4.8,0,4.8,Project Funding,Grocery stores
Buckinghamshire Council ,31.10.2023,25.10.2023,Adults and Health,Health & Wellbeing - Adults & Health Dir,ASDA SUPERSTORE,13.8,0,13.8,General Provisions (Food),Grocery stores
Buckinghamshire Council ,31.10.2023,25.10.2023,Children's Services,Education & Childrens Services - CS Dir,AMZNMKTPLACE,319,0,319,Leaving Care - Grants for Care Leavers,Miscellaneous retail
Buckinghamshire Council ,31.10.2023,25.10.2023,Communities,ommunities - Trust Accounts,POUNDLAND LTD - 2081,20.8,0,20.8,Purchase of Food for Re-sale,Discount stores
Buckinghamshire Council ,31.10.2023,25.10.2023,Communities,ommunities - Trust Accounts,WICKES SLOUGH,124.15,0,124.15,General Repairs & Maintenance,Timber & building supplies
Buckinghamshire Council ,31.10.2023,25.10.2023,"Planning, Growth & Sustainability",Housing & Homelessness & Regulatory PGS,AMZNMktplace,19.9,0,19.9,Awaiting Coding,Miscellaneous retail
Buckinghamshire Council ,31.10.2023,25.10.2023,Children's Services,Education & Childrens Services - CS Dir,NATIONAL TRUST,30.65,0,30.65,Activities & General Recreation,Charitable organisations
Buckinghamshire Council ,31.10.2023,25.10.2023,Children's Services,Education & Childrens Services - CS Dir,NATIONAL TRUST,5.9,0,5.9,Activities & General Recreation,Charitable organisations
Buckinghamshire Council ,31.10.2023,25.10.2023,Children's Services,Education & Childrens Services - CS Dir,NATIONAL TRUST,7.1,0,7.1,Activities & General Recreation,Charitable organisations
Buckinghamshire Council ,31.10.2023,25.10.2023,Children's Services,Education & Childrens Services - CS Dir,MARKS&SPENCER PLC SACA,24.72,0,24.72,"Exp of School, Club & College Activities",Grocery stores
Buckinghamshire Council ,31.10.2023,25.10.2023,Adults and Health,Communities - Adults & Health,B&M 426 - HS AYLESBURY,22,0,22,Project Funding,Misc. general merchandise
Buckinghamshire Council ,31.10.2023,25.10.2023,Adults and Health,Communities - Adults & Health,B&M 426 - HS AYLESBURY,24.76,0,24.76,Project Funding,Misc. general merchandise
Buckinghamshire Council ,31.10.2023,25.10.2023,Adults and Health,Communities - Adults & Health,POUNDLAND LTD - 2492,11.65,2.33,13.98,Project Funding,Discount stores
Buckinghamshire Council ,31.10.2023,25.10.2023,Adults and Health,Communities - Adults & Health,POUNDLAND LTD - 2492,0.02,0,0.02,Project Funding,Discount stores
Buckinghamshire Council ,31.10.2023,25.10.2023,Adults and Health,Communities - Adults & Health,TESCO STORES 2041,43.53,0,43.53,Project Funding,Grocery stores
Buckinghamshire Council ,31.10.2023,25.10.2023,Deputy Chief Executive,AH&R- DCE Dir,VOUCHER EXPRESS,250,0,250,Volunteer Expenses and Costs,Miscellaneous retail
Buckinghamshire Council ,31.10.2023,25.10.2023,Children's Services,Education & Childrens Services - CS Dir,SUPERLEC,27.65,0,27.65,General Repairs & Maintenance,Electrical parts & equipment
Buckinghamshire Council ,31.10.2023,25.10.2023,Deputy Chief Executive,Communities - DCE,WEST WYCOMBE ESTATE,4.5,0,4.5,Staff Travelling Expenses,Car parking & garages
Buckinghamshire Council ,31.10.2023,25.10.2023,Communities,Housing & Homelessness & Regulatory Comm,WWW.CROMWELL.CO.UK,50.99,0,50.99,Protective Clothing & Uniforms,Hardware Equipment & Suppliers
Buckinghamshire Council ,31.10.2023,25.10.2023,Children's Services,Education & Childrens Services - CS Dir,PREMIER INN,88.23,0,88.23,Sec 20/31: Financial Assistance One Off,Premier Inn
Buckinghamshire Council ,31.10.2023,25.10.2023,Communities,Climate Change & Environment - Community,CAFFE NERO AYLESBURY,14.25,0,14.25,"Courses, Conference and Seminar Fees",Fast food restaurants
Buckinghamshire Council ,31.10.2023,25.10.2023,"Planning, Growth & Sustainability",Housing & Homelessness & Regulatory PGS,PESTFIX,78.77,0,78.77,Administrative Equipment & Tools,Chemical products
Buckinghamshire Council ,31.10.2023,25.10.2023,Communities,Culture & Leisure - Communities Dir,PAYPAL,6.65,1.33,7.98,Protective Clothing & Uniforms,Sporting goods shops
Buckinghamshire Council ,31.10.2023,25.10.2023,Communities,Culture & Leisure - Communities Dir,PAYPAL,119.87,0,119.87,Protective Clothing & Uniforms,Sporting goods shops
Buckinghamshire Council ,31.10.2023,24.10.2023,Children's Services,Education & Childrens Services - CS Dir,AMZNMKTPLACE,138.28,0,138.28,Activities & General Recreation,Miscellaneous retail
Buckinghamshire Council ,31.10.2023,24.10.2023,Resources,AH&R - Res Dir,123 REG LTD 012257387,28.78,0,28.78,Computer Support Services,Computer network information services
Buckinghamshire Council ,31.10.2023,24.10.2023,"Planning, Growth & Sustainability",Housing & Homelessness & Regulatory PGS,WWW.PHOENIXHSC.CO.UK,"1,595.00",319,"1,914.00",Course Fees & Post Entry Training,Schools
Buckinghamshire Council ,31.10.2023,24.10.2023,"Planning, Growth & Sustainability",Planning & Regeneration - PGS,CHARTERED ASSOCIATION,55,0,55,Professional Subscriptions re Employees,Colleges & universities
Buckinghamshire Council ,31.10.2023,24.10.2023,Resources,AH&R - Res Dir,STUDIO 39,45,0,45,Seeds & Plants,Florists
Buckinghamshire Council ,31.10.2023,24.10.2023,Communities,Culture & Leisure - Communities Dir,AMZNMKTPLACE,50.55,10.12,60.67,Events Expenditure,Miscellaneous retail
Buckinghamshire Council ,31.10.2023,24.10.2023,Communities,Culture & Leisure - Communities Dir,AMZNMKTPLACE,17.49,3.51,21,Events Expenditure,Miscellaneous retail
Buckinghamshire Council ,31.10.2023,24.10.2023,"Planning, Growth & Sustainability",Climate Change & Environment - PGS,TRAINLINE,59.62,0,59.62,Staff Travelling Expenses,Passenger railways
Buckinghamshire Council ,31.10.2023,24.10.2023,Children's Services,Education & Childrens Services - CS Dir,WM MORRISONS STORE,23.8,0,23.8,"Exp of School, Club & College Activities",Grocery stores
Buckinghamshire Council ,31.10.2023,24.10.2023,Children's Services,Education & Childrens Services - CS Dir,SLAMBURGER* SLAMBURGER,61.64,0,61.64,"Exp of School, Club & College Activities",Misc Food stores
Buckinghamshire Council ,31.10.2023,24.10.2023,Children's Services,Education & Childrens Services - CS Dir,WWW.BUCKINGHAMSHIRE.GOV,18.74,0,18.74,Leaving Care  - Financial Assistance,Government services
Buckinghamshire Council ,31.10.2023,24.10.2023,Children's Services,Education & Childrens Services - CS Dir,AMZNMKTPLACE,18.5,0,18.5,Other Personal Needs,Miscellaneous retail
Buckinghamshire Council ,31.10.2023,24.10.2023,Deputy Chief Executive,Communities - DCE,AO RETAIL LIMITED,510.83,102.17,613,Other Personal Needs,Household appliance stores
Buckinghamshire Council ,31.10.2023,24.10.2023,Deputy Chief Executive,Communities - DCE,AO RETAIL LIMITED,241.66,48.34,290,Other Personal Needs,Household appliance stores
Buckinghamshire Council ,31.10.2023,24.10.2023,Deputy Chief Executive,Communities - DCE,WWW.ARGOS.CO.UK,224.1,44.82,268.92,Other Personal Needs,Department stores
Buckinghamshire Council ,31.10.2023,24.10.2023,Deputy Chief Executive,Communities - DCE,WWW.ARGOS.CO.UK,0.03,0,0.03,Other Personal Needs,Department stores
Buckinghamshire Council ,31.10.2023,24.10.2023,Children's Services,Education & Childrens Services - CS Dir,MILTON KEYNES COUNCIL,33,0,33,Sec 20/31: Specialist Services,Government services
Buckinghamshire Council ,31.10.2023,24.10.2023,Deputy Chief Executive,Communities - DCE,AO RETAIL LIMITED,-419,0,-419,Other Personal Needs,Household appliance stores
Buckinghamshire Council ,31.10.2023,24.10.2023,Adults and Health,Health & Wellbeing - Adults & Health Dir,SP DECHOKER EUROPE,-57.66,0,-57.66,Health & Safety Supplies & Services,"Laboratory, medical & hospital equipment"
Buckinghamshire Council ,31.10.2023,24.10.2023,Communities,Culture & Leisure - Communities Dir,WWW.SCREWFIX.COM,82.75,16.55,99.3,"Workshop - Materials,Tools & Equipment",Timber & building supplies
Buckinghamshire Council ,31.10.2023,24.10.2023,Communities,Culture & Leisure - Communities Dir,WWW.SCREWFIX.COM,0.02,0,0.02,"Workshop - Materials,Tools & Equipment",Timber & building supplies
Buckinghamshire Council ,31.10.2023,24.10.2023,Communities,artnerships - Communities,AYLESBURY STATION T/O,30.7,0,30.7,Miscellaneous (Other)  Expenses,Passenger railways
Buckinghamshire Council ,31.10.2023,24.10.2023,Adults and Health,Health & Wellbeing - Adults & Health Dir,AMZNMKTPLACE,38,0,38,Payments To Contractors,Miscellaneous retail
Buckinghamshire Council ,31.10.2023,24.10.2023,Children's Services,Education & Childrens Services - CS Dir,BT BUSINESS BILL,68.28,0,68.28,Telephones,Phone services
Buckinghamshire Council ,31.10.2023,24.10.2023,"Planning, Growth & Sustainability",AH&R - PGS Dir,MARKS&SPENCER PLC SF,8.7,0,8.7,Purchase.of Refreshments and Food,Grocery stores
Buckinghamshire Council ,31.10.2023,24.10.2023,Communities,Culture & Leisure - Communities Dir,GRANT AND STONE,99.6,0,99.6,Administrative Equipment & Tools,Timber & building supplies
Buckinghamshire Council ,31.10.2023,24.10.2023,Communities,Housing & Homelessness & Regulatory Comm,WATERFRONT MANUFACTURI,478.23,0,478.23,Protective Clothing & Uniforms,Uniforms & commercial clothing
Buckinghamshire Council ,31.10.2023,24.10.2023,Adults and Health,Communities - Adults & Health,CCTV USER GROUP,358.8,0,358.8,Professional Services (non curriculum) - External,"Programming, data processing & system design"
Buckinghamshire Council ,31.10.2023,24.10.2023,Adults and Health,Communities - Adults & Health,TACTREE,85,0,85,Security & Safety Supplies & Equipment,Sporting goods shops
Buckinghamshire Council ,31.10.2023,24.10.2023,Deputy Chief Executive,AH&R- DCE Dir,001 ROYAL CABS,24,0,24,Other Personal Needs,Taxicabs & limousines
Buckinghamshire Council ,31.10.2023,24.10.2023,Adults and Health,Health & Wellbeing - Adults & Health Dir,AMZNMktplace,24.17,0,24.17,Awaiting Coding,Miscellaneous retail
Buckinghamshire Council ,31.10.2023,24.10.2023,Children's Services,Education & Childrens Services - CS Dir,SUMUP  *CABS4U,104,0,104,Sec 20/31: Supp for Contact,Taxicabs & limousines
Buckinghamshire Council ,31.10.2023,24.10.2023,Adults and Health,Health & Wellbeing - Adults & Health Dir,TRAVELODGE GB0000,454.97,0,454.97,Other Short Term Support,Travelodge
Buckinghamshire Council ,31.10.2023,24.10.2023,Children's Services,Education & Childrens Services - CS Dir,ACCESS HEMEL HEMPSTEAD,152,0,152,Sec 20/31: Financial Assistance,Warehousing
Buckinghamshire Council ,31.10.2023,24.10.2023,Children's Services,Education & Childrens Services - CS Dir,TESCO STORES 6747,3.5,0,3.5,General Provisions (Food),Grocery stores
Buckinghamshire Council ,31.10.2023,24.10.2023,Children's Services,Education & Childrens Services - CS Dir,MARKS&SPENCER PLC SA,38,0,38,"Exp of School, Club & College Activities",Grocery stores
Buckinghamshire Council ,31.10.2023,24.10.2023,"Planning, Growth & Sustainability",Transport - PGS Dir,BKG*HOTEL AT BOOKING.C,265.2,0,265.2,Staff Travelling Expenses,Travel agencies
Buckinghamshire Council ,31.10.2023,24.10.2023,Deputy Chief Executive,Leader - DCE,PUREGUSTO COFFEE COMPANY,34.68,0,34.68,General Provisions (Food),Misc. general merchandise
Buckinghamshire Council ,31.10.2023,24.10.2023,Children's Services,Education & Childrens Services - CS Dir,WWW.HARPER-ADAMS.AC.UK,"4,625.00",0,"4,625.00",Leaving Care - Higher Education Supp,Colleges & universities
Buckinghamshire Council ,31.10.2023,24.10.2023,Children's Services,Education & Childrens Services - CS Dir,L&Q RENT PAYMENT,129.39,0,129.39,Leaving Care - Rent,Government services
Buckinghamshire Council ,31.10.2023,24.10.2023,Communities,ommunities - Trust Accounts,COSTCO WHOLESALE #102,46.16,0,46.16,Purchase of Food for Re-sale,Buying & shopping services/clubs
Buckinghamshire Council ,31.10.2023,24.10.2023,Children's Services,Education & Childrens Services - CS Dir,WAGAMAMA LIMITED 207,217.9,0,217.9,Subsistence,Fast food restaurants
Buckinghamshire Council ,31.10.2023,24.10.2023,Resources,AH&R - Res Dir,LINKEDIN ADS 9550555884,99.64,0,99.64,Permanent Recruitment Costs,Advertising services
Buckinghamshire Council ,31.10.2023,24.10.2023,Children's Services,Education & Childrens Services - CS Dir,MARKS&SPENCER PLC SA,32.8,0,32.8,"Exp of School, Club & College Activities",Grocery stores
Buckinghamshire Council ,31.10.2023,24.10.2023,Children's Services,Education & Childrens Services - CS Dir,SUMUP  *CABS4U,95,0,95,"Exp of School, Club & College Activities",Taxicabs & limousines
Buckinghamshire Council ,31.10.2023,24.10.2023,Communities,Culture & Leisure - Communities Dir,SAFETY FIRST,66.1,13.22,79.32,Health & Safety Supplies & Services,Men & womens clothing shops
Buckinghamshire Council ,31.10.2023,24.10.2023,Communities,Climate Change & Environment - Community,AMZNMKTPLACE,43.95,0,43.95,Equipment,Miscellaneous retail
Buckinghamshire Council ,31.10.2023,24.10.2023,Children's Services,Education & Childrens Services - CS Dir,LYNKPAY* 001 TAXIS,123.6,0,123.6,Sec 20/31: Supp for Contact,
Buckinghamshire Council ,31.10.2023,24.10.2023,Children's Services,Education & Childrens Services - CS Dir,LYNKPAY* 001 TAXIS,123.6,0,123.6,Sec 20/31: Supp for Contact,
Buckinghamshire Council ,31.10.2023,24.10.2023,Children's Services,Education & Childrens Services - CS Dir,AMZNMKTPLACE,231,0,231,Sec 20/31: Specialist Services,Miscellaneous retail
Buckinghamshire Council ,31.10.2023,24.10.2023,Communities,Transport - Communities Dir,PERRYSPARTS.CO.UK,151.74,0,151.74,Repair & Maint of Vehicles & Plant,Automotive parts & accessories
Buckinghamshire Council ,31.10.2023,24.10.2023,Communities,Transport - Communities Dir,AMZNMktplace,114.98,0,114.98,Awaiting Coding,Miscellaneous retail
Buckinghamshire Council ,31.10.2023,24.10.2023,Communities,Transport - Communities Dir,AMZNMktplace,-124.98,0,-124.98,Awaiting Coding,Miscellaneous retail
Buckinghamshire Council ,31.10.2023,24.10.2023,"Planning, Growth & Sustainability",Housing & Homelessness & Regulatory PGS,AMZNMKTPLACE,34.62,0,34.62,Administrative Equipment & Tools,Miscellaneous retail
Buckinghamshire Council ,31.10.2023,24.10.2023,Communities,ommunities - Trading Accounts,POST OFFICE COUNTER,367.5,0,367.5,Vehicle Taxation Costs,Postal services
Buckinghamshire Council ,31.10.2023,24.10.2023,Children's Services,Education & Childrens Services - CS Dir,THE RANGE,46.65,0,46.65,Awaiting Coding,Department stores
Buckinghamshire Council ,31.10.2023,24.10.2023,Children's Services,Education & Childrens Services - CS Dir,THE RANGE,-7,0,-7,Awaiting Coding,Department stores
Buckinghamshire Council ,31.10.2023,24.10.2023,Children's Services,Education & Childrens Services - CS Dir,SURREY CC CARD PAY,33,0,33,Sec 20/31: Specialist Services,Computer network information services
Buckinghamshire Council ,31.10.2023,24.10.2023,Communities,Culture & Leisure - Communities Dir,AXMINSTERTOOLS.COM,117.9,0,117.9,Administrative Equipment & Tools,Timber & building supplies
Buckinghamshire Council ,31.10.2023,24.10.2023,Deputy Chief Executive,AH&R- DCE Dir,PLAZA CARS,40,0,40,Other Personal Needs,Taxicabs & limousines
Buckinghamshire Council ,31.10.2023,24.10.2023,Deputy Chief Executive,AH&R- DCE Dir,REMOVALS B2U,840,0,840,Other Personal Needs,Transportation services
Buckinghamshire Council ,31.10.2023,24.10.2023,Children's Services,Education & Childrens Services - CS Dir,Just Eat,10.33,0,10.33,Subsistence,Fast food restaurants
Buckinghamshire Council ,31.10.2023,23.10.2023,Resources,AH&R - Res Dir,Fencabs,180,0,180,Staff Travelling Expenses,Taxicabs & limousines
Buckinghamshire Council ,31.10.2023,23.10.2023,"Planning, Growth & Sustainability",Climate Change & Environment - PGS,KLARNA*ECHO TRADING T A B,341.05,0,341.05,Computer Consumables,Home supply warehouse stores
Buckinghamshire Council ,31.10.2023,23.10.2023,"Planning, Growth & Sustainability",Climate Change & Environment - PGS,TRAINLINE,81.27,0,81.27,Staff Travelling Expenses,Passenger railways
Buckinghamshire Council ,31.10.2023,23.10.2023,"Planning, Growth & Sustainability",Climate Change & Environment - PGS,TRAINLINE,32.48,0,32.48,Staff Travelling Expenses,Passenger railways
Buckinghamshire Council ,31.10.2023,23.10.2023,"Planning, Growth & Sustainability",Climate Change & Environment - PGS,TRAINLINE,61.51,0,61.51,Staff Travelling Expenses,Passenger railways
Buckinghamshire Council ,31.10.2023,23.10.2023,"Planning, Growth & Sustainability",Climate Change & Environment - PGS,TRAINLINE,23.31,0,23.31,Staff Travelling Expenses,Passenger railways
Buckinghamshire Council ,31.10.2023,23.10.2023,Children's Services,Education & Childrens Services - CS Dir,TESCO STORES 2038,68.86,0,68.86,"Exp of School, Club & College Activities",Grocery stores
Buckinghamshire Council ,31.10.2023,23.10.2023,Children's Services,Education & Childrens Services - CS Dir,DELIVEROO,72.27,0,72.27,"Exp of School, Club & College Activities",Restaurants
Buckinghamshire Council ,31.10.2023,23.10.2023,Children's Services,Education & Childrens Services - CS Dir,AMZNMKTPLACE,329,0,329,Leaving Care - Grants for Care Leavers,Miscellaneous retail
Buckinghamshire Council ,31.10.2023,23.10.2023,Children's Services,Education & Childrens Services - CS Dir,FACEBK *TBUCYSFE92,100,0,100,Advertising,Advertising services
Buckinghamshire Council ,31.10.2023,23.10.2023,Children's Services,Education & Childrens Services - CS Dir,AMZNMKTPLACE,22.45,0,22.45,General Provisions (Food),Miscellaneous retail
Buckinghamshire Council ,31.10.2023,23.10.2023,Children's Services,Education & Childrens Services - CS Dir,AMZNMKTPLACE,41.56,0,41.56,Activities & General Recreation,Miscellaneous retail
Buckinghamshire Council ,31.10.2023,23.10.2023,Children's Services,Education & Childrens Services - CS Dir,AMZNMKTPLACE,7.5,0,7.5,General Provisions (Food),Miscellaneous retail
Buckinghamshire Council ,31.10.2023,23.10.2023,Children's Services,Education & Childrens Services - CS Dir,AMZNMKTPLACE,9.99,0,9.99,General Provisions (Food),Miscellaneous retail
Buckinghamshire Council ,31.10.2023,23.10.2023,Children's Services,Education & Childrens Services - CS Dir,AMAZON.CO.UK,11.95,0,11.95,General Provisions (Food),Direct sales companies
Buckinghamshire Council ,31.10.2023,23.10.2023,Children's Services,Education & Childrens Services - CS Dir,TESCO STORES 2041,238.31,0,238.31,General Provisions (Food),Grocery stores
Buckinghamshire Council ,31.10.2023,23.10.2023,Children's Services,Education & Childrens Services - CS Dir,AMZNMKTPLACE,34.99,0,34.99,Professional Services (non curriculum) - External,Miscellaneous retail
Buckinghamshire Council ,31.10.2023,23.10.2023,Children's Services,Education & Childrens Services - CS Dir,DIRECT CARS,280,0,280,Sec 20/31: Transport,Taxicabs & limousines
Buckinghamshire Council ,31.10.2023,23.10.2023,"Planning, Growth & Sustainability",AH&R - PGS Dir,AMZNMKTPLACE,7.94,0,7.94,Other Equipment and Materials,Miscellaneous retail
Buckinghamshire Council ,31.10.2023,23.10.2023,Deputy Chief Executive,Communities - DCE,AO RETAIL LIMITED,232.5,46.5,279,Other Personal Needs,Household appliance stores
Buckinghamshire Council ,31.10.2023,23.10.2023,Deputy Chief Executive,Communities - DCE,AO RETAIL LIMITED,581.66,116.34,698,Other Personal Needs,Household appliance stores
Buckinghamshire Council ,31.10.2023,23.10.2023,Deputy Chief Executive,Communities - DCE,AO RETAIL LIMITED,726.66,145.34,872,Other Personal Needs,Household appliance stores
Buckinghamshire Council ,31.10.2023,23.10.2023,Deputy Chief Executive,Communities - DCE,WWW.ARGOS.CO.UK,205.79,41.16,246.95,Other Personal Needs,Department stores
Buckinghamshire Council ,31.10.2023,23.10.2023,Children's Services,Education & Childrens Services - CS Dir,CURRYS AYLESBURY,100.24,0,100.24,Furniture,Electronics shops
Buckinghamshire Council ,31.10.2023,23.10.2023,Communities,artnerships - Communities,TRAINLINE,72.91,0,72.91,Miscellaneous (Other)  Expenses,Passenger railways
Buckinghamshire Council ,31.10.2023,23.10.2023,"Planning, Growth & Sustainability",AH&R - PGS Dir,BOOKER LTD - 38534944,86.28,17.26,103.54,Vending Machines Supplies,Grocery stores
Buckinghamshire Council ,31.10.2023,23.10.2023,"Planning, Growth & Sustainability",AH&R - PGS Dir,WWW.SCREWFIX.COM,28.78,0,28.78,Other Equipment and Materials,Timber & building supplies
Buckinghamshire Council ,31.10.2023,23.10.2023,Children's Services,Education & Childrens Services - CS Dir,TESCO GIFT CARD,100,0,100,Consumable Supplies,Grocery stores
Buckinghamshire Council ,31.10.2023,23.10.2023,Children's Services,Education & Childrens Services - CS Dir,SAINSBURYS S/MKTS,19.45,0,19.45,Consumable Supplies,Grocery stores
Buckinghamshire Council ,31.10.2023,23.10.2023,Communities,Culture & Leisure - Communities Dir,AMZNMKTPLACE,24.9,4.98,29.88,Events Expenditure,Miscellaneous retail
Buckinghamshire Council ,31.10.2023,23.10.2023,Communities,Culture & Leisure - Communities Dir,AMZNMKTPLACE,0.02,0,0.02,Events Expenditure,Miscellaneous retail
Buckinghamshire Council ,31.10.2023,23.10.2023,Communities,Culture & Leisure - Communities Dir,AMZNMKTPLACE,67.62,13.53,81.15,Events Expenditure,Miscellaneous retail
Buckinghamshire Council ,31.10.2023,23.10.2023,Children's Services,Education & Childrens Services - CS Dir,CURRYS ONLINE,179,0,179,IT Equipment Purchase,Electronics shops
Buckinghamshire Council ,31.10.2023,23.10.2023,Children's Services,Education & Childrens Services - CS Dir,AMZNMKTPLACE,72.48,0,72.48,Other Personal Needs,Miscellaneous retail
Buckinghamshire Council ,31.10.2023,23.10.2023,Children's Services,Education & Childrens Services - CS Dir,AMZNMKTPLACE,19.99,0,19.99,Other Personal Needs,Miscellaneous retail
Buckinghamshire Council ,31.10.2023,23.10.2023,Children's Services,artnerships - Children's Services,THE BROAD LEYS,118.75,0,118.75,"Courses, Conference and Seminar Fees","Hotels, motels & resorts"
Buckinghamshire Council ,31.10.2023,23.10.2023,Children's Services,artnerships - Children's Services,THE BROAD LEYS,109.25,0,109.25,"Courses, Conference and Seminar Fees","Hotels, motels & resorts"
Buckinghamshire Council ,31.10.2023,23.10.2023,"Planning, Growth & Sustainability",AH&R - PGS Dir,ASDA SUPERSTORE,17.3,0,17.3,General Provisions (Food),Grocery stores
Buckinghamshire Council ,31.10.2023,23.10.2023,Communities,Culture & Leisure - Communities Dir,BLAKLADER,245.6,49.12,294.72,Protective Clothing & Uniforms,Uniforms & commercial clothing
Buckinghamshire Council ,31.10.2023,23.10.2023,Deputy Chief Executive,Leader - DCE,TELEGRAPH SUBSCRIPTION,14.99,0,14.99,Stationery & Office Supplies,Continuous subscriptions
Buckinghamshire Council ,31.10.2023,23.10.2023,Deputy Chief Executive,Leader - DCE,TIMES NEWSPAPERS LTD,26,0,26,"Books, Records, Films & Oth Publications","Books, periodicals & newspapers"
Buckinghamshire Council ,31.10.2023,23.10.2023,Adults and Health,Health & Wellbeing - Adults & Health Dir,TESCO STORES 5135,135.85,0,135.85,General Provisions (Food),Grocery stores
Buckinghamshire Council ,31.10.2023,23.10.2023,Communities,ommunities - Trust Accounts,COSTCO WHOLESALE #102,170.74,0,170.74,Purchase of Food for Re-sale,Buying & shopping services/clubs
Buckinghamshire Council ,31.10.2023,23.10.2023,"Planning, Growth & Sustainability",Planning & Regeneration - PGS,TRAINLINE.COM LTD,21.6,0,21.6,Staff Travelling Expenses,Passenger railways
Buckinghamshire Council ,31.10.2023,23.10.2023,"Planning, Growth & Sustainability",Planning & Regeneration - PGS,UBR* PENDING.UBER.COM,7.91,0,7.91,Staff Travelling Expenses,Taxicabs & limousines
Buckinghamshire Council ,31.10.2023,23.10.2023,"Planning, Growth & Sustainability",Planning & Regeneration - PGS,TFL TRAVEL CH,8.1,0,8.1,Staff Travelling Expenses,Local commuter transport
Buckinghamshire Council ,31.10.2023,23.10.2023,Resources,AH&R - Res Dir,TEAMGANTT,50.04,0,50.04,Computer Consumables,"Computers, peripherals & software"
Buckinghamshire Council ,31.10.2023,23.10.2023,Children's Services,Education & Childrens Services - CS Dir,ONE BELOW,12.25,0,12.25,Activities & General Recreation,Grocery stores
Buckinghamshire Council ,31.10.2023,23.10.2023,"Planning, Growth & Sustainability",Housing & Homelessness & Regulatory PGS,WWW.ARGOS.CO.UK,222.95,0,222.95,Furniture,Department stores
Buckinghamshire Council ,31.10.2023,23.10.2023,"Planning, Growth & Sustainability",Housing & Homelessness & Regulatory PGS,WWW.ARGOS.CO.UK,952.95,0,952.95,Furniture,Department stores
Buckinghamshire Council ,31.10.2023,23.10.2023,Children's Services,Education & Childrens Services - CS Dir,THE WORKS,2,0,2,Activities Programme,Discount stores
Buckinghamshire Council ,31.10.2023,23.10.2023,Children's Services,Education & Childrens Services - CS Dir,MCDONALDS 170,5.27,0,5.27,Activities Programme,Fast food restaurants
Buckinghamshire Council ,31.10.2023,23.10.2023,Children's Services,Education & Childrens Services - CS Dir,MARTIN MCCOLL,10,0,10,General Postage,Misc Food stores
Buckinghamshire Council ,31.10.2023,23.10.2023,Adults and Health,Health & Wellbeing - Adults & Health Dir,ASDA GROCERIES ONLINE,91.6,0,91.6,General Provisions (Food),Grocery stores
Buckinghamshire Council ,31.10.2023,23.10.2023,Adults and Health,Health & Wellbeing - Adults & Health Dir,ASDA GROCERIES ONLINE,-2,0,-2,General Provisions (Food),Grocery stores
Buckinghamshire Council ,31.10.2023,23.10.2023,Children's Services,Education & Childrens Services - CS Dir,ARRIVA UK BUS,8,0,8,Sec 20/31: Supp for Contact,"Buses, charter & tour"
Buckinghamshire Council ,31.10.2023,23.10.2023,Children's Services,Education & Childrens Services - CS Dir,FIRST BUS - WEB,15.6,0,15.6,Sec 20/31: Supp for Contact,"Buses, charter & tour"
Buckinghamshire Council ,31.10.2023,23.10.2023,Communities,Transport - Communities Dir,SHELL 40-42 WOODSIDE ROAD,5,0,5,Petrol,Service stations
Buckinghamshire Council ,31.10.2023,23.10.2023,Adults and Health,Health & Wellbeing - Adults & Health Dir,AMAZON.CO.UK,100,0,100,Long Service Awards,Direct sales companies
Buckinghamshire Council ,31.10.2023,23.10.2023,Resources,AH&R - Res Dir,DMARC ANALYZER,-283.21,0,-283.21,Annual Licence (IT),
Buckinghamshire Council ,31.10.2023,23.10.2023,Children's Services,Education & Childrens Services - CS Dir,AURAONLINEL,44.7,0,44.7,Consumable Supplies,Miscellaneous retail
Buckinghamshire Council ,31.10.2023,23.10.2023,Deputy Chief Executive,AH&R- DCE Dir,PAYPAL,494,0,494,Awaiting Coding,Electronics shops
Buckinghamshire Council ,31.10.2023,23.10.2023,Deputy Chief Executive,AH&R- DCE Dir,PAYPAL,"1,063.99",0,"1,063.99",Awaiting Coding,Variety stores
Buckinghamshire Council ,31.10.2023,23.10.2023,Deputy Chief Executive,AH&R- DCE Dir,PAYPAL,9,0,9,Awaiting Coding,Variety stores
Buckinghamshire Council ,31.10.2023,23.10.2023,Deputy Chief Executive,AH&R- DCE Dir,PAYPAL,166.95,0,166.95,Awaiting Coding,Variety stores
Buckinghamshire Council ,31.10.2023,23.10.2023,"Planning, Growth & Sustainability",Climate Change & Environment - PGS,TRAINLINE,-48,0,-48,Staff Travelling Expenses,Passenger railways
Buckinghamshire Council ,31.10.2023,23.10.2023,Children's Services,Education & Childrens Services - CS Dir,AMZNMKTPLACE,20.98,0,20.98,Activities & General Recreation,Miscellaneous retail
Buckinghamshire Council ,31.10.2023,22.10.2023,Communities,Culture & Leisure - Communities Dir,WWW.SCREWFIX.COM,44.4,8.88,53.28,Protective Clothing & Uniforms,Timber & building supplies
Buckinghamshire Council ,31.10.2023,22.10.2023,Communities,Culture & Leisure - Communities Dir,AMZNMKTPLACE,19.98,4,23.98,Events Expenditure,Miscellaneous retail
Buckinghamshire Council ,31.10.2023,22.10.2023,Communities,Culture & Leisure - Communities Dir,AMZNMKTPLACE,28.3,5.66,33.96,Events Expenditure,Miscellaneous retail
Buckinghamshire Council ,31.10.2023,22.10.2023,Communities,Culture & Leisure - Communities Dir,AMZNMKTPLACE,0.02,0,0.02,Events Expenditure,Miscellaneous retail
Buckinghamshire Council ,31.10.2023,22.10.2023,Communities,Culture & Leisure - Communities Dir,AMZNMKTPLACE,5.8,1.16,6.96,Events Expenditure,Miscellaneous retail
Buckinghamshire Council ,31.10.2023,22.10.2023,Communities,Culture & Leisure - Communities Dir,AMZNMKTPLACE,0.02,0,0.02,Events Expenditure,Miscellaneous retail
Buckinghamshire Council ,31.10.2023,22.10.2023,Communities,Culture & Leisure - Communities Dir,AMZNMKTPLACE,23,4.6,27.6,Events Expenditure,Miscellaneous retail
Buckinghamshire Council ,31.10.2023,22.10.2023,Communities,Culture & Leisure - Communities Dir,AMZNMKTPLACE,0.18,0,0.18,Events Expenditure,Miscellaneous retail
Buckinghamshire Council ,31.10.2023,22.10.2023,Children's Services,Education & Childrens Services - CS Dir,AMZNMKTPLACE,43.54,0,43.54,Miscellaneous (Other)  Expenses,Miscellaneous retail
Buckinghamshire Council ,31.10.2023,22.10.2023,Communities,Culture & Leisure - Communities Dir,WWW.SCREWFIX.COM,44.03,8.82,52.85,Protective Clothing & Uniforms,Timber & building supplies
Buckinghamshire Council ,31.10.2023,22.10.2023,Communities,Culture & Leisure - Communities Dir,SAFETY GLOVES,95.15,19.03,114.18,Protective Clothing & Uniforms,"Laboratory, medical & hospital equipment"
Buckinghamshire Council ,31.10.2023,22.10.2023,Communities,Culture & Leisure - Communities Dir,SAFETY GLOVES,0.02,0,0.02,Protective Clothing & Uniforms,"Laboratory, medical & hospital equipment"
Buckinghamshire Council ,31.10.2023,22.10.2023,Resources,AH&R - Res Dir,AMZNMKTPLACE,104.89,0,104.89,IT Equipment Purchase,Miscellaneous retail
Buckinghamshire Council ,31.10.2023,22.10.2023,"Planning, Growth & Sustainability",Transport - PGS Dir,AMZNMKTPLACE,166.07,0,166.07,Travel Choice,Miscellaneous retail
Buckinghamshire Council ,31.10.2023,22.10.2023,Deputy Chief Executive,AH&R- DCE Dir,LINKEDIN ADS 9543669264,74.33,0,74.33,Advertising,Advertising services
Buckinghamshire Council ,31.10.2023,22.10.2023,Children's Services,Education & Childrens Services - CS Dir,WWW.VIKINGCARS511.COM,55,0,55,Staff Travelling Expenses,Taxicabs & limousines
Buckinghamshire Council ,31.10.2023,22.10.2023,Communities,Culture & Leisure - Communities Dir,SAFETY FIRST,30.75,6.15,36.9,Health & Safety Supplies & Services,Men & womens clothing shops
Buckinghamshire Council ,31.10.2023,21.10.2023,Deputy Chief Executive,AH&R- DCE Dir,PAYPAL,-15,0,-15,Awaiting Coding,Variety stores
Buckinghamshire Council ,31.10.2023,21.10.2023,"Planning, Growth & Sustainability",AH&R - PGS Dir,AMAZON.CO.UK,95.9,0,95.9,Other Equipment and Materials,Direct sales companies
Buckinghamshire Council ,31.10.2023,21.10.2023,Deputy Chief Executive,Communities - DCE,RINGGO PARKING,2.25,0,2.25,Staff Travelling Expenses,Car parking & garages
Buckinghamshire Council ,31.10.2023,21.10.2023,Communities,Culture & Leisure - Communities Dir,AMZNMKTPLACE,31.26,0,31.26,Events Expenditure,Miscellaneous retail
Buckinghamshire Council ,31.10.2023,21.10.2023,Communities,Climate Change & Environment - Community,SPOTIFY,253.29,0,253.29,Advertising,
Buckinghamshire Council ,31.10.2023,21.10.2023,Adults and Health,Health & Wellbeing - Adults & Health Dir,BOOKER LTD - 38534944,147.55,0,147.55,General Provisions (Food),Grocery stores
Buckinghamshire Council ,31.10.2023,21.10.2023,Resources,AH&R - Res Dir,LINKEDIN ADS 9541660224,104.86,0,104.86,Permanent Recruitment Costs,Advertising services
Buckinghamshire Council ,31.10.2023,21.10.2023,Resources,AH&R - Res Dir,AMZNMktplace,27.99,0,27.99,Awaiting Coding,Miscellaneous retail
Buckinghamshire Council ,31.10.2023,20.10.2023,Adults and Health,Health & Wellbeing - Adults & Health Dir,AMAZON.CO.UK,20.8,4.16,24.96,Stationery & Office Supplies,Direct sales companies
Buckinghamshire Council ,31.10.2023,20.10.2023,Adults and Health,Health & Wellbeing - Adults & Health Dir,AMAZON.CO.UK,0.03,0,0.03,Stationery & Office Supplies,Direct sales companies
Buckinghamshire Council ,31.10.2023,20.10.2023,Children's Services,Education & Childrens Services - CS Dir,TRAINLINE,88.9,0,88.9,Staff Travelling Expenses,Passenger railways
Buckinghamshire Council ,31.10.2023,20.10.2023,Adults and Health,Health & Wellbeing - Adults & Health Dir,ASDA SUPERSTORE,10.8,0,10.8,General Provisions (Food),Grocery stores
Buckinghamshire Council ,31.10.2023,20.10.2023,Adults and Health,Health & Wellbeing - Adults & Health Dir,TIMPSON LTD,61.22,0,61.22,Cleaning - Contract Services,Miscellaneous retail
Buckinghamshire Council ,31.10.2023,20.10.2023,Adults and Health,Health & Wellbeing - Adults & Health Dir,TIMPSON LTD,38.98,0,38.98,Cleaning - Contract Services,Miscellaneous retail
Buckinghamshire Council ,31.10.2023,20.10.2023,Communities,Climate Change & Environment - Community,DVLA VEHICLE TAX,322.5,0,322.5,Awaiting Coding,Government services
Buckinghamshire Council ,31.10.2023,20.10.2023,"Planning, Growth & Sustainability",AH&R - PGS Dir,SCREWFIX HIGH WYCOMBE CRE,13,0,13,General Repairs & Maintenance,Timber & building supplies
Buckinghamshire Council ,31.10.2023,20.10.2023,Deputy Chief Executive,Communities - DCE,AO RETAIL LIMITED,719.16,143.84,863,Other Personal Needs,Household appliance stores
Buckinghamshire Council ,31.10.2023,20.10.2023,Deputy Chief Executive,Communities - DCE,AO RETAIL LIMITED,257.5,51.5,309,Other Personal Needs,Household appliance stores
Buckinghamshire Council ,31.10.2023,20.10.2023,Deputy Chief Executive,Communities - DCE,AO RETAIL LIMITED,115.83,23.17,139,Other Personal Needs,Household appliance stores
Buckinghamshire Council ,31.10.2023,20.10.2023,Deputy Chief Executive,Communities - DCE,AO RETAIL LIMITED,349.16,69.84,419,Other Personal Needs,Household appliance stores
Buckinghamshire Council ,31.10.2023,20.10.2023,Deputy Chief Executive,Communities - DCE,WWW.ARGOS.CO.UK,291.6,58.32,349.92,Other Personal Needs,Department stores
Buckinghamshire Council ,31.10.2023,20.10.2023,Deputy Chief Executive,Communities - DCE,WWW.ARGOS.CO.UK,0.03,0,0.03,Other Personal Needs,Department stores
Buckinghamshire Council ,31.10.2023,20.10.2023,Deputy Chief Executive,Communities - DCE,WWW.ARGOS.CO.UK,366.6,73.32,439.92,Other Personal Needs,Department stores
Buckinghamshire Council ,31.10.2023,20.10.2023,Deputy Chief Executive,Communities - DCE,WWW.ARGOS.CO.UK,0.03,0,0.03,Other Personal Needs,Department stores
Buckinghamshire Council ,31.10.2023,20.10.2023,Deputy Chief Executive,Communities - DCE,JULES FUELS,311,0,311,Other Personal Needs,Fuel dealers
Buckinghamshire Council ,31.10.2023,20.10.2023,Resources,AH&R - Res Dir,GEN REGISTER OFFICE,11,0,11,Miscellaneous (Other)  Expenses,Government services
Buckinghamshire Council ,31.10.2023,20.10.2023,Resources,AH&R - Res Dir,BUCKINGHAMSHIRE CNCL,11,0,11,Miscellaneous (Other)  Expenses,Government services
Buckinghamshire Council ,31.10.2023,20.10.2023,Children's Services,Education & Childrens Services - CS Dir,AMAZON* 204-6747478-96,-37.83,0,-37.83,Activities & General Recreation,Misc. general merchandise
Buckinghamshire Council ,31.10.2023,20.10.2023,"Planning, Growth & Sustainability",AH&R - PGS Dir,LAMPS - THE ELECTRICAL W,152.4,0,152.4,General Repairs & Maintenance,Electrical parts & equipment
Buckinghamshire Council ,31.10.2023,20.10.2023,Children's Services,Education & Childrens Services - CS Dir,WWW.SOLOPRESS.COM,66.4,0,66.4,Printing & Stationery,Publishing & printing services
Buckinghamshire Council ,31.10.2023,20.10.2023,Communities,Transport - Communities Dir,HANSON BODYSHOP LTD,541.8,0,541.8,Vehicle Hire,Auto body repair shops
Buckinghamshire Council ,31.10.2023,20.10.2023,Communities,Transport - Communities Dir,HANSON BODYSHOP LTD,500,0,500,Vehicle Hire,Auto body repair shops
Buckinghamshire Council ,31.10.2023,20.10.2023,Communities,Transport - Communities Dir,PARKING-COOPERS YARD,1.1,0,1.1,Staff Travelling Expenses,Car parking & garages
Buckinghamshire Council ,31.10.2023,20.10.2023,Adults and Health,Health & Wellbeing - Adults & Health Dir,TRAVELODGE GB0000,604.96,0,604.96,Other Short Term Support,Travelodge
Buckinghamshire Council ,31.10.2023,20.10.2023,Communities,Climate Change & Environment - Community,PAYPAL,94.07,0,94.07,Advertising,Advertising services
Buckinghamshire Council ,31.10.2023,20.10.2023,Resources,AH&R - Res Dir,PAYPAL,14.39,0,14.39,IT - Computer Network Charges,Computer network information services
Buckinghamshire Council ,31.10.2023,20.10.2023,Children's Services,Education & Childrens Services - CS Dir,AMZNMKTPLACE,171.9,0,171.9,Training (Inc. Health & Safety Courses),Miscellaneous retail
Buckinghamshire Council ,31.10.2023,20.10.2023,"Planning, Growth & Sustainability",Housing & Homelessness & Regulatory PGS,TIMPSON LTD,12,0,12,Other General Office Expenses,Miscellaneous retail
Buckinghamshire Council ,31.10.2023,20.10.2023,Resources,AH&R - Res Dir,C2E869400984A UKVI,"1,239.00",0,"1,239.00",Professional Services (non curriculum) - External,Government services
Buckinghamshire Council ,31.10.2023,20.10.2023,Communities,Transport - Communities Dir,BRITISHPARKING.CO.UK,84,0,84,Subscriptions to National Bodies,Membership organisations
Buckinghamshire Council ,31.10.2023,20.10.2023,Deputy Chief Executive,Leader - DCE,FACEBK UKZ4NUXPN2,840,0,840,Advertising,Advertising services
Buckinghamshire Council ,31.10.2023,20.10.2023,Adults and Health,Communities - Adults & Health,AMZNMKTPLACE,31.43,0,31.43,Project Work and Project Management Costs,Miscellaneous retail
Buckinghamshire Council ,31.10.2023,20.10.2023,Children's Services,Education & Childrens Services - CS Dir,WWW.ARGOS.CO.UK,19.5,0,19.5,Leaving Care - Grants for Care Leavers,Department stores
Buckinghamshire Council ,31.10.2023,20.10.2023,CC Obsolete Cost Centres,Obsolete Cost Centres,RTPI,360,0,360,Awaiting Coding,"Member clubs, sport, recreation & golf"
Buckinghamshire Council ,31.10.2023,20.10.2023,Communities,Culture & Leisure - Communities Dir,WWW.SCREWFIX.COM,291.65,58.33,349.98,"Workshop - Materials,Tools & Equipment",Timber & building supplies
Buckinghamshire Council ,31.10.2023,20.10.2023,Communities,Culture & Leisure - Communities Dir,WWW.SCREWFIX.COM,0.01,0,0.01,"Workshop - Materials,Tools & Equipment",Timber & building supplies
Buckinghamshire Council ,31.10.2023,20.10.2023,Deputy Chief Executive,AH&R- DCE Dir,EJO FEES,26,0,26,Legal Fees,Government services
Buckinghamshire Council ,31.10.2023,20.10.2023,Children's Services,Education & Childrens Services - CS Dir,LONDON BOR'OF HILL,35,0,35,Sec 20/31: Financial Assistance,Government services
Buckinghamshire Council ,31.10.2023,20.10.2023,Children's Services,Education & Childrens Services - CS Dir,BUCKINGHAMSHIRE CNCL,11,0,11,Sec 20/31: Financial Assistance,Government services
Buckinghamshire Council ,31.10.2023,20.10.2023,Communities,Transport - Communities Dir,AMZNMktplace,124.98,0,124.98,Awaiting Coding,Miscellaneous retail
Buckinghamshire Council ,31.10.2023,20.10.2023,Communities,ommunities - Trading Accounts,DVLA VEHICLE TAX,165,0,165,Vehicle Taxation Costs,Tax payments
Buckinghamshire Council ,31.10.2023,20.10.2023,Communities,ommunities - Trading Accounts,DVLA VEHICLE TAX,325,0,325,Vehicle Taxation Costs,Tax payments
Buckinghamshire Council ,31.10.2023,20.10.2023,Communities,ommunities - Trading Accounts,DVLA VEHICLE TAX,165,0,165,Vehicle Taxation Costs,Tax payments
Buckinghamshire Council ,31.10.2023,20.10.2023,Communities,ommunities - Trading Accounts,DVLA VEHICLE TAX,165,0,165,Vehicle Taxation Costs,Tax payments
Buckinghamshire Council ,31.10.2023,20.10.2023,Communities,ommunities - Trading Accounts,DVLA VEHICLE TAX,320,0,320,Vehicle Taxation Costs,Tax payments
Buckinghamshire Council ,31.10.2023,20.10.2023,Communities,ommunities - Trading Accounts,DVLA VEHICLE TAX,325,0,325,Vehicle Taxation Costs,Tax payments
Buckinghamshire Council ,31.10.2023,20.10.2023,Communities,ommunities - Trading Accounts,DVLA VEHICLE TAX,165,0,165,Vehicle Taxation Costs,Tax payments
Buckinghamshire Council ,31.10.2023,20.10.2023,Communities,ommunities - Trading Accounts,DVLA VEHICLE TAX,165,0,165,Vehicle Taxation Costs,Tax payments
Buckinghamshire Council ,31.10.2023,20.10.2023,Communities,ommunities - Trading Accounts,DVLA VEHICLE TAX,165,0,165,Vehicle Taxation Costs,Tax payments
Buckinghamshire Council ,31.10.2023,20.10.2023,Resources,AH&R - Res Dir,AMZNMKTPLACE,23.99,0,23.99,Other Employees Expenses,Miscellaneous retail
Buckinghamshire Council ,31.10.2023,19.10.2023,Children's Services,Education & Childrens Services - CS Dir,APPLE.COM/UK,450,0,450,Specialist Equipment,Electronics shops
Buckinghamshire Council ,31.10.2023,19.10.2023,Children's Services,Education & Childrens Services - CS Dir,AMZNMKTPLACE,15.09,0,15.09,General Repairs & Maintenance,Miscellaneous retail
Buckinghamshire Council ,31.10.2023,19.10.2023,Children's Services,Education & Childrens Services - CS Dir,AMAZON.CO.UK,5.99,0,5.99,"Books, Records, Films & Oth Publications",Direct sales companies
Buckinghamshire Council ,31.10.2023,19.10.2023,Deputy Chief Executive,AH&R- DCE Dir,PAYPAL,-25,0,-25,Awaiting Coding,Variety stores
Buckinghamshire Council ,31.10.2023,19.10.2023,"Planning, Growth & Sustainability",Housing & Homelessness & Regulatory PGS,AMZNMKTPLACE,227.99,0,227.99,Miscellaneous (Other)  Expenses,Miscellaneous retail
Buckinghamshire Council ,31.10.2023,19.10.2023,Deputy Chief Executive,Leader - DCE,SMART PARKING (E),10.5,0,10.5,Staff Travelling Expenses,Car parking & garages
Buckinghamshire Council ,31.10.2023,19.10.2023,Communities,Climate Change & Environment - Community,SP ZEROWASTEBAG UK,168.4,0,168.4,Waste Prevention costs,Misc business services
Buckinghamshire Council ,31.10.2023,19.10.2023,"Planning, Growth & Sustainability",AH&R - PGS Dir,AMZNMKTPLACE,59.99,0,59.99,Internal Training,Miscellaneous retail
Buckinghamshire Council ,31.10.2023,19.10.2023,Children's Services,Education & Childrens Services - CS Dir,ARGOS  AYLESBURY GATEHOU,26.99,0,26.99,Other Equipment and Materials,Discount stores
Buckinghamshire Council ,31.10.2023,19.10.2023,Children's Services,Education & Childrens Services - CS Dir,WWW.TOWERHOUSEGUEST.CO,66,0,66,Staff Travelling Expenses,"Hotels, motels & resorts"
Buckinghamshire Council ,31.10.2023,19.10.2023,"Planning, Growth & Sustainability",AH&R - PGS Dir,MARKS&SPENCER PLC,44,0,44,Purchase.of Refreshments and Food,Grocery stores
Buckinghamshire Council ,31.10.2023,19.10.2023,"Planning, Growth & Sustainability",AH&R - PGS Dir,AMZNMKTPLACE,10.76,0,10.76,Purchase.of Refreshments and Food,Miscellaneous retail
Buckinghamshire Council ,31.10.2023,19.10.2023,Children's Services,Education & Childrens Services - CS Dir,VOUCHER EXPRESS,100,0,100,Course Fees & Post Entry Training,
Buckinghamshire Council ,31.10.2023,19.10.2023,Deputy Chief Executive,Leader - DCE,AMZNMktplace,24.98,0,24.98,Awaiting Coding,Miscellaneous retail
Buckinghamshire Council ,31.10.2023,19.10.2023,Adults and Health,Health & Wellbeing - Adults & Health Dir,ASDA SUPERSTORE,34.57,0,34.57,General Provisions (Food),Grocery stores
Buckinghamshire Council ,31.10.2023,19.10.2023,Children's Services,Education & Childrens Services - CS Dir,PREMIER INN,101,0,101,Sec 20/31: Financial Assistance,Premier Inn
Buckinghamshire Council ,31.10.2023,19.10.2023,Resources,AH&R - Res Dir,GMO GLOBALSIGN LIM,226.8,0,226.8,Annual Licence (IT),Computer network information services
Buckinghamshire Council ,31.10.2023,19.10.2023,Deputy Chief Executive,Communities - DCE,RUMSEYS HANDMADE CHOCO,7.15,0,7.15,General Provisions (Food),Misc Food stores
Buckinghamshire Council ,31.10.2023,19.10.2023,"Planning, Growth & Sustainability",AH&R - PGS Dir,SAFETY FIRST,39.95,7.99,47.94,Security & Safety Supplies & Equipment,Men & womens clothing shops
Buckinghamshire Council ,31.10.2023,19.10.2023,Children's Services,Education & Childrens Services - CS Dir,WWW.ARGOS.CO.UK,60.95,0,60.95,Activities & General Recreation,Department stores
Buckinghamshire Council ,31.10.2023,19.10.2023,Deputy Chief Executive,AH&R- DCE Dir,M&B ONLINE,70,0,70,"Courses, Conference and Seminar Fees",Restaurants
Buckinghamshire Council ,31.10.2023,19.10.2023,Children's Services,Education & Childrens Services - CS Dir,FLYWIRE*MMU PAYONLINE,"4,625.00",0,"4,625.00",Leaving Care - Higher Education Supp,Schools
Buckinghamshire Council ,31.10.2023,19.10.2023,Children's Services,Education & Childrens Services - CS Dir,WWW.ROOMZZZ.COM,107,0,107,"Courses, Conference and Seminar Fees","Hotels, motels & resorts"
Buckinghamshire Council ,31.10.2023,19.10.2023,Children's Services,Education & Childrens Services - CS Dir,B&Q MARKETPLACE,389,0,389,Leaving Care - Grants for Care Leavers,Timber & building supplies
Buckinghamshire Council ,31.10.2023,19.10.2023,"Planning, Growth & Sustainability",Housing & Homelessness & Regulatory PGS,TRAVELODGE GB0000,660.88,0,660.88,"Courses, Conference and Seminar Fees",Travelodge
Buckinghamshire Council ,31.10.2023,19.10.2023,"Planning, Growth & Sustainability",Housing & Homelessness & Regulatory PGS,CHARTERED INSTITUTE OF EN,280,0,280,"Courses, Conference and Seminar Fees",Charitable organisations
Buckinghamshire Council ,31.10.2023,19.10.2023,Communities,Housing & Homelessness & Regulatory Comm,AMZNMKTPLACE,111.43,0,111.43,Maintenance of Cremators Plant & Equip,Miscellaneous retail
Buckinghamshire Council ,31.10.2023,19.10.2023,Deputy Chief Executive,AH&R- DCE Dir,PAYPAL,772.94,0,772.94,Awaiting Coding,Variety stores
Buckinghamshire Council ,31.10.2023,19.10.2023,Deputy Chief Executive,AH&R- DCE Dir,PAYPAL,892,0,892,Awaiting Coding,Electronics shops
Buckinghamshire Council ,31.10.2023,19.10.2023,"Planning, Growth & Sustainability",Planning & Regeneration - PGS,BP FLYING RED HORSE F/STN,0.75,0,0.75,Miscellaneous (Other)  Expenses,Service stations
Buckinghamshire Council ,31.10.2023,19.10.2023,Children's Services,Education & Childrens Services - CS Dir,PRIMARK 625,61.5,0,61.5,Other Personal Needs,Family clothing shops
Buckinghamshire Council ,31.10.2023,19.10.2023,Deputy Chief Executive,Leader - DCE,PAYPAL,270,0,270,Course Fees & Post Entry Training,Direct sales companies
Buckinghamshire Council ,31.10.2023,19.10.2023,Children's Services,Education & Childrens Services - CS Dir,TRAINLINE,59.3,0,59.3,Sec 20/31: Transport,Passenger railways
Buckinghamshire Council ,31.10.2023,19.10.2023,Children's Services,Education & Childrens Services - CS Dir,IKEA LTD SHOP ONLINE,339,0,339,Leaving Care - Grants for Care Leavers,Furniture & home furnishing
Buckinghamshire Council ,31.10.2023,18.10.2023,Resources,AH&R - Res Dir,GEN REGISTER OFFICE,-7.5,0,-7.5,Miscellaneous (Other)  Expenses,Government services
Buckinghamshire Council ,31.10.2023,18.10.2023,Children's Services,Education & Childrens Services - CS Dir,AMAZON.CO.UK,161.24,0,161.24,Stationery & Office Supplies,Direct sales companies
Buckinghamshire Council ,31.10.2023,18.10.2023,"Planning, Growth & Sustainability",Planning & Regeneration - PGS,AMZNMKTPLACE,49.94,0,49.94,IT Equipment Purchase,Miscellaneous retail
Buckinghamshire Council ,31.10.2023,18.10.2023,Adults and Health,Health & Wellbeing - Adults & Health Dir,Jhoots Pharmacy,29.99,0,29.99,Medical Supplies & Services inc Vet'nary,Chemists & pharmacies
Buckinghamshire Council ,31.10.2023,18.10.2023,"Planning, Growth & Sustainability",Housing & Homelessness & Regulatory PGS,SHELTER TRADING LTD,"1,560.00",0,"1,560.00","Courses, Conference and Seminar Fees","Gift, card & novelty shops"
Buckinghamshire Council ,31.10.2023,18.10.2023,Deputy Chief Executive,Communities - DCE,WWW.ARGOS.CO.UK,-21,0,-21,Grants to Voluntary Bodies,Department stores
Buckinghamshire Council ,31.10.2023,18.10.2023,Adults and Health,Health & Wellbeing - Adults & Health Dir,THE E-CIGARETTE SUMMIT,400,80,480,"Courses, Conference and Seminar Fees",Theatres and ticket agencies
Buckinghamshire Council ,31.10.2023,18.10.2023,Children's Services,Education & Childrens Services - CS Dir,KFC - AYLESBURY RST,57.42,0,57.42,"Exp of School, Club & College Activities",Fast food restaurants
Buckinghamshire Council ,31.10.2023,18.10.2023,Children's Services,Education & Childrens Services - CS Dir,AMZNMKTPLACE,227.99,0,227.99,Leaving Care - Grants for Care Leavers,Miscellaneous retail
Buckinghamshire Council ,31.10.2023,18.10.2023,Children's Services,Education & Childrens Services - CS Dir,AMZNMKTPLACE,284.95,0,284.95,Leaving Care - Grants for Care Leavers,Miscellaneous retail
Buckinghamshire Council ,31.10.2023,18.10.2023,Deputy Chief Executive,Communities - DCE,AO RETAIL LIMITED,394.16,78.84,473,Other Personal Needs,Household appliance stores
Buckinghamshire Council ,31.10.2023,18.10.2023,Deputy Chief Executive,Communities - DCE,AO RETAIL LIMITED,473.33,94.67,568,Other Personal Needs,Household appliance stores
Buckinghamshire Council ,31.10.2023,18.10.2023,Deputy Chief Executive,Communities - DCE,AO RETAIL LIMITED,203.33,40.67,244,Other Personal Needs,Household appliance stores
Buckinghamshire Council ,31.10.2023,18.10.2023,Deputy Chief Executive,Communities - DCE,AO RETAIL LIMITED,190.83,38.17,229,Other Personal Needs,Household appliance stores
Buckinghamshire Council ,31.10.2023,18.10.2023,Deputy Chief Executive,Communities - DCE,WWW.ARGOS.CO.UK,391.6,78.32,469.92,Other Personal Needs,Department stores
Buckinghamshire Council ,31.10.2023,18.10.2023,Deputy Chief Executive,Communities - DCE,WWW.ARGOS.CO.UK,0.03,0,0.03,Other Personal Needs,Department stores
Buckinghamshire Council ,31.10.2023,18.10.2023,Deputy Chief Executive,Communities - DCE,WWW.ARGOS.CO.UK,224.1,44.82,268.92,Other Personal Needs,Department stores
Buckinghamshire Council ,31.10.2023,18.10.2023,Deputy Chief Executive,Communities - DCE,WWW.ARGOS.CO.UK,0.03,0,0.03,Other Personal Needs,Department stores
Buckinghamshire Council ,31.10.2023,18.10.2023,Deputy Chief Executive,Communities - DCE,WWW.ARGOS.CO.UK,224.1,44.82,268.92,Other Personal Needs,Department stores
Buckinghamshire Council ,31.10.2023,18.10.2023,Deputy Chief Executive,Communities - DCE,WWW.ARGOS.CO.UK,0.03,0,0.03,Other Personal Needs,Department stores
Buckinghamshire Council ,31.10.2023,18.10.2023,Deputy Chief Executive,Communities - DCE,WWW.ARGOS.CO.UK,224.1,44.82,268.92,Other Personal Needs,Department stores
Buckinghamshire Council ,31.10.2023,18.10.2023,Deputy Chief Executive,Communities - DCE,WWW.ARGOS.CO.UK,0.03,0,0.03,Other Personal Needs,Department stores
Buckinghamshire Council ,31.10.2023,18.10.2023,Deputy Chief Executive,Communities - DCE,WWW.ARGOS.CO.UK,427.45,85.49,512.94,Other Personal Needs,Department stores
Buckinghamshire Council ,31.10.2023,18.10.2023,Deputy Chief Executive,Communities - DCE,WWW.ARGOS.CO.UK,0.01,0,0.01,Other Personal Needs,Department stores
Buckinghamshire Council ,31.10.2023,18.10.2023,Children's Services,Education & Childrens Services - CS Dir,WWW.JOHNLEWIS.COM,19.58,3.92,23.5,Specialist Equipment,Department stores
Buckinghamshire Council ,31.10.2023,18.10.2023,Children's Services,Education & Childrens Services - CS Dir,CURRYS BUSINESS,47.45,9.49,56.94,Specialist Equipment,Computer software stores
Buckinghamshire Council ,31.10.2023,18.10.2023,Children's Services,Education & Childrens Services - CS Dir,CURRYS BUSINESS,0.04,0,0.04,Specialist Equipment,Computer software stores
Buckinghamshire Council ,31.10.2023,18.10.2023,Resources,AH&R - Res Dir,AMZNMKTPLACE,21.02,0,21.02,Stationery & Office Supplies,Miscellaneous retail
Buckinghamshire Council ,31.10.2023,18.10.2023,Communities,Housing & Homelessness & Regulatory Comm,EASY FLORIST SUPPLIES,147.05,0,147.05,Miscellaneous (Other)  Expenses,Miscellaneous retail
Buckinghamshire Council ,31.10.2023,18.10.2023,Resources,AH&R - Res Dir,GEN REGISTER OFFICE,14,0,14,Miscellaneous (Other)  Expenses,Government services
Buckinghamshire Council ,31.10.2023,18.10.2023,Adults and Health,Health & Wellbeing - Adults & Health Dir,AMZNMKTPLACE,38.78,0,38.78,Health & Safety Supplies & Services,Miscellaneous retail
Buckinghamshire Council ,31.10.2023,18.10.2023,Communities,artnerships - Communities,YOUR CAF  IN THE PARK,20.55,0,20.55,Miscellaneous (Other)  Expenses,Fast food restaurants
Buckinghamshire Council ,31.10.2023,18.10.2023,Communities,Housing & Homelessness & Regulatory Comm,DERBYSHIRE AGGREGATES ECO,497.52,0,497.52,Maintenance of Grounds,Timber & building supplies
Buckinghamshire Council ,31.10.2023,18.10.2023,Communities,Housing & Homelessness & Regulatory Comm,DERBYSHIRE AGGREGATES ECO,217.86,0,217.86,Maintenance of Grounds,Timber & building supplies
Buckinghamshire Council ,31.10.2023,18.10.2023,"Planning, Growth & Sustainability",AH&R - PGS Dir,WWW.SCREWFIX.COM,19.96,0,19.96,Other Equipment and Materials,Timber & building supplies
Buckinghamshire Council ,31.10.2023,18.10.2023,"Planning, Growth & Sustainability",AH&R - PGS Dir,WWW.SCREWFIX.COM,11.49,0,11.49,Other Equipment and Materials,Timber & building supplies
Buckinghamshire Council ,31.10.2023,18.10.2023,"Planning, Growth & Sustainability",AH&R - PGS Dir,AMZNMKTPLACE,49.98,0,49.98,General Repairs & Maintenance,Miscellaneous retail
Buckinghamshire Council ,31.10.2023,18.10.2023,"Planning, Growth & Sustainability",AH&R - PGS Dir,AMZNMKTPLACE,5.99,0,5.99,Miscellaneous (Other)  Expenses,Miscellaneous retail
Buckinghamshire Council ,31.10.2023,18.10.2023,"Planning, Growth & Sustainability",AH&R - PGS Dir,AMZNMKTPLACE,7.99,0,7.99,Miscellaneous (Other)  Expenses,Miscellaneous retail
Buckinghamshire Council ,31.10.2023,18.10.2023,Children's Services,Education & Childrens Services - CS Dir,SAINSBURYS S/MKTS,16.78,0,16.78,Consumable Supplies,Grocery stores
Buckinghamshire Council ,31.10.2023,18.10.2023,Communities,Culture & Leisure - Communities Dir,SAN REMO,5.58,1.12,6.7,Purchase.of Refreshments and Food,Fast food restaurants
Buckinghamshire Council ,31.10.2023,18.10.2023,Communities,Climate Change & Environment - Community,AMZNMKTPLACE,29.98,0,29.98,Equipment,Miscellaneous retail
Buckinghamshire Council ,31.10.2023,18.10.2023,Deputy Chief Executive,AH&R- DCE Dir,NEW YORK DELI GATEHOUSE,172.5,0,172.5,General Provisions (Food),Restaurants
Buckinghamshire Council ,31.10.2023,18.10.2023,Children's Services,Education & Childrens Services - CS Dir,AMZNMKTPLACE,58.9,0,58.9,Miscellaneous (Other)  Expenses,Miscellaneous retail
Buckinghamshire Council ,31.10.2023,18.10.2023,Children's Services,Education & Childrens Services - CS Dir,AMAZON.CO.UK,13,0,13,Stationery & Office Supplies,Direct sales companies
Buckinghamshire Council ,31.10.2023,18.10.2023,Children's Services,Education & Childrens Services - CS Dir,AMAZON.CO.UK,15,0,15,Other Personal Needs,Direct sales companies
Buckinghamshire Council ,31.10.2023,18.10.2023,Children's Services,Education & Childrens Services - CS Dir,PETERBOROUGH CITY CO,11,0,11,Sec 20/31: Specialist Services,Government services
Buckinghamshire Council ,31.10.2023,18.10.2023,Children's Services,Education & Childrens Services - CS Dir,PREMIER INN,221,0,221,Sec 20/31: Supp for Contact,Premier Inn
Buckinghamshire Council ,31.10.2023,18.10.2023,Children's Services,Education & Childrens Services - CS Dir,TRAINLINE,43.17,0,43.17,Sec 20/31: Supp for Contact,Passenger railways
Buckinghamshire Council ,31.10.2023,18.10.2023,"Planning, Growth & Sustainability",Partnership Climate Change & Envir - PGS,WWW.THOMASTELFORD.ORG.,107.46,0,107.46,Printing & Stationery,Publishing & printing services
Buckinghamshire Council ,31.10.2023,18.10.2023,Deputy Chief Executive,Communities - DCE,THE BELL HOTEL - MAIN,8,0,8,Subsistence,Restaurants
Buckinghamshire Council ,31.10.2023,18.10.2023,Communities,Climate Change & Environment - Community,HOBBYCRAFT,16,0,16,Waste Prevention costs,Art & craft shops
Buckinghamshire Council ,31.10.2023,18.10.2023,Resources,AH&R - Res Dir,BUSINESS RELATIONSHIP MAN,572.8,0,572.8,Subscriptions to National Bodies,Professional services
Buckinghamshire Council ,31.10.2023,18.10.2023,Communities,Culture & Leisure - Communities Dir,MOUNTAIN WAREHOUSE,58.32,11.67,99.98,Protective Clothing & Uniforms,Men & womens clothing shops
Buckinghamshire Council ,31.10.2023,18.10.2023,Communities,Culture & Leisure - Communities Dir,MOUNTAIN WAREHOUSE,24.99,5,99.98,"Workshop - Materials,Tools & Equipment",Men & womens clothing shops
Buckinghamshire Council ,31.10.2023,18.10.2023,"Planning, Growth & Sustainability",AH&R - PGS Dir,UK ELECTRICALSUPPLIERS,63.58,12.72,76.3,General Repairs & Maintenance,Electrical parts & equipment
Buckinghamshire Council ,31.10.2023,18.10.2023,"Planning, Growth & Sustainability",AH&R - PGS Dir,WWW.SCREWFIX.COM,27.69,5.54,33.23,General Repairs & Maintenance,Timber & building supplies
Buckinghamshire Council ,31.10.2023,18.10.2023,"Planning, Growth & Sustainability",AH&R - PGS Dir,WWW.AVPARTMASTER.NET,414,82.8,496.8,General Repairs & Maintenance,"Radio, TV & stereo repairs"
Buckinghamshire Council ,31.10.2023,18.10.2023,Children's Services,Education & Childrens Services - CS Dir,GO WALLPAPER LTD,51.35,0,51.35,Leaving Care - Grants for Care Leavers,Miscellaneous retail
Buckinghamshire Council ,31.10.2023,18.10.2023,Communities,ommunities - Trust Accounts,TESCO STORES 5461,30,0,30,Purchase of Food for Re-sale,Grocery stores
Buckinghamshire Council ,31.10.2023,18.10.2023,Communities,ommunities - Trust Accounts,WICKES SLOUGH,40.25,0,40.25,General Repairs & Maintenance,Timber & building supplies
Buckinghamshire Council ,31.10.2023,18.10.2023,Communities,ommunities - Trust Accounts,HOME & INTERIORS,31.43,0,31.43,General Repairs & Maintenance,Misc. general merchandise
Buckinghamshire Council ,31.10.2023,18.10.2023,"Planning, Growth & Sustainability",Planning & Regeneration - PGS,AMZNMKTPLACE,79.99,0,79.99,IT Equipment Purchase,Miscellaneous retail
Buckinghamshire Council ,31.10.2023,18.10.2023,Resources,AH&R - Res Dir,LINKEDIN ADS 9526560584,25.07,0,25.07,Permanent Recruitment Costs,Advertising services
Buckinghamshire Council ,31.10.2023,18.10.2023,Children's Services,Education & Childrens Services - CS Dir,AMZNMKTPLACE,17.39,0,17.39,Consumable Supplies,Miscellaneous retail
Buckinghamshire Council ,31.10.2023,18.10.2023,Communities,Climate Change & Environment - Community,POST OFFICE COUNTER,7.35,0,7.35,General Postage,Postal services
Buckinghamshire Council ,31.10.2023,18.10.2023,"Planning, Growth & Sustainability",Planning & Regeneration - PGS,NEW YORK DELI (AYLESBURY),10.56,0,10.56,Purchase.of Refreshments and Food,Restaurants
Buckinghamshire Council ,31.10.2023,18.10.2023,Communities,Transport - Communities Dir,SHELL 40-42 WOODSIDE ROAD,25.88,0,25.88,Petrol,Service stations
Buckinghamshire Council ,31.10.2023,18.10.2023,Communities,Transport - Communities Dir,SHELL 40-42 WOODSIDE ROAD,60.77,0,60.77,Petrol,Service stations
Buckinghamshire Council ,31.10.2023,18.10.2023,Communities,Transport - Communities Dir,eBay O*14-10673-15501,3.99,0,3.99,Awaiting Coding,Department stores
Buckinghamshire Council ,31.10.2023,18.10.2023,Children's Services,Education & Childrens Services - CS Dir,AMZNMKTPLACE,35.54,0,35.54,Leaving Care  - Financial Assistance,Miscellaneous retail
Buckinghamshire Council ,31.10.2023,18.10.2023,Communities,Housing & Homelessness & Regulatory Comm,ST JOHN AMBULANCE,300,0,300,"Courses, Conference and Seminar Fees",Charitable organisations
Buckinghamshire Council ,31.10.2023,18.10.2023,Communities,Housing & Homelessness & Regulatory Comm,SAFETY SIGNS 4 LESS,14.63,0,14.63,General Repairs & Maintenance,Misc commercial machines equipment
Buckinghamshire Council ,31.10.2023,18.10.2023,Children's Services,Education & Childrens Services - CS Dir,PAYPAL,83.1,0,83.1,Sec 17: Specialist Services,Schools
Buckinghamshire Council ,31.10.2023,18.10.2023,Children's Services,Education & Childrens Services - CS Dir,BUCKINGHAMSHIRE CNCL,22,0,22,Sec 17: Financial Assistance One Off,Government services
Buckinghamshire Council ,31.10.2023,18.10.2023,Children's Services,Education & Childrens Services - CS Dir,BUCKINGHAMSHIRE CNCL,11,0,11,Sec 17: Financial Assistance One Off,Government services
Buckinghamshire Council ,31.10.2023,18.10.2023,Children's Services,Education & Childrens Services - CS Dir,PARADIGM HOUSING GROUP,155.34,0,155.34,Leaving Care - Rent,Government services
Buckinghamshire Council ,31.10.2023,18.10.2023,Children's Services,Education & Childrens Services - CS Dir,NATIONAL EXPRESS LIMITED,63.7,0,63.7,Sec 20/31: Supp for Contact,"Buses, charter & tour"
Buckinghamshire Council ,31.10.2023,18.10.2023,Children's Services,Education & Childrens Services - CS Dir,WESTSUSSEX.GOV.UK,11,0,11,Sec 20/31: Specialist Services,Colleges & universities
Buckinghamshire Council ,31.10.2023,18.10.2023,Children's Services,Education & Childrens Services - CS Dir,UBER   *EATS,11.54,0,11.54,Miscellaneous (Other)  Expenses,Restaurants
Buckinghamshire Council ,31.10.2023,18.10.2023,Deputy Chief Executive,AH&R- DCE Dir,PAYPAL,"1,474.95",0,"1,474.95",Awaiting Coding,Variety stores
Buckinghamshire Council ,31.10.2023,18.10.2023,Deputy Chief Executive,AH&R- DCE Dir,PAYPAL,892,0,892,Awaiting Coding,Electronics shops
Buckinghamshire Council ,31.10.2023,18.10.2023,Deputy Chief Executive,AH&R- DCE Dir,PAYPAL,590,0,590,Awaiting Coding,Variety stores
Buckinghamshire Council ,31.10.2023,18.10.2023,Deputy Chief Executive,AH&R- DCE Dir,PAYPAL,195.95,0,195.95,Awaiting Coding,Variety stores
Buckinghamshire Council ,31.10.2023,17.10.2023,Communities,artnerships - Communities,PREMIER INN,20.74,0,20.74,"Courses, Conference and Seminar Fees",Premier Inn
Buckinghamshire Council ,31.10.2023,17.10.2023,"Planning, Growth & Sustainability",Planning & Regeneration - PGS,CHARTERED ASSOCIATION,318,0,318,Professional Subscriptions re Employees,Colleges & universities
Buckinghamshire Council ,31.10.2023,17.10.2023,"Planning, Growth & Sustainability",Housing & Homelessness & Regulatory PGS,AMZNMKTPLACE,14.98,0,14.98,Miscellaneous (Other)  Expenses,Miscellaneous retail
Buckinghamshire Council ,31.10.2023,17.10.2023,Children's Services,Education & Childrens Services - CS Dir,LYNKPAY* 001 TAXIS,66.95,0,66.95,Sec 20/31: Transport,
Buckinghamshire Council ,31.10.2023,17.10.2023,Deputy Chief Executive,Communities - DCE,AO RETAIL LIMITED,560.83,112.17,673,Other Personal Needs,Household appliance stores
Buckinghamshire Council ,31.10.2023,17.10.2023,Deputy Chief Executive,Communities - DCE,AO RETAIL LIMITED,-20,0,-20,Other Personal Needs,Household appliance stores
Buckinghamshire Council ,31.10.2023,17.10.2023,Children's Services,Education & Childrens Services - CS Dir,CURRYS AYLESBURY,339,0,339,General Provisions (Food),Electronics shops
Buckinghamshire Council ,31.10.2023,17.10.2023,Children's Services,Education & Childrens Services - CS Dir,AMAZON* 204-7858242-79,24.99,0,24.99,Other Personal Needs,Misc. general merchandise
Buckinghamshire Council ,31.10.2023,17.10.2023,Children's Services,Education & Childrens Services - CS Dir,AMZNMKTPLACE,32.94,0,32.94,Cleaning Materials,Miscellaneous retail
Buckinghamshire Council ,31.10.2023,17.10.2023,Deputy Chief Executive,Communities - DCE,AO RETAIL LIMITED,659.99,132.01,792,Other Personal Needs,Household appliance stores
Buckinghamshire Council ,31.10.2023,17.10.2023,Deputy Chief Executive,Communities - DCE,AO RETAIL LIMITED,729.16,145.84,875,Other Personal Needs,Household appliance stores
Buckinghamshire Council ,31.10.2023,17.10.2023,Deputy Chief Executive,Communities - DCE,AO RETAIL LIMITED,732.5,146.5,879,Other Personal Needs,Household appliance stores
Buckinghamshire Council ,31.10.2023,17.10.2023,Deputy Chief Executive,Communities - DCE,AO RETAIL LIMITED,2,0,2,Other Personal Needs,Household appliance stores
Buckinghamshire Council ,31.10.2023,17.10.2023,Deputy Chief Executive,Communities - DCE,AO RETAIL LIMITED,236.66,47.34,284,Other Personal Needs,Household appliance stores
Buckinghamshire Council ,31.10.2023,17.10.2023,Deputy Chief Executive,Communities - DCE,WWW.ARGOS.CO.UK,169.95,33.99,203.94,Other Personal Needs,Department stores
Buckinghamshire Council ,31.10.2023,17.10.2023,Deputy Chief Executive,Communities - DCE,WWW.ARGOS.CO.UK,0.01,0,0.01,Other Personal Needs,Department stores
Buckinghamshire Council ,31.10.2023,17.10.2023,Communities,Transport - Communities Dir,ASDA  STORES 4396,100,0,100,Other Employees Expenses,Grocery stores
Buckinghamshire Council ,31.10.2023,17.10.2023,Children's Services,Education & Childrens Services - CS Dir,TRAVELODGE GB0000,69.34,0,69.34,Court Orders Sec 31: Supp. for Contact,Travelodge
Buckinghamshire Council ,31.10.2023,17.10.2023,Communities,Culture & Leisure - Communities Dir,AMZNMKTPLACE,30.88,6.18,37.06,"Workshop - Materials,Tools & Equipment",Miscellaneous retail
Buckinghamshire Council ,31.10.2023,17.10.2023,Children's Services,Education & Childrens Services - CS Dir,CURRYS BUSINESS,618.6,123.72,742.32,Computer Consumables,Computer software stores
Buckinghamshire Council ,31.10.2023,17.10.2023,Children's Services,Education & Childrens Services - CS Dir,CURRYS BUSINESS,0.03,0,0.03,Computer Consumables,Computer software stores
Buckinghamshire Council ,31.10.2023,17.10.2023,Children's Services,Education & Childrens Services - CS Dir,CURRYS BUSINESS,65.15,13.03,78.18,Computer Consumables,Computer software stores
Buckinghamshire Council ,31.10.2023,17.10.2023,Children's Services,Education & Childrens Services - CS Dir,CURRYS BUSINESS,0.03,0,0.03,Computer Consumables,Computer software stores
Buckinghamshire Council ,31.10.2023,17.10.2023,Children's Services,Education & Childrens Services - CS Dir,ANN ARBOR PUBLISH,540,108,648,Training Materials,Publishing & printing services
Buckinghamshire Council ,31.10.2023,17.10.2023,"Planning, Growth & Sustainability",Housing & Homelessness & Regulatory PGS,TESCO STORES 4480,11,0,11,Other General Office Expenses,Grocery stores
Buckinghamshire Council ,31.10.2023,17.10.2023,Adults and Health,Health & Wellbeing - Adults & Health Dir,AMZNMKTPLACE,31.49,0,31.49,Health & Safety Supplies & Services,Miscellaneous retail
Buckinghamshire Council ,31.10.2023,17.10.2023,Deputy Chief Executive,AH&R- DCE Dir,AMAZON.CO.UK,24.78,0,24.78,Other Personal Needs,Direct sales companies
Buckinghamshire Council ,31.10.2023,17.10.2023,Deputy Chief Executive,Leader - DCE,MIRO.COM,"3,016.90",603.38,"3,620.28",Computer Software Licences & Purchase,"Programming, data processing & system design"
Buckinghamshire Council ,31.10.2023,17.10.2023,Communities,Culture & Leisure - Communities Dir,TESCO STORES 2564,13.65,2.73,16.38,Purchase.of Refreshments and Food,Grocery stores
Buckinghamshire Council ,31.10.2023,17.10.2023,Communities,Culture & Leisure - Communities Dir,TESCO STORES 2564,15.13,0,15.13,Purchase.of Refreshments and Food,Grocery stores
Buckinghamshire Council ,31.10.2023,17.10.2023,Communities,Climate Change & Environment - Community,SP MUDFORDS,69.25,0,69.25,Equipment,Computer software stores
Buckinghamshire Council ,31.10.2023,17.10.2023,Communities,Climate Change & Environment - Community,HYDRON PROTECTIVE COATING,851.28,0,851.28,Equipment,"Paint, varnishes & supplies"
Buckinghamshire Council ,31.10.2023,17.10.2023,Children's Services,Education & Childrens Services - CS Dir,EDEN CENTRE,2,0,2,Staff Travelling Expenses,Car parking & garages
Buckinghamshire Council ,31.10.2023,17.10.2023,Children's Services,artnerships - Children's Services,WAITROSE,2.35,0,2.35,"Courses, Conference and Seminar Fees",Grocery stores
Buckinghamshire Council ,31.10.2023,17.10.2023,Adults and Health,Health & Wellbeing - Adults & Health Dir,TRAVELODGE GB0000,509.17,0,509.17,Other Short Term Support,Travelodge
Buckinghamshire Council ,31.10.2023,17.10.2023,Adults and Health,Health & Wellbeing - Adults & Health Dir,TRAVELODGE GB0000,836.86,0,836.86,Other Short Term Support,Travelodge
Buckinghamshire Council ,31.10.2023,17.10.2023,Communities,Culture & Leisure - Communities Dir,TOOLSTATION LTD,12.95,2.59,15.54,General Repairs & Maintenance,Timber & building supplies
Buckinghamshire Council ,31.10.2023,17.10.2023,Communities,Culture & Leisure - Communities Dir,TOOLSTATION LTD,0.02,0,0.02,General Repairs & Maintenance,Timber & building supplies
Buckinghamshire Council ,31.10.2023,17.10.2023,"Planning, Growth & Sustainability",AH&R - PGS Dir,ICELAND,13,0,13,General Provisions (Food),Grocery stores
Buckinghamshire Council ,31.10.2023,17.10.2023,Children's Services,Education & Childrens Services - CS Dir,HALFORDS E.COMM,23.2,0,23.2,Equipment (including storage),Automotive parts & accessories
Buckinghamshire Council ,31.10.2023,17.10.2023,"Planning, Growth & Sustainability",Housing & Homelessness & Regulatory PGS,THE WORKS,5,0,5,Other General Office Expenses,Discount stores
Buckinghamshire Council ,31.10.2023,17.10.2023,Children's Services,Education & Childrens Services - CS Dir,NEW YORK DELI GATEHOUSE,1.95,0,1.95,"Exp of School, Club & College Activities",Restaurants
Buckinghamshire Council ,31.10.2023,17.10.2023,Resources,AH&R - Res Dir,C2E869101475I UKVI,239,0,239,Professional Services (non curriculum) - External,Government services
Buckinghamshire Council ,31.10.2023,17.10.2023,Children's Services,Education & Childrens Services - CS Dir,AMZNMKTPLACE,21.97,0,21.97,Leaving Care - Higher Education Supp,Miscellaneous retail
Buckinghamshire Council ,31.10.2023,17.10.2023,Children's Services,Education & Childrens Services - CS Dir,SP LAURA JAMES HOME,399.98,0,399.98,Leaving Care - Grants for Care Leavers,Furniture & home furnishing
Buckinghamshire Council ,31.10.2023,17.10.2023,Children's Services,Education & Childrens Services - CS Dir,AMZNMKTPLACE,169.99,0,169.99,Leaving Care - Grants for Care Leavers,Miscellaneous retail
Buckinghamshire Council ,31.10.2023,17.10.2023,Deputy Chief Executive,Communities - DCE,AMZNMKTPLACE,185,0,185,Grants to Voluntary Bodies,Miscellaneous retail
Buckinghamshire Council ,31.10.2023,17.10.2023,Resources,AH&R - Res Dir,LINKEDIN ADS 9524525004,93.29,0,93.29,Permanent Recruitment Costs,Advertising services
Buckinghamshire Council ,31.10.2023,17.10.2023,Resources,AH&R - Res Dir,FACEBK *GDTUPUP4X2,65.36,0,65.36,Permanent Recruitment Costs,Advertising services
Buckinghamshire Council ,31.10.2023,17.10.2023,Children's Services,Education & Childrens Services - CS Dir,AMZNBUSINESS,39,0,39,Educational Equipment,Miscellaneous retail
Buckinghamshire Council ,31.10.2023,17.10.2023,Children's Services,Education & Childrens Services - CS Dir,AMAZON.CO.UK,17.59,0,17.59,Printing & Stationery,Direct sales companies
Buckinghamshire Council ,31.10.2023,17.10.2023,"Planning, Growth & Sustainability",Housing & Homelessness & Regulatory PGS,IKEA LTD SHOP ONLINE,776,0,776,Furniture,Furniture & home furnishing
Buckinghamshire Council ,31.10.2023,17.10.2023,"Planning, Growth & Sustainability",Housing & Homelessness & Regulatory PGS,IKEA LTD SHOP ONLINE,675,0,675,Furniture,Furniture & home furnishing
Buckinghamshire Council ,31.10.2023,17.10.2023,Children's Services,Education & Childrens Services - CS Dir,TESCO STORES 2162,48.36,0,48.36,Activities & General Recreation,Grocery stores
Buckinghamshire Council ,31.10.2023,17.10.2023,Children's Services,Education & Childrens Services - CS Dir,WWW.BIGYELLOW.CO.UK,634.5,0,634.5,Activities & General Recreation,Warehousing
Buckinghamshire Council ,31.10.2023,17.10.2023,Communities,Culture & Leisure - Communities Dir,SP TGBBS.CO.UK,40.92,0,40.92,"Books, Records, Films & Oth Publications",Book stores
Buckinghamshire Council ,31.10.2023,17.10.2023,"Planning, Growth & Sustainability",Special Expenses,WWW.ARGOS.CO.UK,140,0,140,Equipment,Department stores
Buckinghamshire Council ,31.10.2023,17.10.2023,"Planning, Growth & Sustainability",Climate Change & Environment - PGS,VISTAPRINT,113.39,0,113.39,Environmental Projects,Misc business services
Buckinghamshire Council ,31.10.2023,17.10.2023,Children's Services,Education & Childrens Services - CS Dir,CANVA* 03941-35810764,34.99,0,34.99,Marketing,"Commercial photo, art & graphic"
Buckinghamshire Council ,31.10.2023,17.10.2023,Children's Services,Education & Childrens Services - CS Dir,UBER   *EATS,11.15,0,11.15,Miscellaneous (Other)  Expenses,Restaurants
Buckinghamshire Council ,31.10.2023,17.10.2023,Communities,Transport - Communities Dir,PAYPAL,32.97,0,32.97,Awaiting Coding,Electronics shops
Buckinghamshire Council ,31.10.2023,16.10.2023,Children's Services,Education & Childrens Services - CS Dir,AMZNMKTPLACE,14.98,0,14.98,"Exp of School, Club & College Activities",Miscellaneous retail
Buckinghamshire Council ,31.10.2023,16.10.2023,"Planning, Growth & Sustainability",Housing & Homelessness & Regulatory PGS,AMZNMKTPLACE,-227.99,0,-227.99,Miscellaneous (Other)  Expenses,Miscellaneous retail
Buckinghamshire Council ,31.10.2023,16.10.2023,Deputy Chief Executive,Communities - DCE,AO RETAIL LIMITED,521.66,104.34,626,Other Personal Needs,Household appliance stores
Buckinghamshire Council ,31.10.2023,16.10.2023,Resources,AH&R - Res Dir,POST OFFICE COUNTER,250,0,250,General Postage,Postal services
Buckinghamshire Council ,31.10.2023,16.10.2023,Deputy Chief Executive,Communities - DCE,THE DELI,7.75,0,7.75,Subsistence,Restaurants
Buckinghamshire Council ,31.10.2023,16.10.2023,Children's Services,Education & Childrens Services - CS Dir,CURRYS BUSINESS,97.95,19.59,117.54,Computer Consumables,Computer software stores
Buckinghamshire Council ,31.10.2023,16.10.2023,Children's Services,Education & Childrens Services - CS Dir,CURRYS BUSINESS,0.04,0,0.04,Computer Consumables,Computer software stores
Buckinghamshire Council ,31.10.2023,16.10.2023,Children's Services,Education & Childrens Services - CS Dir,CURRYS BUSINESS,794.9,158.98,953.88,Computer Consumables,Computer software stores
Buckinghamshire Council ,31.10.2023,16.10.2023,Children's Services,Education & Childrens Services - CS Dir,CURRYS BUSINESS,0.04,0,0.04,Computer Consumables,Computer software stores
Buckinghamshire Council ,31.10.2023,16.10.2023,Deputy Chief Executive,Communities - DCE,WWW.ARGOS.CO.UK,200.79,40.16,240.95,Other Personal Needs,Department stores
Buckinghamshire Council ,31.10.2023,16.10.2023,Deputy Chief Executive,Communities - DCE,WWW.ARGOS.CO.UK,548.29,109.66,657.95,Other Personal Needs,Department stores
Buckinghamshire Council ,31.10.2023,16.10.2023,Deputy Chief Executive,Communities - DCE,AO RETAIL LIMITED,724.99,145.01,870,Other Personal Needs,Household appliance stores
Buckinghamshire Council ,31.10.2023,16.10.2023,Deputy Chief Executive,Communities - DCE,AO RETAIL LIMITED,818.33,163.67,982,Other Personal Needs,Household appliance stores
Buckinghamshire Council ,31.10.2023,16.10.2023,Deputy Chief Executive,Communities - DCE,AO RETAIL LIMITED,430.83,86.17,517,Other Personal Needs,Household appliance stores
Buckinghamshire Council ,31.10.2023,16.10.2023,Deputy Chief Executive,Communities - DCE,AO RETAIL LIMITED,203.33,40.67,244,Other Personal Needs,Household appliance stores
Buckinghamshire Council ,31.10.2023,16.10.2023,Resources,AH&R - Res Dir,BUCKINGHAMSHIRE CNCL,11,0,11,Miscellaneous (Other)  Expenses,Government services
Buckinghamshire Council ,31.10.2023,16.10.2023,"Planning, Growth & Sustainability",Housing & Homelessness & Regulatory PGS,AMAZON.CO.UK,11.37,0,11.37,Stationery & Office Supplies,Direct sales companies
Buckinghamshire Council ,31.10.2023,16.10.2023,Children's Services,Education & Childrens Services - CS Dir,AMAZON* 204-5553016-43,250,0,250,Other Employees Expenses,Misc. general merchandise
Buckinghamshire Council ,31.10.2023,16.10.2023,Children's Services,Education & Childrens Services - CS Dir,THE OFFICE FURNITURE W,186,0,186,Stationery & Office Supplies,Stationery & office supplies stores
Buckinghamshire Council ,31.10.2023,16.10.2023,Children's Services,Education & Childrens Services - CS Dir,BUCKINGHAMSHIRE CNCL,11,0,11,Sec 20/31: Financial Assistance One Off,Government services
Buckinghamshire Council ,31.10.2023,16.10.2023,"Planning, Growth & Sustainability",AH&R - PGS Dir,TESCO STORES 2020,11.6,0,11.6,Purchase.of Refreshments and Food,Grocery stores
Buckinghamshire Council ,31.10.2023,16.10.2023,"Planning, Growth & Sustainability",AH&R - PGS Dir,LOCK & KEY CENTRE,69,0,69,General Repairs & Maintenance,Misc business services
Buckinghamshire Council ,31.10.2023,16.10.2023,Children's Services,Education & Childrens Services - CS Dir,AELP.ORG.UK,49,9.8,58.8,Training (Inc. Health & Safety Courses),Schools
Buckinghamshire Council ,31.10.2023,16.10.2023,"Planning, Growth & Sustainability",Leader - PGS,EB *THE PLACE MANAGEME,356.4,0,356.4,"Courses, Conference and Seminar Fees",Misc business services
Buckinghamshire Council ,31.10.2023,16.10.2023,Children's Services,Education & Childrens Services - CS Dir,TRAINLINE,-33.5,0,-33.5,Sec 20/31: Supp for Contact,Passenger railways
Buckinghamshire Council ,31.10.2023,16.10.2023,Children's Services,artnerships - Children's Services,WAITROSE,2.8,0,2.8,"Courses, Conference and Seminar Fees",Grocery stores
Buckinghamshire Council ,31.10.2023,16.10.2023,"Planning, Growth & Sustainability",Partnership Climate Change & Envir - PGS,THE BUCKINGHAMSHIR,546,0,546,"Courses, Conference and Seminar Fees",Misc. recreational services
Buckinghamshire Council ,31.10.2023,16.10.2023,Deputy Chief Executive,Communities - DCE,THE BELL HOTEL - MAIN,4,0,4,Subsistence,Restaurants
Buckinghamshire Council ,31.10.2023,16.10.2023,Children's Services,Education & Childrens Services - CS Dir,SUMUP  *BUDGET CARS LT,72,0,72,Sec 20/31: Transport,Taxicabs & limousines
Buckinghamshire Council ,31.10.2023,16.10.2023,Children's Services,Education & Childrens Services - CS Dir,WWW.ANYVAN.COM,422,0,422,Sec 20/31: Transport,"Haulage, removals & delivery"
Buckinghamshire Council ,31.10.2023,16.10.2023,Children's Services,Education & Childrens Services - CS Dir,NANDOS.CO.UK,139.83,0,139.83,Activities & General Recreation,Restaurants
Buckinghamshire Council ,31.10.2023,16.10.2023,Children's Services,Education & Childrens Services - CS Dir,INFORM PRINTED SOLUTIO,267.5,53.5,321,Stationery & Office Supplies,Men & womens clothing shops
Buckinghamshire Council ,31.10.2023,16.10.2023,Children's Services,Education & Childrens Services - CS Dir,ASDA  STORES 4396,9.44,0,9.44,General Provisions (Food),Grocery stores
Buckinghamshire Council ,31.10.2023,16.10.2023,Children's Services,Education & Childrens Services - CS Dir,ASDA SUPERSTORE,36.04,0,36.04,General Provisions (Food),Grocery stores
Buckinghamshire Council ,31.10.2023,16.10.2023,Deputy Chief Executive,AH&R- DCE Dir,LINKEDIN ADS 9519906164,70.51,0,70.51,Other internal recharge��������������,Advertising services
Buckinghamshire Council ,31.10.2023,16.10.2023,Children's Services,Education & Childrens Services - CS Dir,CURRYS ONLINE,199,0,199,Leaving Care - Grants for Care Leavers,Electronics shops
Buckinghamshire Council ,31.10.2023,16.10.2023,Children's Services,Education & Childrens Services - CS Dir,AMAZON.CO.UK,7.98,0,7.98,Leaving Care  - Financial Assistance,Direct sales companies
Buckinghamshire Council ,31.10.2023,16.10.2023,Deputy Chief Executive,Communities - DCE,HADDENHAM GARDEN CEN L,5.9,0,5.9,Seeds & Plants,Lawn & garden supply/nursery
Buckinghamshire Council ,31.10.2023,16.10.2023,Adults and Health,Health & Wellbeing - Adults & Health Dir,TESCO STORES 5135,208.07,0,208.07,General Provisions (Food),Grocery stores
Buckinghamshire Council ,31.10.2023,16.10.2023,Communities,ommunities - Trust Accounts,DVLA VEHICLE TAX,320,0,320,Vehicle Running Costs,Tax payments
Buckinghamshire Council ,31.10.2023,16.10.2023,Communities,ommunities - Trust Accounts,WEXHAM MOWER SVCS,89.58,0,89.58,Repair & Maint of Vehicles & Plant,Lawn & garden supply/nursery
Buckinghamshire Council ,31.10.2023,16.10.2023,Deputy Chief Executive,AH&R- DCE Dir,AO RETAIL LIMITED,709.99,142.01,852,Miscellaneous (Other)  Expenses,Household appliance stores
Buckinghamshire Council ,31.10.2023,16.10.2023,"Planning, Growth & Sustainability",Planning & Regeneration - PGS,TFL TRAVEL CH,8.1,0,8.1,Staff Travelling Expenses,Local commuter transport
Buckinghamshire Council ,31.10.2023,16.10.2023,"Planning, Growth & Sustainability",Planning & Regeneration - PGS,ARRIVA THE SHIRES LIMITED,2,0,2,Staff Travelling Expenses,"Buses, charter & tour"
Buckinghamshire Council ,31.10.2023,16.10.2023,"Planning, Growth & Sustainability",AH&R - PGS Dir,PROCONFERENCES.COM,176.4,0,176.4,"Courses, Conference and Seminar Fees",Colleges & universities
Buckinghamshire Council ,31.10.2023,16.10.2023,Communities,Climate Change & Environment - Community,ROADWARRIOR,12.74,0,12.74,Computer Support Services,"Programming, data processing & system design"
Buckinghamshire Council ,31.10.2023,16.10.2023,Communities,Climate Change & Environment - Community,ROADWARRIOR,12.74,0,12.74,Computer Support Services,"Programming, data processing & system design"
Buckinghamshire Council ,31.10.2023,16.10.2023,Communities,Climate Change & Environment - Community,PRESTIG*EFLOWERS,51.48,0,51.48,Seeds & Plants,Florists
Buckinghamshire Council ,31.10.2023,16.10.2023,"Planning, Growth & Sustainability",Housing & Homelessness & Regulatory PGS,IKEA LTD SHOP ONLINE,786,0,786,"Workshop - Materials,Tools & Equipment",Furniture & home furnishing
Buckinghamshire Council ,31.10.2023,16.10.2023,Adults and Health,Health & Wellbeing - Adults & Health Dir,TESCO STORES 5135,90.01,0,90.01,General Provisions (Food),Grocery stores
Buckinghamshire Council ,31.10.2023,16.10.2023,Children's Services,Education & Childrens Services - CS Dir,ARRIVA UK BUS,8,0,8,Sec 20/31: Supp for Contact,"Buses, charter & tour"
Buckinghamshire Council ,31.10.2023,16.10.2023,Children's Services,Education & Childrens Services - CS Dir,FIRST BUS - WEB,15.6,0,15.6,Sec 20/31: Supp for Contact,"Buses, charter & tour"
Buckinghamshire Council ,31.10.2023,16.10.2023,"Planning, Growth & Sustainability",Special Expenses,LOCK & KEY CENTRE,32,0,32,Equipment,Misc business services
Buckinghamshire Council ,31.10.2023,16.10.2023,Adults and Health,Health & Wellbeing - Adults & Health Dir,MARKS&SPENCER PLC,30,0,30,Other General Office Expenses,Grocery stores
Buckinghamshire Council ,31.10.2023,16.10.2023,Children's Services,Education & Childrens Services - CS Dir,TRAINLINE,47.3,0,47.3,Sec 20/31: Transport,Passenger railways
Buckinghamshire Council ,31.10.2023,16.10.2023,Communities,Transport - Communities Dir,PAYPAL,31.96,0,31.96,Awaiting Coding,Miscellaneous retail
Buckinghamshire Council ,31.10.2023,16.10.2023,Deputy Chief Executive,AH&R- DCE Dir,PAYPAL,739.95,147.99,887.94,Miscellaneous (Other)  Expenses,Variety stores
Buckinghamshire Council ,31.10.2023,16.10.2023,Deputy Chief Executive,AH&R- DCE Dir,PAYPAL,0.06,0,0.06,Miscellaneous (Other)  Expenses,Variety stores
Buckinghamshire Council ,31.10.2023,16.10.2023,Deputy Chief Executive,AH&R- DCE Dir,PAYPAL,953.95,0,953.95,Miscellaneous (Other)  Expenses,Variety stores
Buckinghamshire Council ,31.10.2023,15.10.2023,"Planning, Growth & Sustainability",Housing & Homelessness & Regulatory PGS,AMZNMKTPLACE,"1,260.74",0,"1,260.74",Miscellaneous (Other)  Expenses,Miscellaneous retail
Buckinghamshire Council ,31.10.2023,15.10.2023,Children's Services,Education & Childrens Services - CS Dir,MCDONALDS 170,9.5,0,9.5,General Provisions (Food),Fast food restaurants
Buckinghamshire Council ,31.10.2023,15.10.2023,Children's Services,Education & Childrens Services - CS Dir,HOUSEOFFRASER 2002,7.98,0,7.98,Other Personal Needs,Department stores
Buckinghamshire Council ,31.10.2023,15.10.2023,Children's Services,Education & Childrens Services - CS Dir,BALISTA CLOTHING,25,0,25,Other Personal Needs,Men & womens clothing shops
Buckinghamshire Council ,31.10.2023,15.10.2023,Children's Services,Education & Childrens Services - CS Dir,RIVER ISLAND 154,40.8,0,40.8,Other Personal Needs,Men & womens clothing shops
Buckinghamshire Council ,31.10.2023,15.10.2023,Children's Services,Education & Childrens Services - CS Dir,RIVER ISLAND 154,20.4,0,20.4,Other Personal Needs,Men & womens clothing shops
Buckinghamshire Council ,31.10.2023,15.10.2023,Children's Services,Education & Childrens Services - CS Dir,ROGUE RACING,30,0,30,Other Personal Needs,"Member clubs, sport, recreation & golf"
Buckinghamshire Council ,31.10.2023,15.10.2023,Children's Services,Education & Childrens Services - CS Dir,ROGUE BOWLING,32,0,32,Other Personal Needs,"Member clubs, sport, recreation & golf"
Buckinghamshire Council ,31.10.2023,15.10.2023,Communities,Housing & Homelessness & Regulatory Comm,AMAZON.CO.UK,5.99,0,5.99,Maintenance of Grounds,Direct sales companies
Buckinghamshire Council ,31.10.2023,15.10.2023,Communities,Transport - Communities Dir,ICELAND,5.3,0,5.3,Materials,Grocery stores
Buckinghamshire Council ,31.10.2023,15.10.2023,Children's Services,Education & Childrens Services - CS Dir,AMZNMKTPLACE,486.8,0,486.8,Activities & General Recreation,Miscellaneous retail
Buckinghamshire Council ,31.10.2023,15.10.2023,"Planning, Growth & Sustainability",Planning & Regeneration - PGS,CHILTERN RAILWAYS,21.6,0,21.6,Staff Travelling Expenses,Passenger railways
Buckinghamshire Council ,31.10.2023,15.10.2023,"Planning, Growth & Sustainability",Housing & Homelessness & Regulatory PGS,BT BUSINESS BILL,508.14,0,508.14,Telephones,Phone services
Buckinghamshire Council ,31.10.2023,15.10.2023,Children's Services,Education & Childrens Services - CS Dir,AMZNMKTPLACE,481.13,0,481.13,Activities & General Recreation,Miscellaneous retail
Buckinghamshire Council ,31.10.2023,15.10.2023,Resources,AH&R - Res Dir,PAYPAL,8.4,0,8.4,IT - Computer Network Charges,Computer network information services
Buckinghamshire Council ,31.10.2023,14.10.2023,Children's Services,Education & Childrens Services - CS Dir,AMAZON PRIME,8.99,0,8.99,Stationery & Office Supplies,Continuous subscriptions
Buckinghamshire Council ,31.10.2023,14.10.2023,Communities,Housing & Homelessness & Regulatory Comm,VITAL PARTS LTD,36.13,0,36.13,Miscellaneous (Other)  Expenses,Misc. general merchandise
Buckinghamshire Council ,31.10.2023,14.10.2023,Communities,Culture & Leisure - Communities Dir,WWW.SCREWFIX.COM,20.4,4.08,24.48,"Workshop - Materials,Tools & Equipment",Timber & building supplies
Buckinghamshire Council ,31.10.2023,14.10.2023,Communities,Culture & Leisure - Communities Dir,WWW.SCREWFIX.COM,0.01,0,0.01,"Workshop - Materials,Tools & Equipment",Timber & building supplies
Buckinghamshire Council ,31.10.2023,14.10.2023,Communities,Culture & Leisure - Communities Dir,WWW.SCREWFIX.COM,63.72,12.75,76.47,"Workshop - Materials,Tools & Equipment",Timber & building supplies
Buckinghamshire Council ,31.10.2023,14.10.2023,Communities,Culture & Leisure - Communities Dir,SCREWFIX DIR LTD,12.45,2.49,14.94,"Workshop - Materials,Tools & Equipment",Timber & building supplies
Buckinghamshire Council ,31.10.2023,14.10.2023,Communities,Culture & Leisure - Communities Dir,SCREWFIX DIR LTD,0.01,0,0.01,"Workshop - Materials,Tools & Equipment",Timber & building supplies
Buckinghamshire Council ,31.10.2023,14.10.2023,Communities,Culture & Leisure - Communities Dir,EVENTBRITE.COM ORG FEE,129,0,129,Events Expenditure,Computer software stores
Buckinghamshire Council ,31.10.2023,14.10.2023,Deputy Chief Executive,AH&R- DCE Dir,SAINSBURY S S/MKTS,20.09,0,20.09,Printing & Stationery,Grocery stores
Buckinghamshire Council ,31.10.2023,14.10.2023,Children's Services,Education & Childrens Services - CS Dir,AMZNMKTPLACE,59,0,59,Furniture,Miscellaneous retail
Buckinghamshire Council ,31.10.2023,14.10.2023,Children's Services,Education & Childrens Services - CS Dir,AMAZON PRIME,-95,0,-95,Stationery & Office Supplies,Continuous subscriptions
Buckinghamshire Council ,31.10.2023,14.10.2023,Children's Services,Education & Childrens Services - CS Dir,AMZNMKTPLACE,46.64,9.34,71.45,Administrative Equipment & Tools,Miscellaneous retail
Buckinghamshire Council ,31.10.2023,14.10.2023,Children's Services,Education & Childrens Services - CS Dir,AMZNMKTPLACE,12.89,2.58,71.45,Health & Safety Supplies & Services,Miscellaneous retail
Buckinghamshire Council ,31.10.2023,14.10.2023,Resources,AH&R - Res Dir,Mailchimp,51.99,0,51.99,Awaiting Coding,
Buckinghamshire Council ,31.10.2023,13.10.2023,Resources,AH&R - Res Dir,GEN REGISTER OFFICE,-7.5,0,-7.5,Miscellaneous (Other)  Expenses,Government services
Buckinghamshire Council ,31.10.2023,13.10.2023,Children's Services,Education & Childrens Services - CS Dir,AMZNMKTPLACE,18.98,0,18.98,Sec 17: Financial Assistance One Off,Miscellaneous retail
Buckinghamshire Council ,31.10.2023,13.10.2023,Resources,AH&R - Res Dir,OPTIMAL WORKSHOP,210.64,0,210.64,Computer Consumables,Computer software stores
Buckinghamshire Council ,31.10.2023,13.10.2023,Deputy Chief Executive,AH&R- DCE Dir,PAYPAL,252.95,0,252.95,Awaiting Coding,Variety stores
Buckinghamshire Council ,31.10.2023,13.10.2023,"Planning, Growth & Sustainability",Housing & Homelessness & Regulatory PGS,AMZNMKTPLACE,59.95,0,59.95,Miscellaneous (Other)  Expenses,Miscellaneous retail
Buckinghamshire Council ,31.10.2023,13.10.2023,"Planning, Growth & Sustainability",Housing & Homelessness & Regulatory PGS,AMZNMKTPLACE,47.46,0,47.46,Miscellaneous (Other)  Expenses,Miscellaneous retail
Buckinghamshire Council ,31.10.2023,13.10.2023,"Planning, Growth & Sustainability",Housing & Homelessness & Regulatory PGS,TRAVELODGE GB0000,635.38,0,635.38,Homelessness,Travelodge
Buckinghamshire Council ,31.10.2023,13.10.2023,Communities,Housing & Homelessness & Regulatory Comm,HMCTS PORTSMOUTH092,20,0,20,Court Fees,Fines
Buckinghamshire Council ,31.10.2023,13.10.2023,Children's Services,Education & Childrens Services - CS Dir,REES FOUNDATION,60,0,60,Leaving Care  - Financial Assistance,Charitable organisations
Buckinghamshire Council ,31.10.2023,13.10.2023,Children's Services,Education & Childrens Services - CS Dir,KINGSTON UNIVERSITY,183,0,183,Leaving Care - Higher Education Supp,Colleges & universities
Buckinghamshire Council ,31.10.2023,13.10.2023,Children's Services,Education & Childrens Services - CS Dir,KINGSTON UNIVERSITY,"3,456.00",0,"3,456.00",Leaving Care - Higher Education Supp,Colleges & universities
Buckinghamshire Council ,31.10.2023,13.10.2023,Children's Services,Education & Childrens Services - CS Dir,DFS TRADING LIMITED,648,0,648,Leaving Care - Grants for Care Leavers,Furniture & home furnishing
Buckinghamshire Council ,31.10.2023,13.10.2023,"Planning, Growth & Sustainability",Housing & Homelessness & Regulatory PGS,BUCKINGHAMSHIRE COUNCIL,11,0,11,Burial Costs,Government services
Buckinghamshire Council ,31.10.2023,13.10.2023,Children's Services,Education & Childrens Services - CS Dir,AMZNMKTPLACE,7.18,0,7.18,Other Equipment and Materials,Miscellaneous retail
Buckinghamshire Council ,31.10.2023,13.10.2023,Resources,AH&R - Res Dir,GEN REGISTER OFFICE,14,0,14,Miscellaneous (Other)  Expenses,Government services
Buckinghamshire Council ,31.10.2023,13.10.2023,Children's Services,Education & Childrens Services - CS Dir,A1 TAXI SERVICE,420,0,420,Sec 20/31: Transport,Taxicabs & limousines
Buckinghamshire Council ,31.10.2023,13.10.2023,"Planning, Growth & Sustainability",AH&R - PGS Dir,PROCONFERENCES.COM,176.4,0,176.4,Course Fees & Post Entry Training,Colleges & universities
Buckinghamshire Council ,31.10.2023,13.10.2023,"Planning, Growth & Sustainability",AH&R - PGS Dir,PROCONFERENCES.COM,176.4,0,176.4,Course Fees & Post Entry Training,Colleges & universities
Buckinghamshire Council ,31.10.2023,13.10.2023,"Planning, Growth & Sustainability",AH&R - PGS Dir,PROCONFERENCES.COM,176.4,0,176.4,Course Fees & Post Entry Training,Colleges & universities
Buckinghamshire Council ,31.10.2023,13.10.2023,Deputy Chief Executive,AH&R- DCE Dir,AMZNMKTPLACE,30,0,30,Other Personal Needs,Miscellaneous retail
Buckinghamshire Council ,31.10.2023,13.10.2023,Resources,Communities - Resources,WWW.OFCOM.ORG.UK,225,0,225,TC01 Sheep & Cattle - Stock and Equipment,Membership organisations
Buckinghamshire Council ,31.10.2023,13.10.2023,Children's Services,Education & Childrens Services - CS Dir,AMZNMKTPLACE,8.79,0,8.79,Consumable Supplies,Miscellaneous retail
Buckinghamshire Council ,31.10.2023,13.10.2023,Children's Services,Education & Childrens Services - CS Dir,BEDFORD COLLEGE,100,0,100,Miscellaneous (Other)  Expenses,Colleges & universities
Buckinghamshire Council ,31.10.2023,13.10.2023,Children's Services,Education & Childrens Services - CS Dir,LEBARA MOBILE LIMITED,25,0,25,Telephones,Phone services
Buckinghamshire Council ,31.10.2023,13.10.2023,Children's Services,Education & Childrens Services - CS Dir,"BOOTS,AYLESBURY",19.8,0,19.8,Medical Supplies & Services inc Vet'nary,Chemists & pharmacies
Buckinghamshire Council ,31.10.2023,13.10.2023,Adults and Health,Health & Wellbeing - Adults & Health Dir,TRAVELODGE GB0000,683.96,0,683.96,Other Short Term Support,Travelodge
Buckinghamshire Council ,31.10.2023,13.10.2023,Children's Services,Education & Childrens Services - CS Dir,NEALES TAXIS LTD,840,0,840,Sec 20/31: Transport,Taxicabs & limousines
Buckinghamshire Council ,31.10.2023,13.10.2023,Children's Services,Education & Childrens Services - CS Dir,RUSH HIGH WYCOMBE,15.5,0,15.5,Sec 20/31: Financial Assistance One Off,Misc. recreational services
Buckinghamshire Council ,31.10.2023,13.10.2023,Resources,AH&R - Res Dir,PAYPAL,8.99,0,8.99,IT - Computer Network Charges,Computer network information services
Buckinghamshire Council ,31.10.2023,13.10.2023,Resources,AH&R - Res Dir,CLOUDFLARE,215.72,0,215.72,Computer Consumables,Computer software stores
Buckinghamshire Council ,31.10.2023,13.10.2023,Communities,artnerships - Communities,ZETTLE_*DORNEY LAKE,68.5,0,68.5,Subsistence,Restaurants
Buckinghamshire Council ,31.10.2023,13.10.2023,Adults and Health,Health & Wellbeing - Adults & Health Dir,ASDA GROCERIES ONLINE,91.8,0,91.8,General Provisions (Food),Grocery stores
Buckinghamshire Council ,31.10.2023,13.10.2023,Deputy Chief Executive,Communities - DCE,ESQUIRES COFFEE HOUSE,3.2,0,3.2,Seeds & Plants,Fast food restaurants
Buckinghamshire Council ,31.10.2023,13.10.2023,"Planning, Growth & Sustainability",AH&R - PGS Dir,PROCONFERENCES.COM,176.4,0,176.4,"Courses, Conference and Seminar Fees",Colleges & universities
Buckinghamshire Council ,31.10.2023,13.10.2023,Children's Services,Education & Childrens Services - CS Dir,SP ANTI-BULLYING ALL,86.99,0,86.99,Miscellaneous (Other)  Expenses,Computer software stores
Buckinghamshire Council ,31.10.2023,13.10.2023,Adults and Health,Health & Wellbeing - Adults & Health Dir,AMZNMKTPLACE,28.32,5.67,65.99,Other Equipment and Materials,Miscellaneous retail
Buckinghamshire Council ,31.10.2023,13.10.2023,Adults and Health,Health & Wellbeing - Adults & Health Dir,AMZNMKTPLACE,26.66,5.34,65.99,Other Equipment and Materials,Miscellaneous retail
Buckinghamshire Council ,31.10.2023,13.10.2023,Deputy Chief Executive,AH&R- DCE Dir,AMAZON.CO.UK,25.98,0,25.98,Stationery & Office Supplies,Direct sales companies
Buckinghamshire Council ,31.10.2023,13.10.2023,Communities,Climate Change & Environment - Community,DVSA,205,0,205,DVLA Enquiries,Government services
Buckinghamshire Council ,31.10.2023,13.10.2023,Adults and Health,Health & Wellbeing - Adults & Health Dir,AMZNMKTPLACE,19.79,3.97,23.76,Other Supplies,Miscellaneous retail
Buckinghamshire Council ,31.10.2023,13.10.2023,Adults and Health,Health & Wellbeing - Adults & Health Dir,AMZNMKTPLACE,41.1,0,41.1,Miscellaneous (Other)  Expenses,Miscellaneous retail
Buckinghamshire Council ,31.10.2023,13.10.2023,Resources,AH&R - Res Dir,FREEDOM PROGRAMME LIMITED,12,0,12,Awaiting Coding,Schools
Buckinghamshire Council ,31.10.2023,13.10.2023,Resources,AH&R - Res Dir,NEALES TAXIS LTD,24,0,24,Staff Travelling Expenses,Taxicabs & limousines
Buckinghamshire Council ,31.10.2023,13.10.2023,Children's Services,Education & Childrens Services - CS Dir,PARADIGM HOUSING GROUP,117.85,0,117.85,Leaving Care - Rent,Government services
Buckinghamshire Council ,31.10.2023,12.10.2023,Children's Services,Education & Childrens Services - CS Dir,AMZNMKTPLACE,67.29,0,67.29,Equipment (including storage),Miscellaneous retail
Buckinghamshire Council ,31.10.2023,12.10.2023,Adults and Health,Health & Wellbeing - Adults & Health Dir,ASDA SUPERSTORE,2.9,0,2.9,General Provisions (Food),Grocery stores
Buckinghamshire Council ,31.10.2023,12.10.2023,Deputy Chief Executive,Leader - DCE,AMZNMKTPLACE,79.64,0,79.64,Awaiting Coding,Miscellaneous retail
Buckinghamshire Council ,31.10.2023,12.10.2023,"Planning, Growth & Sustainability",Housing & Homelessness & Regulatory PGS,LAND REGISTRY ECOM CCC,3,0,3,Homelessness,Government services
Buckinghamshire Council ,31.10.2023,12.10.2023,Children's Services,Education & Childrens Services - CS Dir,ASDA SUPERSTORE,8.95,0,8.95,"Exp of School, Club & College Activities",Grocery stores
Buckinghamshire Council ,31.10.2023,12.10.2023,Children's Services,Education & Childrens Services - CS Dir,DOMINO S PIZZA,65.47,0,65.47,"Exp of School, Club & College Activities",Restaurants
Buckinghamshire Council ,31.10.2023,12.10.2023,Deputy Chief Executive,Communities - DCE,COSTA COFFEE CHESHAM,7.95,0,7.95,General Provisions (Food),Fast food restaurants
Buckinghamshire Council ,31.10.2023,12.10.2023,Children's Services,Education & Childrens Services - CS Dir,AMAZON.CO.UK,17.64,0,17.64,Other Personal Needs,Direct sales companies
Buckinghamshire Council ,31.10.2023,12.10.2023,Children's Services,Education & Childrens Services - CS Dir,AMAZON.CO.UK,38.74,0,38.74,Other Personal Needs,Direct sales companies
Buckinghamshire Council ,31.10.2023,12.10.2023,Children's Services,Education & Childrens Services - CS Dir,AMAZON.CO.UK,26.97,0,26.97,Other Personal Needs,Direct sales companies
Buckinghamshire Council ,31.10.2023,12.10.2023,Deputy Chief Executive,Communities - DCE,AO RETAIL LIMITED,203.33,40.67,244,Other Personal Needs,Household appliance stores
Buckinghamshire Council ,31.10.2023,12.10.2023,Deputy Chief Executive,Communities - DCE,COSTA COFFEE 43011639,12,0,12,Subsistence,Fast food restaurants
Buckinghamshire Council ,31.10.2023,12.10.2023,Communities,Culture & Leisure - Communities Dir,AMZNMKTPLACE,11.62,2.33,13.95,"Workshop - Materials,Tools & Equipment",Miscellaneous retail
Buckinghamshire Council ,31.10.2023,12.10.2023,"Planning, Growth & Sustainability",AH&R - PGS Dir,WWW.SCAFFOLDING-DIRECT.C,58.32,0,58.32,Other Equipment and Materials,Misc Industrial supplies
Buckinghamshire Council ,31.10.2023,12.10.2023,"Planning, Growth & Sustainability",AH&R - PGS Dir,ASDA SUPERSTORE,8.7,0,8.7,General Provisions (Food),Grocery stores
Buckinghamshire Council ,31.10.2023,12.10.2023,Children's Services,Education & Childrens Services - CS Dir,SPORTSDIRECT 210,50,0,50,YOS - Direct Work,Sporting goods shops
Buckinghamshire Council ,31.10.2023,12.10.2023,Communities,Transport - Communities Dir,REFINED TUNING AUTOCENTRE,306,0,306,Vehicle Hire,Misc. repair services
Buckinghamshire Council ,31.10.2023,12.10.2023,Communities,artnerships - Communities,CAFE OLYMPIA,10.25,0,10.25,Miscellaneous (Other)  Expenses,Fast food restaurants
Buckinghamshire Council ,31.10.2023,12.10.2023,Communities,artnerships - Communities,CAFE OLYMPIA,4,0,4,Miscellaneous (Other)  Expenses,Fast food restaurants
Buckinghamshire Council ,31.10.2023,12.10.2023,"Planning, Growth & Sustainability",Housing & Homelessness & Regulatory PGS,VIVA ACCESS LTD,40.2,0,40.2,"Courses, Conference and Seminar Fees",Schools
Buckinghamshire Council ,31.10.2023,12.10.2023,"Planning, Growth & Sustainability",AH&R - PGS Dir,TESCO STORES 2640,4.15,0.83,4.98,General Repairs & Maintenance,Grocery stores
Buckinghamshire Council ,31.10.2023,12.10.2023,"Planning, Growth & Sustainability",AH&R - PGS Dir,TESCO STORES 2640,0.02,0,0.02,General Repairs & Maintenance,Grocery stores
Buckinghamshire Council ,31.10.2023,12.10.2023,Children's Services,Education & Childrens Services - CS Dir,MAILCHIMP,221.32,0,221.32,Service Development,
Buckinghamshire Council ,31.10.2023,12.10.2023,Deputy Chief Executive,AH&R- DCE Dir,AMZNMKTPLACE,42.44,0,42.44,Other Personal Needs,Miscellaneous retail
Buckinghamshire Council ,31.10.2023,12.10.2023,Children's Services,Education & Childrens Services - CS Dir,AMZNMKTPLACE,94.71,0,94.71,Consumable Supplies,Miscellaneous retail
Buckinghamshire Council ,31.10.2023,12.10.2023,Deputy Chief Executive,Communities - DCE,RINGGO PARKING,1.65,0,1.65,Staff Travelling Expenses,Car parking & garages
Buckinghamshire Council ,31.10.2023,12.10.2023,"Planning, Growth & Sustainability",Planning & Regeneration - PGS,THOMAS TELFORD LIMIT,420,0,420,Course Fees & Post Entry Training,Professional services
Buckinghamshire Council ,31.10.2023,12.10.2023,Deputy Chief Executive,AH&R- DCE Dir,SQ *STEMS OF BEAUTY LIMIT,90,0,90,Purchase.of Refreshments and Food,Misc. general merchandise
Buckinghamshire Council ,31.10.2023,12.10.2023,Children's Services,Education & Childrens Services - CS Dir,NAS SCOTLAND PEOPLE,23.52,0,23.52,Sec 20/31: Specialist Services,Government services
Buckinghamshire Council ,31.10.2023,12.10.2023,"Planning, Growth & Sustainability",Partnership Climate Change & Envir - PGS,HUNTS TAXIS LTD,76,0,76,Staff Travelling Expenses,Taxicabs & limousines
Buckinghamshire Council ,31.10.2023,12.10.2023,Children's Services,Education & Childrens Services - CS Dir,FREEDOM PROGRAMME LIMITED,12,0,12,Sec 17: Financial Assistance One Off,Schools
Buckinghamshire Council ,31.10.2023,12.10.2023,Children's Services,Education & Childrens Services - CS Dir,FREEDOM PROGRAMME LIMITED,12,0,12,Sec 17: Financial Assistance One Off,Schools
Buckinghamshire Council ,31.10.2023,12.10.2023,Adults and Health,Health & Wellbeing - Adults & Health Dir,ADEXA.CO.UK,-574.8,0,-574.8,Stationery & Office Supplies,Misc commercial machines equipment
Buckinghamshire Council ,31.10.2023,12.10.2023,Children's Services,Education & Childrens Services - CS Dir,WM MORRISONS STORE,18.9,0,18.9,Equipment (including storage),Grocery stores
Buckinghamshire Council ,31.10.2023,12.10.2023,Children's Services,Education & Childrens Services - CS Dir,WM MORRISONS STORE,10.14,0,10.14,Equipment (including storage),Grocery stores
Buckinghamshire Council ,31.10.2023,12.10.2023,Children's Services,Education & Childrens Services - CS Dir,NEALES TAXIS LTD,840,0,840,Sec 20/31: Transport,Taxicabs & limousines
Buckinghamshire Council ,31.10.2023,12.10.2023,"Planning, Growth & Sustainability",Housing & Homelessness & Regulatory PGS,AMZNMKTPLACE,67.8,0,67.8,Other General Office Expenses,Miscellaneous retail
Buckinghamshire Council ,31.10.2023,12.10.2023,"Planning, Growth & Sustainability",Transport - PGS Dir,AMZNMKTPLACE,52.98,0,52.98,Materials,Miscellaneous retail
Buckinghamshire Council ,31.10.2023,12.10.2023,Children's Services,Education & Childrens Services - CS Dir,AMZNMKTPLACE,354.07,0,354.07,Leaving Care - Grants for Care Leavers,Miscellaneous retail
Buckinghamshire Council ,31.10.2023,12.10.2023,Children's Services,Education & Childrens Services - CS Dir,WWW.HILLARYS.CO.UK,445.2,0,445.2,Leaving Care - Grants for Care Leavers,Drapery & upholstery shops
Buckinghamshire Council ,31.10.2023,12.10.2023,Communities,ommunities - Trust Accounts,WICKES SLOUGH,23,0,23,General Repairs & Maintenance,Timber & building supplies
Buckinghamshire Council ,31.10.2023,12.10.2023,Communities,ommunities - Trust Accounts,BOOKER LTD - 38531354,29.98,0,29.98,Purchase of Food for Re-sale,Grocery stores
Buckinghamshire Council ,31.10.2023,12.10.2023,Communities,ommunities - Trust Accounts,BOOKER LTD - 38531354,292.26,0,292.26,Purchase of Food for Re-sale,Grocery stores
Buckinghamshire Council ,31.10.2023,12.10.2023,Resources,AH&R - Res Dir,LINKEDIN ADS 8804703846,81.76,0,81.76,Permanent Recruitment Costs,Advertising services
Buckinghamshire Council ,31.10.2023,12.10.2023,Children's Services,Education & Childrens Services - CS Dir,AELP.ORG.UK,-69,-13.8,-82.8,Training (Inc. Health & Safety Courses),Schools
Buckinghamshire Council ,31.10.2023,12.10.2023,Adults and Health,Health & Wellbeing - Adults & Health Dir,TESCO STORES 2668,4,0,4,Awaiting Coding,Grocery stores
Buckinghamshire Council ,31.10.2023,12.10.2023,Adults and Health,Health & Wellbeing - Adults & Health Dir,TESCO SUBSCRIPTION,7.99,0,7.99,Stationery & Office Supplies,Continuous subscriptions
Buckinghamshire Council ,31.10.2023,12.10.2023,"Planning, Growth & Sustainability",AH&R - PGS Dir,WWW.SCREWFIX.COM,104.15,20.83,124.98,Equipment,Timber & building supplies
Buckinghamshire Council ,31.10.2023,12.10.2023,"Planning, Growth & Sustainability",AH&R - PGS Dir,WWW.SCREWFIX.COM,0.01,0,0.01,Equipment,Timber & building supplies
Buckinghamshire Council ,31.10.2023,12.10.2023,Deputy Chief Executive,Communities - DCE,BP GERRARDS CROSS CONNECT,1.75,0,1.75,Petrol,Service stations
Buckinghamshire Council ,31.10.2023,12.10.2023,Children's Services,Education & Childrens Services - CS Dir,AMAZON* 204-6747478-96,37.83,0,37.83,Activities & General Recreation,Misc. general merchandise
Buckinghamshire Council ,31.10.2023,11.10.2023,Children's Services,Education & Childrens Services - CS Dir,AMAZON.CO.UK,21.65,0,21.65,"Books, Records, Films & Oth Publications",Direct sales companies
Buckinghamshire Council ,31.10.2023,11.10.2023,"Planning, Growth & Sustainability",Housing & Homelessness & Regulatory PGS,AMZNMKTPLACE,370.16,0,370.16,Miscellaneous (Other)  Expenses,Miscellaneous retail
Buckinghamshire Council ,31.10.2023,11.10.2023,Children's Services,Education & Childrens Services - CS Dir,LYNKPAY* 001 TAXIS,66.95,0,66.95,Sec 20/31: Transport,
Buckinghamshire Council ,31.10.2023,11.10.2023,Children's Services,Education & Childrens Services - CS Dir,LYNKPAY* 001 TAXIS,66.95,0,66.95,Sec 20/31: Transport,
Buckinghamshire Council ,31.10.2023,11.10.2023,Children's Services,Education & Childrens Services - CS Dir,TRAINLINE,106.93,0,106.93,Staff Travelling Expenses,Passenger railways
Buckinghamshire Council ,31.10.2023,11.10.2023,Adults and Health,Health & Wellbeing - Adults & Health Dir,TESCO STORES 2041,54.75,0,54.75,Stationery & Office Supplies,Grocery stores
Buckinghamshire Council ,31.10.2023,11.10.2023,Children's Services,Education & Childrens Services - CS Dir,MORE LEISURE,10.5,0,10.5,Activities & General Recreation,"Hotels, motels & resorts"
Buckinghamshire Council ,31.10.2023,11.10.2023,Communities,Culture & Leisure - Communities Dir,DISPLAY SIGNS LIMITED,110,22,132,"Workshop - Materials,Tools & Equipment",Publishing & printing services
Buckinghamshire Council ,31.10.2023,11.10.2023,Children's Services,Education & Childrens Services - CS Dir,ALLIED VEHICLES,"1,155.00",0,"1,155.00",Sec 20/31: Financial Assistance,Automobile dealers - new & used
Buckinghamshire Council ,31.10.2023,11.10.2023,Children's Services,Education & Childrens Services - CS Dir,POST OFFICE COUNTER,8.15,0,8.15,General Postage,Postal services
Buckinghamshire Council ,31.10.2023,11.10.2023,"Planning, Growth & Sustainability",AH&R - PGS Dir,VALUE PRODUCTS LTD,62.89,0,62.89,Other Equipment and Materials,Miscellaneous retail
Buckinghamshire Council ,31.10.2023,11.10.2023,Communities,Housing & Homelessness & Regulatory Comm,VIKING OFFICE UK LIMIT,218.44,0,218.44,Stationery & Office Supplies,Stationery & office supplies
Buckinghamshire Council ,31.10.2023,11.10.2023,Children's Services,Education & Childrens Services - CS Dir,CO-OP GROUP FOOD,40,0,40,General Postage,Grocery stores
Buckinghamshire Council ,31.10.2023,11.10.2023,Communities,Housing & Homelessness & Regulatory Comm,CHENIES GARDEN CENTRE,64.98,0,64.98,Maintenance of Grounds,Lawn & garden supply/nursery
Buckinghamshire Council ,31.10.2023,11.10.2023,Communities,Housing & Homelessness & Regulatory Comm,GEORGE BROWNS LTD CHESHAM,82.12,0,82.12,Maintenance of Grounds,Lawn & garden supply/nursery
Buckinghamshire Council ,31.10.2023,11.10.2023,"Planning, Growth & Sustainability",AH&R - PGS Dir,AMZNMKTPLACE,7.99,0,7.99,Miscellaneous (Other)  Expenses,Miscellaneous retail
Buckinghamshire Council ,31.10.2023,11.10.2023,Children's Services,Education & Childrens Services - CS Dir,AMAZON.CO.UK,20.1,0,20.1,Stationery & Office Supplies,Direct sales companies
Buckinghamshire Council ,31.10.2023,11.10.2023,Deputy Chief Executive,Communities - DCE,RINGGO PARKING,3.35,0,3.35,Staff Travelling Expenses,Car parking & garages
Buckinghamshire Council ,31.10.2023,11.10.2023,Communities,Transport - Communities Dir,HALFORDS E.COMM,141.49,0,141.49,Vehicle Hire,Automotive parts & accessories
Buckinghamshire Council ,31.10.2023,11.10.2023,Children's Services,Education & Childrens Services - CS Dir,NEALES TAXIS LTD,"1,000.00",0,"1,000.00",Sec 20/31: Transport,Taxicabs & limousines
Buckinghamshire Council ,31.10.2023,11.10.2023,Children's Services,Education & Childrens Services - CS Dir,NEALES TAXIS LTD,"1,000.00",0,"1,000.00",Sec 20/31: Transport,Taxicabs & limousines
Buckinghamshire Council ,31.10.2023,11.10.2023,Children's Services,Education & Childrens Services - CS Dir,NEALES TAXIS LTD,"1,000.00",0,"1,000.00",Sec 20/31: Transport,Taxicabs & limousines
Buckinghamshire Council ,31.10.2023,11.10.2023,Children's Services,Education & Childrens Services - CS Dir,NEALES TAXIS LTD,"1,320.00",0,"1,320.00",Sec 20/31: Transport,Taxicabs & limousines
Buckinghamshire Council ,31.10.2023,11.10.2023,Children's Services,Education & Childrens Services - CS Dir,B&M 426 - HS AYLESBURY,10.5,0,10.5,Furniture,Misc. general merchandise
Buckinghamshire Council ,31.10.2023,11.10.2023,Children's Services,Education & Childrens Services - CS Dir,POUNDLAND LTD - 2492,8.3,0,8.3,Furniture,Discount stores
Buckinghamshire Council ,31.10.2023,11.10.2023,"Planning, Growth & Sustainability",Partnership Climate Change & Envir - PGS,CLAYTON HOTEL CAMBRIDGE E,115.5,0,115.5,Purchase.of Refreshments and Food,"Hotels, motels & resorts"
Buckinghamshire Council ,31.10.2023,11.10.2023,Adults and Health,Health & Wellbeing - Adults & Health Dir,WWW.LOCAL.GOV.UK,594,0,594,"Courses, Conference and Seminar Fees",Misc business services
Buckinghamshire Council ,31.10.2023,11.10.2023,Adults and Health,Health & Wellbeing - Adults & Health Dir,WWW.LOCAL.GOV.UK,594,0,594,"Courses, Conference and Seminar Fees",Misc business services
Buckinghamshire Council ,31.10.2023,11.10.2023,Children's Services,Education & Childrens Services - CS Dir,AMZNMKTPLACE,96.73,0,96.73,Equipment (including storage),Miscellaneous retail
Buckinghamshire Council ,31.10.2023,11.10.2023,"Planning, Growth & Sustainability",AH&R - PGS Dir,SP CUPSDIRECT.CO.UK,131.7,0,131.7,Purchase.of Refreshments and Food,Miscellaneous retail
Buckinghamshire Council ,31.10.2023,11.10.2023,Children's Services,Education & Childrens Services - CS Dir,HM PASSPORT OFFICE,53.5,0,53.5,Sec 20/31: Financial Assistance,Government services
Buckinghamshire Council ,31.10.2023,11.10.2023,Children's Services,Education & Childrens Services - CS Dir,HM PASSPORT OFFICE,82.5,0,82.5,Sec 20/31: Financial Assistance,Government services
Buckinghamshire Council ,31.10.2023,11.10.2023,Communities,artnerships - Communities,TSOHOST,10,0,10,Stationery & Office Supplies,Continuous subscriptions
Buckinghamshire Council ,31.10.2023,11.10.2023,Communities,artnerships - Communities,TSOHOST,10,0,10,Stationery & Office Supplies,Continuous subscriptions
Buckinghamshire Council ,31.10.2023,11.10.2023,Children's Services,Education & Childrens Services - CS Dir,HETLEYS LIMITED,-135.5,0,-135.5,Equipment (including storage),Furniture & home furnishing
Buckinghamshire Council ,31.10.2023,11.10.2023,Children's Services,Education & Childrens Services - CS Dir,THE WORKS,7.5,1.5,9,Educational Equipment,Discount stores
Buckinghamshire Council ,31.10.2023,11.10.2023,Children's Services,Education & Childrens Services - CS Dir,HOBBYCRAFT,29.33,5.87,35.2,Educational Equipment,Art & craft shops
Buckinghamshire Council ,31.10.2023,11.10.2023,Children's Services,Education & Childrens Services - CS Dir,COSTA COFFEE BEDGROVE,4.85,0,4.85,Miscellaneous (Other)  Expenses,Fast food restaurants
Buckinghamshire Council ,31.10.2023,11.10.2023,Children's Services,Education & Childrens Services - CS Dir,SP LIGHTANDSALTDESIGN,7.58,0,7.58,Miscellaneous (Other)  Expenses,Misc. general merchandise
Buckinghamshire Council ,31.10.2023,11.10.2023,"Planning, Growth & Sustainability",Transport - PGS Dir,HALFORDS E.COMM,3,0,3,Materials,Automotive parts & accessories
Buckinghamshire Council ,31.10.2023,11.10.2023,Children's Services,Education & Childrens Services - CS Dir,AMAZON PRIME,95,0,95,Stationery & Office Supplies,Continuous subscriptions
Buckinghamshire Council ,31.10.2023,11.10.2023,Children's Services,Education & Childrens Services - CS Dir,ASDA GEORGE COM LEEDS,16,0,16,Leaving Care - Grants for Care Leavers,Grocery stores
Buckinghamshire Council ,31.10.2023,11.10.2023,Children's Services,Education & Childrens Services - CS Dir,WICKES BUILDING,13,0,13,Leaving Care - Grants for Care Leavers,Timber & building supplies
Buckinghamshire Council ,31.10.2023,11.10.2023,Children's Services,Education & Childrens Services - CS Dir,SP UNIKITOUT,219,0,219,Leaving Care - Grants for Care Leavers,Misc. general merchandise
Buckinghamshire Council ,31.10.2023,11.10.2023,Children's Services,Education & Childrens Services - CS Dir,TOWERHOUSEWARES.CO.UK,53.98,0,53.98,Leaving Care - Grants for Care Leavers,Household appliance stores
Buckinghamshire Council ,31.10.2023,11.10.2023,Children's Services,Education & Childrens Services - CS Dir,DUNELM SOFTFURNISHINGS,32,0,32,Leaving Care - Grants for Care Leavers,Furniture & home furnishing
Buckinghamshire Council ,31.10.2023,11.10.2023,Children's Services,Education & Childrens Services - CS Dir,BKG*HOTEL AT BOOKING.C,61,0,61,Other Employees Expenses,Travel agencies
Buckinghamshire Council ,31.10.2023,11.10.2023,Communities,ommunities - Trust Accounts,LANGLEY MOTORISTS DISC,15.97,0,15.97,Repair & Maint of Vehicles & Plant,Automotive parts & accessories
Buckinghamshire Council ,31.10.2023,11.10.2023,Communities,ommunities - Trust Accounts,AMTECH RANGE LTD,488.4,0,488.4,Equipment,Sporting goods shops
Buckinghamshire Council ,31.10.2023,11.10.2023,Communities,ommunities - Trust Accounts,WICKES SLOUGH,29.5,0,29.5,General Repairs & Maintenance,Timber & building supplies
Buckinghamshire Council ,31.10.2023,11.10.2023,Resources,AH&R - Res Dir,LINKEDIN ADS 9504948814,89.58,0,89.58,Permanent Recruitment Costs,Advertising services
Buckinghamshire Council ,31.10.2023,11.10.2023,Children's Services,Education & Childrens Services - CS Dir,CKB LTD,52.5,10.5,63,Administrative Equipment & Tools,Misc. general merchandise
Buckinghamshire Council ,31.10.2023,11.10.2023,Children's Services,Education & Childrens Services - CS Dir,EB *ASCENTIS NATIONAL,50,10,120,Training (Inc. Health & Safety Courses),Misc business services
Buckinghamshire Council ,31.10.2023,11.10.2023,Children's Services,Education & Childrens Services - CS Dir,EB *ASCENTIS NATIONAL,50,10,120,Training (Inc. Health & Safety Courses),Misc business services
Buckinghamshire Council ,31.10.2023,11.10.2023,Communities,Housing & Homelessness & Regulatory Comm,AMZNMKTPLACE,31.68,0,31.68,General Repairs & Maintenance,Miscellaneous retail
Buckinghamshire Council ,31.10.2023,11.10.2023,Deputy Chief Executive,AH&R- DCE Dir,PAYPAL,493,0,493,Awaiting Coding,Electronics shops
Buckinghamshire Council ,31.10.2023,11.10.2023,Deputy Chief Executive,AH&R- DCE Dir,PAYPAL,85,0,85,Awaiting Coding,Variety stores
Buckinghamshire Council ,31.10.2023,11.10.2023,Deputy Chief Executive,AH&R- DCE Dir,PAYPAL,123.95,0,123.95,Awaiting Coding,Variety stores
Buckinghamshire Council ,31.10.2023,10.10.2023,Children's Services,Education & Childrens Services - CS Dir,AMZNMKTPLACE,21.98,0,21.98,Other Equipment and Materials,Miscellaneous retail
Buckinghamshire Council ,31.10.2023,10.10.2023,Communities,Culture & Leisure - Communities Dir,AMZNMKTPLACE,16.79,3.36,20.15,Events Expenditure,Miscellaneous retail
Buckinghamshire Council ,31.10.2023,10.10.2023,Communities,Culture & Leisure - Communities Dir,AMZNMKTPLACE,4.99,0,4.99,Events Expenditure,Miscellaneous retail
Buckinghamshire Council ,31.10.2023,10.10.2023,Deputy Chief Executive,Communities - DCE,WWW.ARGOS.CO.UK,49.1,9.82,58.92,Grants to Voluntary Bodies,Department stores
Buckinghamshire Council ,31.10.2023,10.10.2023,Deputy Chief Executive,Communities - DCE,WWW.ARGOS.CO.UK,0.03,0,0.03,Grants to Voluntary Bodies,Department stores
Buckinghamshire Council ,31.10.2023,10.10.2023,Deputy Chief Executive,Communities - DCE,AO RETAIL LIMITED,394.16,78.84,473,Other Personal Needs,Household appliance stores
Buckinghamshire Council ,31.10.2023,10.10.2023,Deputy Chief Executive,Communities - DCE,AO RETAIL LIMITED,115.83,23.17,139,Other Personal Needs,Household appliance stores
Buckinghamshire Council ,31.10.2023,10.10.2023,Deputy Chief Executive,Leader - DCE,SMART PARKING (E),10.5,0,10.5,Staff Travelling Expenses,Car parking & garages
Buckinghamshire Council ,31.10.2023,10.10.2023,Deputy Chief Executive,Communities - DCE,WWW.ARGOS.CO.UK,409.95,81.99,491.94,Other Personal Needs,Department stores
Buckinghamshire Council ,31.10.2023,10.10.2023,Deputy Chief Executive,Communities - DCE,WWW.ARGOS.CO.UK,0.01,0,0.01,Other Personal Needs,Department stores
Buckinghamshire Council ,31.10.2023,10.10.2023,Deputy Chief Executive,Communities - DCE,AO RETAIL LIMITED,830.83,166.17,997,Other Personal Needs,Household appliance stores
Buckinghamshire Council ,31.10.2023,10.10.2023,Resources,AH&R - Res Dir,RAMADA HOTEL,780,0,780,Course Fees & Post Entry Training,"Hotels, motels & resorts"
Buckinghamshire Council ,31.10.2023,10.10.2023,Communities,Transport - Communities Dir,KWIK FIT,161.38,0,161.38,Vehicle Hire,Auto servicing
Buckinghamshire Council ,31.10.2023,10.10.2023,Children's Services,Education & Childrens Services - CS Dir,NEW YORK DELI (AYLESBURY),66.78,0,66.78,Purchase.of Refreshments and Food,Restaurants
Buckinghamshire Council ,31.10.2023,10.10.2023,"Planning, Growth & Sustainability",AH&R - PGS Dir,NYA*TESCO,2,0,2,Other Equipment and Materials,Misc Food stores
Buckinghamshire Council ,31.10.2023,10.10.2023,"Planning, Growth & Sustainability",AH&R - PGS Dir,LAMPS - THE ELECTRICAL W,50.86,0,50.86,General Repairs & Maintenance,Electrical parts & equipment
Buckinghamshire Council ,31.10.2023,10.10.2023,"Planning, Growth & Sustainability",AH&R - PGS Dir,B & Q 1305,26.95,0,26.95,General Repairs & Maintenance,Home supply warehouse stores
Buckinghamshire Council ,31.10.2023,10.10.2023,Adults and Health,Communities - Adults & Health,AMZNMKTPLACE,73.58,0,73.58,Project Funding,Miscellaneous retail
Buckinghamshire Council ,31.10.2023,10.10.2023,Children's Services,Education & Childrens Services - CS Dir,WICKES CHESHAM,48,0,48,General Repairs & Maintenance,Timber & building supplies
Buckinghamshire Council ,31.10.2023,10.10.2023,"Planning, Growth & Sustainability",Planning & Regeneration - PGS,HSE - BSR,336,0,336,Course Fees & Post Entry Training,Government services
Buckinghamshire Council ,31.10.2023,10.10.2023,Communities,Culture & Leisure - Communities Dir,TIMPSON LTD,35,0,35,"Workshop - Materials,Tools & Equipment",Miscellaneous retail
Buckinghamshire Council ,31.10.2023,10.10.2023,Children's Services,Education & Childrens Services - CS Dir,AMAZON PRIME,8.99,0,8.99,Miscellaneous (Other)  Expenses,Continuous subscriptions
Buckinghamshire Council ,31.10.2023,10.10.2023,Children's Services,Education & Childrens Services - CS Dir,AMZNMKTPLACE,52.43,0,52.43,"Books, Records, Films & Oth Publications",Miscellaneous retail
Buckinghamshire Council ,31.10.2023,10.10.2023,Children's Services,Education & Childrens Services - CS Dir,GEN REGISTER OFFICE,11,0,11,Sec 17: Financial Assistance One Off,Government services
Buckinghamshire Council ,31.10.2023,10.10.2023,Adults and Health,Health & Wellbeing - Adults & Health Dir,TRAVELODGE GB0000,549.97,0,549.97,Other Short Term Support,Travelodge
Buckinghamshire Council ,31.10.2023,10.10.2023,Adults and Health,Health & Wellbeing - Adults & Health Dir,TRAVELODGE GB0000,438.93,0,438.93,Other Short Term Support,Travelodge
Buckinghamshire Council ,31.10.2023,10.10.2023,Resources,AH&R - Res Dir,NEW YORK DELI (AYLESBURY),89.25,17.85,107.1,Subsistence,Restaurants
Buckinghamshire Council ,31.10.2023,10.10.2023,Resources,AH&R - Res Dir,GMO GLOBALSIGN LIM,226.8,0,226.8,Annual Licence (IT),Computer network information services
Buckinghamshire Council ,31.10.2023,10.10.2023,Children's Services,Education & Childrens Services - CS Dir,ASDA  STORES 4396,9.5,0,9.5,General Provisions (Food),Grocery stores
Buckinghamshire Council ,31.10.2023,10.10.2023,Children's Services,Education & Childrens Services - CS Dir,AMZNMKTPLACE,3.29,0,3.29,Equipment for Training and Mats for Ins.,Miscellaneous retail
Buckinghamshire Council ,31.10.2023,10.10.2023,Deputy Chief Executive,Communities - DCE,SAINSBURY S S/MKTS,5.79,0,5.79,Awaiting Coding,Grocery stores
Buckinghamshire Council ,31.10.2023,10.10.2023,Deputy Chief Executive,Communities - DCE,BUDGENS SWEENEYS,1.25,0,1.25,Awaiting Coding,Grocery stores
Buckinghamshire Council ,31.10.2023,10.10.2023,Deputy Chief Executive,AH&R- DCE Dir,LINKEDIN ADS 9500139534,68.9,0,68.9,Other internal recharge��������������,Advertising services
Buckinghamshire Council ,31.10.2023,10.10.2023,Deputy Chief Executive,Leader - DCE,FACEBK TJQRWUPPN2,840,0,840,Advertising,Advertising services
Buckinghamshire Council ,31.10.2023,10.10.2023,Children's Services,Education & Childrens Services - CS Dir,BKG*HOTEL AT BOOKING.C,54.79,0,54.79,Staff Travelling Expenses,Travel agencies
Buckinghamshire Council ,31.10.2023,10.10.2023,Communities,ommunities - Trust Accounts,CURRYS WATFORD,32.97,0,32.97,Stationery & Office Supplies,Electronics shops
Buckinghamshire Council ,31.10.2023,10.10.2023,"Planning, Growth & Sustainability",Housing & Homelessness & Regulatory PGS,AMZNMktplace,16.99,0,16.99,Awaiting Coding,Miscellaneous retail
Buckinghamshire Council ,31.10.2023,10.10.2023,"Planning, Growth & Sustainability",Housing & Homelessness & Regulatory PGS,AMZNMktplace,127.41,0,127.41,Awaiting Coding,Miscellaneous retail
Buckinghamshire Council ,31.10.2023,10.10.2023,Children's Services,Education & Childrens Services - CS Dir,HOBBYCRAFT,22,0,22,Activities & General Recreation,Art & craft shops
Buckinghamshire Council ,31.10.2023,10.10.2023,Children's Services,Education & Childrens Services - CS Dir,B&M 426 - HS AYLESBURY,87.47,0,87.47,Activities & General Recreation,Misc. general merchandise
Buckinghamshire Council ,31.10.2023,10.10.2023,Children's Services,Education & Childrens Services - CS Dir,PARENTPAY E-COM R,15,0,15,Other Personal Needs,Colleges & universities
Buckinghamshire Council ,31.10.2023,10.10.2023,Communities,Climate Change & Environment - Community,WWW.CONTEGOSAFETY.CO.U,103.76,0,103.76,Construction - Building Work,Construction materials
Buckinghamshire Council ,31.10.2023,10.10.2023,Communities,Culture & Leisure - Communities Dir,J HEWIT & SONS LTD,22.99,0,22.99,Administrative Equipment & Tools,Misc. general merchandise
Buckinghamshire Council ,31.10.2023,10.10.2023,Resources,AH&R - Res Dir,RAMADA HOTEL,"1,560.00",0,"1,560.00","Courses, Conference and Seminar Fees","Hotels, motels & resorts"
Buckinghamshire Council ,31.10.2023,10.10.2023,Children's Services,Education & Childrens Services - CS Dir,NEALES TAXIS LTD,58.33,11.67,70,Sec 17: Transport,Taxicabs & limousines
Buckinghamshire Council ,31.10.2023,10.10.2023,Communities,Climate Change & Environment - Community,PAYPAL,87.08,0,87.08,Advertising,Advertising services
Buckinghamshire Council ,31.10.2023,10.10.2023,Communities,Culture & Leisure - Communities Dir,EURO CAR PARTS P,54.65,10.93,65.58,Petrol,Automotive parts & accessories
Buckinghamshire Council ,31.10.2023,10.10.2023,Communities,Culture & Leisure - Communities Dir,EURO CAR PARTS P,0.02,0,0.02,Petrol,Automotive parts & accessories
Buckinghamshire Council ,31.10.2023,10.10.2023,Deputy Chief Executive,AH&R- DCE Dir,PAYPAL,902.95,0,902.95,Awaiting Coding,Variety stores
Buckinghamshire Council ,31.10.2023,10.10.2023,Deputy Chief Executive,AH&R- DCE Dir,PAYPAL,542.49,0,542.49,Awaiting Coding,Variety stores
Buckinghamshire Council ,31.10.2023,10.10.2023,Deputy Chief Executive,AH&R- DCE Dir,PAYPAL,15,0,15,Awaiting Coding,Variety stores
Buckinghamshire Council ,31.10.2023,10.10.2023,Deputy Chief Executive,AH&R- DCE Dir,PAYPAL,9,0,9,Awaiting Coding,Variety stores
Buckinghamshire Council ,31.10.2023,10.10.2023,Deputy Chief Executive,AH&R- DCE Dir,PAYPAL,558,0,558,Awaiting Coding,Electronics shops
Buckinghamshire Council ,31.10.2023,09.10.2023,Communities,Culture & Leisure - Communities Dir,SP BATH BUSHCRAFT ST,107.9,21.58,129.48,Events Expenditure,Computer software stores
Buckinghamshire Council ,31.10.2023,09.10.2023,Adults and Health,Health & Wellbeing - Adults & Health Dir,WM MORRISONS STORE,8.17,0,8.17,General Provisions (Food),Grocery stores
Buckinghamshire Council ,31.10.2023,09.10.2023,"Planning, Growth & Sustainability",Climate Change & Environment - PGS,HTTPS://SCRIBE.HOW/B,24.67,0,24.67,Computer Consumables,Computer software stores
Buckinghamshire Council ,31.10.2023,09.10.2023,Adults and Health,Health & Wellbeing - Adults & Health Dir,ASDA GROCERIES ONLINE,57.5,0,57.5,Stationery & Office Supplies,Grocery stores
Buckinghamshire Council ,31.10.2023,09.10.2023,Adults and Health,Health & Wellbeing - Adults & Health Dir,ASDA GROCERIES ONLINE,-16.7,0,-16.7,Stationery & Office Supplies,Grocery stores
Buckinghamshire Council ,31.10.2023,09.10.2023,Children's Services,Education & Childrens Services - CS Dir,AMZNMKTPLACE,229.99,0,229.99,Leaving Care - Grants for Care Leavers,Miscellaneous retail
Buckinghamshire Council ,31.10.2023,09.10.2023,Deputy Chief Executive,Communities - DCE,AO RETAIL LIMITED,174.16,34.84,209,Other Personal Needs,Household appliance stores
Buckinghamshire Council ,31.10.2023,09.10.2023,Deputy Chief Executive,Communities - DCE,WWW.ARGOS.CO.UK,194.95,38.99,233.94,Other Personal Needs,Department stores
Buckinghamshire Council ,31.10.2023,09.10.2023,Deputy Chief Executive,Communities - DCE,WWW.ARGOS.CO.UK,0.01,0,0.01,Other Personal Needs,Department stores
Buckinghamshire Council ,31.10.2023,09.10.2023,Resources,AH&R - Res Dir,ROYAL MAIL FEES,570,0,570,General Postage,Postal services
Buckinghamshire Council ,31.10.2023,09.10.2023,Resources,AH&R - Res Dir,ROYAL MAIL FEES,570,0,570,General Postage,Postal services
Buckinghamshire Council ,31.10.2023,09.10.2023,Resources,AH&R - Res Dir,ROYAL MAIL FEES,570,0,570,General Postage,Postal services
Buckinghamshire Council ,31.10.2023,09.10.2023,Deputy Chief Executive,Communities - DCE,BULL HOTEL FNB,7.45,0,7.45,"Courses, Conference and Seminar Fees","Hotels, motels & resorts"
Buckinghamshire Council ,31.10.2023,09.10.2023,Children's Services,Education & Childrens Services - CS Dir,LYNKPAY* 001 TAXIS,-103,0,-103,Sec 20/31: Transport,
Buckinghamshire Council ,31.10.2023,09.10.2023,Deputy Chief Executive,Communities - DCE,AO RETAIL LIMITED,822.49,164.51,987,Other Personal Needs,Household appliance stores
Buckinghamshire Council ,31.10.2023,09.10.2023,Resources,AH&R - Res Dir,ROYAL MAIL GROUP LTD,3.99,0,3.99,General Postage,Postal services
Buckinghamshire Council ,31.10.2023,09.10.2023,Resources,AH&R - Res Dir,ROYAL MAIL GROUP LTD,16.45,0,16.45,General Postage,Postal services
Buckinghamshire Council ,31.10.2023,09.10.2023,Resources,AH&R - Res Dir,ROYAL MAIL GROUP LTD,12.65,0,12.65,General Postage,Postal services
Buckinghamshire Council ,31.10.2023,09.10.2023,Resources,AH&R - Res Dir,ROYAL MAIL GROUP LTD,12.65,0,12.65,General Postage,Postal services
Buckinghamshire Council ,31.10.2023,09.10.2023,Children's Services,Education & Childrens Services - CS Dir,NEW YORK DELI (AYLESBURY),18,0,18,Purchase.of Refreshments and Food,Restaurants
Buckinghamshire Council ,31.10.2023,09.10.2023,"Planning, Growth & Sustainability",AH&R - PGS Dir,LOCK & KEY CENTRE,32,0,32,General Repairs & Maintenance,Misc business services
Buckinghamshire Council ,31.10.2023,09.10.2023,Communities,Housing & Homelessness & Regulatory Comm,FEE2PAYONLINE,1.1,0,1.1,General Postage,Postal services
Buckinghamshire Council ,31.10.2023,09.10.2023,Communities,Housing & Homelessness & Regulatory Comm,BRITISH GAS OTP,705.87,0,705.87,Gas,Utilities
Buckinghamshire Council ,31.10.2023,09.10.2023,Communities,Culture & Leisure - Communities Dir,WAITROSE,250,0,250,Miscellaneous (Other)  Expenses,Grocery stores
Buckinghamshire Council ,31.10.2023,09.10.2023,Communities,Housing & Homelessness & Regulatory Comm,TIMPSON LTD,37.95,0,37.95,General Repairs & Maintenance,Miscellaneous retail
Buckinghamshire Council ,31.10.2023,09.10.2023,Adults and Health,Communities - Adults & Health,AMZNMKTPLACE,68.95,0,68.95,Printing & Stationery,Miscellaneous retail
Buckinghamshire Council ,31.10.2023,09.10.2023,Adults and Health,Communities - Adults & Health,AMZNMKTPLACE,50.65,0,50.65,Printing & Stationery,Miscellaneous retail
Buckinghamshire Council ,31.10.2023,09.10.2023,Communities,artnerships - Communities,MAILCHIMP,22.87,0,22.87,Advertising,
Buckinghamshire Council ,31.10.2023,09.10.2023,Children's Services,Education & Childrens Services - CS Dir,AMAZON.CO.UK,16.64,3.34,19.98,Stationery & Office Supplies,Direct sales companies
Buckinghamshire Council ,31.10.2023,09.10.2023,Children's Services,Education & Childrens Services - CS Dir,MAILCHIMP,49.82,0,49.82,Computer Consumables,
Buckinghamshire Council ,31.10.2023,09.10.2023,Deputy Chief Executive,Leader - DCE,LGC*AIRBNB GIFTCARD,100,0,100,Miscellaneous (Other)  Expenses,Computer software stores
Buckinghamshire Council ,31.10.2023,09.10.2023,Deputy Chief Executive,Communities - DCE,LOUNGERS,5.85,0,5.85,General Provisions (Food),"Bars, taverns, pubs & nightclubs"
Buckinghamshire Council ,31.10.2023,09.10.2023,Children's Services,Education & Childrens Services - CS Dir,AMAZON.CO.UK,12.88,0,12.88,Miscellaneous (Other)  Expenses,Direct sales companies
Buckinghamshire Council ,31.10.2023,09.10.2023,Children's Services,Education & Childrens Services - CS Dir,TRAINLINE,46.13,0,46.13,Sec 20/31: Supp for Contact,Passenger railways
Buckinghamshire Council ,31.10.2023,09.10.2023,Communities,Climate Change & Environment - Community,WWW.INSTANTPRINT.C,-41.02,0,-41.02,Photocopiers,Photocopy & reproduction services
Buckinghamshire Council ,31.10.2023,09.10.2023,Communities,Climate Change & Environment - Community,WWW.INSTANTPRINT.C,-123.65,0,-123.65,Photocopiers,Photocopy & reproduction services
Buckinghamshire Council ,31.10.2023,09.10.2023,Children's Services,Education & Childrens Services - CS Dir,SUMUP  *BUDGET CARS LT,72,0,72,Sec 20/31: Transport,Taxicabs & limousines
Buckinghamshire Council ,31.10.2023,09.10.2023,Children's Services,Education & Childrens Services - CS Dir,A1 TAXI SERVICE,336,0,336,Sec 20/31: Transport,Taxicabs & limousines
Buckinghamshire Council ,31.10.2023,09.10.2023,Children's Services,Education & Childrens Services - CS Dir,PREMIER INN,114,0,114,Sec 20/31: Transport,Premier Inn
Buckinghamshire Council ,31.10.2023,09.10.2023,Children's Services,Education & Childrens Services - CS Dir,SUMUP  *CABS4U,26.5,0,26.5,Sec 20/31: Transport,Taxicabs & limousines
Buckinghamshire Council ,31.10.2023,09.10.2023,Communities,Culture & Leisure - Communities Dir,WWW.BUCKINGHAMSHIRE.GOV,19.1,0,19.1,Administrative Equipment & Tools,Government services
Buckinghamshire Council ,31.10.2023,09.10.2023,Adults and Health,Health & Wellbeing - Adults & Health Dir,TESCO STORES 5135,186.44,0,186.44,General Provisions (Food),Grocery stores
Buckinghamshire Council ,31.10.2023,09.10.2023,"Planning, Growth & Sustainability",Housing & Homelessness & Regulatory PGS,AMZNMktplace,115.72,0,115.72,Awaiting Coding,Miscellaneous retail
Buckinghamshire Council ,31.10.2023,09.10.2023,"Planning, Growth & Sustainability",Housing & Homelessness & Regulatory PGS,AMZNMktplace,58.5,0,58.5,Awaiting Coding,Miscellaneous retail
Buckinghamshire Council ,31.10.2023,09.10.2023,"Planning, Growth & Sustainability",Housing & Homelessness & Regulatory PGS,AMZNMktplace,148,0,148,Awaiting Coding,Miscellaneous retail
Buckinghamshire Council ,31.10.2023,09.10.2023,"Planning, Growth & Sustainability",Housing & Homelessness & Regulatory PGS,AMZNMktplace,36.94,0,36.94,Awaiting Coding,Miscellaneous retail
Buckinghamshire Council ,31.10.2023,09.10.2023,"Planning, Growth & Sustainability",Housing & Homelessness & Regulatory PGS,AMZNMktplace,87.8,0,87.8,Awaiting Coding,Miscellaneous retail
Buckinghamshire Council ,31.10.2023,09.10.2023,"Planning, Growth & Sustainability",Housing & Homelessness & Regulatory PGS,Mol*FLAIR FURNITURE LTD,519.94,0,519.94,Awaiting Coding,Furniture & home furnishing
Buckinghamshire Council ,31.10.2023,09.10.2023,"Planning, Growth & Sustainability",Housing & Homelessness & Regulatory PGS,Mol*FLAIR FURNITURE LTD,619.95,0,619.95,Awaiting Coding,Furniture & home furnishing
Buckinghamshire Council ,31.10.2023,09.10.2023,"Planning, Growth & Sustainability",Planning & Regeneration - PGS,TFL TRAVEL CH,8.4,0,8.4,Staff Travelling Expenses,Local commuter transport
Buckinghamshire Council ,31.10.2023,09.10.2023,"Planning, Growth & Sustainability",Planning & Regeneration - PGS,ARRIVA THE SHIRES LIMITED,2,0,2,Staff Travelling Expenses,"Buses, charter & tour"
Buckinghamshire Council ,31.10.2023,09.10.2023,"Planning, Growth & Sustainability",Planning & Regeneration - PGS,TRAINLINE.COM LTD,12,0,12,Staff Travelling Expenses,Passenger railways
Buckinghamshire Council ,31.10.2023,09.10.2023,Communities,Climate Change & Environment - Community,ROADWARRIOR,12.75,0,12.75,Computer Support Services,"Programming, data processing & system design"
Buckinghamshire Council ,31.10.2023,09.10.2023,Children's Services,Education & Childrens Services - CS Dir,TESCO STORES 2020,19.07,0,19.07,Activities Programme,Grocery stores
Buckinghamshire Council ,31.10.2023,09.10.2023,Communities,Climate Change & Environment - Community,TURNKEY INSTRUMENTS,264,0,264,Equipment,"Radio, TV & stereo repairs"
Buckinghamshire Council ,31.10.2023,09.10.2023,Adults and Health,Health & Wellbeing - Adults & Health Dir,TESCO STORES 5135,76.88,0,76.88,General Provisions (Food),Grocery stores
Buckinghamshire Council ,31.10.2023,09.10.2023,Adults and Health,Health & Wellbeing - Adults & Health Dir,AMZNMKTPLACE,42.15,8.43,50.58,Activities & General Recreation,Miscellaneous retail
Buckinghamshire Council ,31.10.2023,09.10.2023,Adults and Health,Health & Wellbeing - Adults & Health Dir,AMZNMKTPLACE,0.05,0,0.05,Activities & General Recreation,Miscellaneous retail
Buckinghamshire Council ,31.10.2023,09.10.2023,Children's Services,Education & Childrens Services - CS Dir,ARRIVA UK BUS,8,0,8,Sec 20/31: Supp for Contact,"Buses, charter & tour"
Buckinghamshire Council ,31.10.2023,09.10.2023,Children's Services,Education & Childrens Services - CS Dir,FIRST BUS - WEB,15.6,0,15.6,Sec 20/31: Supp for Contact,"Buses, charter & tour"
Buckinghamshire Council ,31.10.2023,09.10.2023,Children's Services,Education & Childrens Services - CS Dir,NEALES TAXIS LTD,20,4,24,Sec 17: Transport,Taxicabs & limousines
Buckinghamshire Council ,31.10.2023,09.10.2023,Communities,artnerships - Communities,BT PLC BUSINESS MOTO BPAY,64,12.8,76.8,Telephones,Phone services
Buckinghamshire Council ,31.10.2023,09.10.2023,Communities,artnerships - Communities,BT PLC BUSINESS MOTO BPAY,0.01,0,0.01,Telephones,Phone services
Buckinghamshire Council ,31.10.2023,09.10.2023,Deputy Chief Executive,AH&R- DCE Dir,PLAZA CARS,15,0,15,Staff Travelling Expenses,Taxicabs & limousines
Buckinghamshire Council ,31.10.2023,08.10.2023,Children's Services,Education & Childrens Services - CS Dir,GIFFGAFF,35,0,35,Telephones,Phone services
Buckinghamshire Council ,31.10.2023,08.10.2023,Adults and Health,Health & Wellbeing - Adults & Health Dir,AMZNMKTPLACE,48.75,0,48.75,Activities & General Recreation,Miscellaneous retail
Buckinghamshire Council ,31.10.2023,08.10.2023,"Planning, Growth & Sustainability",Planning & Regeneration - PGS,AMZNMKTPLACE,22.07,0,22.07,IT Equipment Purchase,Miscellaneous retail
Buckinghamshire Council ,31.10.2023,08.10.2023,Adults and Health,Health & Wellbeing - Adults & Health Dir,AMAZON.CO.UK,18.35,3.67,22.02,Other Personal Needs,Direct sales companies
Buckinghamshire Council ,31.10.2023,08.10.2023,Adults and Health,Health & Wellbeing - Adults & Health Dir,AMAZON.CO.UK,0.02,0,0.02,Other Personal Needs,Direct sales companies
Buckinghamshire Council ,31.10.2023,08.10.2023,Adults and Health,Health & Wellbeing - Adults & Health Dir,AMZNMKTPLACE,21.98,0,21.98,General Provisions (Food),Miscellaneous retail
Buckinghamshire Council ,31.10.2023,07.10.2023,Children's Services,Education & Childrens Services - CS Dir,DOMINO S PIZZA,37.27,0,37.27,"Exp of School, Club & College Activities",Restaurants
Buckinghamshire Council ,31.10.2023,07.10.2023,Children's Services,Education & Childrens Services - CS Dir,TESCO STORES 2038,5.89,0,5.89,"Exp of School, Club & College Activities",Grocery stores
Buckinghamshire Council ,31.10.2023,07.10.2023,Deputy Chief Executive,Communities - DCE,WWW.ARGOS.CO.UK,-3.95,0,-3.95,Other Personal Needs,Department stores
Buckinghamshire Council ,31.10.2023,07.10.2023,Deputy Chief Executive,Communities - DCE,WWW.ARGOS.CO.UK,-135,0,-135,Other Personal Needs,Department stores
Buckinghamshire Council ,31.10.2023,07.10.2023,Communities,artnerships - Communities,ZOOM.US 888-799-9666,143.88,0,143.88,Telephones,Phone services
Buckinghamshire Council ,31.10.2023,07.10.2023,Children's Services,Education & Childrens Services - CS Dir,THE TAXI PEOPLE,53,0,53,Leaving Care - Transport,Taxicabs & limousines
Buckinghamshire Council ,31.10.2023,07.10.2023,Children's Services,Education & Childrens Services - CS Dir,AMZNMKTPLACE,29.45,0,29.45,Stationery & Office Supplies,Miscellaneous retail
Buckinghamshire Council ,31.10.2023,07.10.2023,Children's Services,Education & Childrens Services - CS Dir,ASDA GROCERIES ONLINE,50.17,0,50.17,Furniture,Grocery stores
Buckinghamshire Council ,31.10.2023,07.10.2023,Children's Services,Education & Childrens Services - CS Dir,ASDA GROCERIES ONLINE,-6.2,0,-6.2,Furniture,Grocery stores
Buckinghamshire Council ,31.10.2023,07.10.2023,Children's Services,Education & Childrens Services - CS Dir,ASDA GROCERIES ONLINE,-1,0,-1,Furniture,Grocery stores
Buckinghamshire Council ,31.10.2023,07.10.2023,Children's Services,Education & Childrens Services - CS Dir,AMZNMKTPLACE,"1,328.99",0,"1,328.99",Leaving Care - Grants for Care Leavers,Miscellaneous retail
Buckinghamshire Council ,31.10.2023,07.10.2023,Children's Services,Education & Childrens Services - CS Dir,AMZNMKTPLACE,783.94,0,783.94,Leaving Care - Grants for Care Leavers,Miscellaneous retail
Buckinghamshire Council ,31.10.2023,07.10.2023,"Planning, Growth & Sustainability",Planning & Regeneration - PGS,AMZNMKTPLACE,18.99,0,18.99,IT Equipment Purchase,Miscellaneous retail
Buckinghamshire Council ,31.10.2023,07.10.2023,Communities,Climate Change & Environment - Community,WWW.HYVA.CO.UK,324.6,0,324.6,Repair & Maint of Vehicles & Plant,Misc Industrial supplies
Buckinghamshire Council ,31.10.2023,06.10.2023,Children's Services,Education & Childrens Services - CS Dir,AMZNMKTPLACE,18.49,0,18.49,General Provisions (Food),Miscellaneous retail
Buckinghamshire Council ,31.10.2023,06.10.2023,Children's Services,Education & Childrens Services - CS Dir,AMZNMKTPLACE,27.77,0,27.77,Other Personal Needs,Miscellaneous retail
Buckinghamshire Council ,31.10.2023,06.10.2023,Communities,artnerships - Communities,ADOBE CREATIVE CLOUD,216.6,0,216.6,Advertising,Computer software stores
Buckinghamshire Council ,31.10.2023,06.10.2023,Communities,Culture & Leisure - Communities Dir,CANVA* I03930-1502610,101.54,0,101.54,Software Rental (Annual),Photographic studios
Buckinghamshire Council ,31.10.2023,06.10.2023,Deputy Chief Executive,AH&R- DCE Dir,PAYPAL,-12.5,0,-12.5,Awaiting Coding,Variety stores
Buckinghamshire Council ,31.10.2023,06.10.2023,"Planning, Growth & Sustainability",AH&R - PGS Dir,INSTIT OF OCCPTNL SAFE,100.8,0,100.8,"Workshop - Materials,Tools & Equipment",Membership organisations
Buckinghamshire Council ,31.10.2023,06.10.2023,Adults and Health,Health & Wellbeing - Adults & Health Dir,HOME BARGAINS,14.12,2.82,16.94,Activities & General Recreation,Misc. general merchandise
Buckinghamshire Council ,31.10.2023,06.10.2023,Children's Services,Education & Childrens Services - CS Dir,LYNKPAY* 001 TAXIS,66.95,0,66.95,Sec 20/31: Transport,
Buckinghamshire Council ,31.10.2023,06.10.2023,Children's Services,Education & Childrens Services - CS Dir,LYNKPAY* 001 TAXIS,66.95,0,66.95,Sec 20/31: Transport,
Buckinghamshire Council ,31.10.2023,06.10.2023,Children's Services,Education & Childrens Services - CS Dir,LYNKPAY* 001 TAXIS,133.9,0,133.9,Sec 20/31: Supp for Contact,
Buckinghamshire Council ,31.10.2023,06.10.2023,Children's Services,Education & Childrens Services - CS Dir,LYNKPAY* 001 TAXIS,133.9,0,133.9,Sec 20/31: Supp for Contact,
Buckinghamshire Council ,31.10.2023,06.10.2023,"Planning, Growth & Sustainability",Climate Change & Environment - PGS,JUST BAGUETTES,22.9,0,22.9,Subsistence,Fast food restaurants
Buckinghamshire Council ,31.10.2023,06.10.2023,"Planning, Growth & Sustainability",Climate Change & Environment - PGS,JUST BAGUETTES,6.8,0,6.8,Subsistence,Fast food restaurants
Buckinghamshire Council ,31.10.2023,06.10.2023,"Planning, Growth & Sustainability",Climate Change & Environment - PGS,NEW YORK DELI (AYLESBURY),27.75,0,27.75,Subsistence,Restaurants
Buckinghamshire Council ,31.10.2023,06.10.2023,Children's Services,Education & Childrens Services - CS Dir,UNILINK SOFTWARE LTD,10,0,10,Leaving Care  - Financial Assistance,Computer software stores
Buckinghamshire Council ,31.10.2023,06.10.2023,Children's Services,Education & Childrens Services - CS Dir,TRAVELODGE GB0000,109.11,0,109.11,"Courses, Conference and Seminar Fees",Travelodge
Buckinghamshire Council ,31.10.2023,06.10.2023,Children's Services,Education & Childrens Services - CS Dir,TRAVELODGE GB0000,45.37,0,45.37,"Courses, Conference and Seminar Fees",Travelodge
Buckinghamshire Council ,31.10.2023,06.10.2023,Deputy Chief Executive,Communities - DCE,AO RETAIL LIMITED,460.83,92.17,553,Other Personal Needs,Household appliance stores
Buckinghamshire Council ,31.10.2023,06.10.2023,Deputy Chief Executive,Communities - DCE,AO RETAIL LIMITED,760.83,152.17,913,Other Personal Needs,Household appliance stores
Buckinghamshire Council ,31.10.2023,06.10.2023,Children's Services,Education & Childrens Services - CS Dir,THE TAXI PEOPLE,15,0,15,Sec 20/31: Transport,Taxicabs & limousines
Buckinghamshire Council ,31.10.2023,06.10.2023,Deputy Chief Executive,Leader - DCE,ESQUIRES COFFEE BUCKIN,3.5,0,3.5,Subsistence,Fast food restaurants
Buckinghamshire Council ,31.10.2023,06.10.2023,Deputy Chief Executive,Leader - DCE,UNIVERSITY OF BUCKINGH,12.2,0,12.2,Subsistence,Restaurants
Buckinghamshire Council ,31.10.2023,06.10.2023,Resources,AH&R - Res Dir,AMAZON.CO.UK,100,0,100,Miscellaneous (Other)  Expenses,Direct sales companies
Buckinghamshire Council ,31.10.2023,06.10.2023,"Planning, Growth & Sustainability",AH&R - PGS Dir,SIGN WIZZARD LIMITED,34.73,0,34.73,Other Equipment and Materials,Typesetting & plate making
Buckinghamshire Council ,31.10.2023,06.10.2023,"Planning, Growth & Sustainability",AH&R - PGS Dir,AMZNMKTPLACE,10.5,0,10.5,Other Equipment and Materials,Miscellaneous retail
Buckinghamshire Council ,31.10.2023,06.10.2023,Deputy Chief Executive,Communities - DCE,WWW.ARGOS.CO.UK,440.79,88.16,528.95,Other Personal Needs,Department stores
Buckinghamshire Council ,31.10.2023,06.10.2023,Deputy Chief Executive,Communities - DCE,WWW.ARGOS.CO.UK,73.25,14.65,87.9,Other Personal Needs,Department stores
Buckinghamshire Council ,31.10.2023,06.10.2023,Deputy Chief Executive,Communities - DCE,WWW.ARGOS.CO.UK,0.05,0,0.05,Other Personal Needs,Department stores
Buckinghamshire Council ,31.10.2023,06.10.2023,Deputy Chief Executive,Communities - DCE,AO RETAIL LIMITED,747.49,149.51,897,Other Personal Needs,Household appliance stores
Buckinghamshire Council ,31.10.2023,06.10.2023,Deputy Chief Executive,Communities - DCE,WWW.ARGOS.CO.UK,40.79,8.16,48.95,Other Personal Needs,Department stores
Buckinghamshire Council ,31.10.2023,06.10.2023,Communities,Transport - Communities Dir,DVLA DUP V5C AGENT,25,0,25,Vehicle Hire,Government services
Buckinghamshire Council ,31.10.2023,06.10.2023,Communities,Transport - Communities Dir,DVLA DUP V5C AGENT,25,0,25,Vehicle Hire,Government services
Buckinghamshire Council ,31.10.2023,06.10.2023,Communities,Transport - Communities Dir,DVLA EVL AGENT,180,0,180,Vehicle Hire,Tax payments
Buckinghamshire Council ,31.10.2023,06.10.2023,Communities,Transport - Communities Dir,DVLA EVL AGENT,180,0,180,Vehicle Hire,Tax payments
Buckinghamshire Council ,31.10.2023,06.10.2023,Communities,Transport - Communities Dir,DVLA EVL AGENT,180,0,180,Vehicle Hire,Tax payments
Buckinghamshire Council ,31.10.2023,06.10.2023,Communities,Transport - Communities Dir,DVLA EVL AGENT,180,0,180,Vehicle Hire,Tax payments
Buckinghamshire Council ,31.10.2023,06.10.2023,Communities,Transport - Communities Dir,DVLA EVL AGENT,180,0,180,Vehicle Hire,Tax payments
Buckinghamshire Council ,31.10.2023,06.10.2023,Communities,Transport - Communities Dir,POLICE SUPPLIES,345.66,0,345.66,Protective Clothing & Uniforms,Misc. clothing & accessory shops
Buckinghamshire Council ,31.10.2023,06.10.2023,Adults and Health,Health & Wellbeing - Adults & Health Dir,AMZNMKTPLACE,44.29,0,44.29,Catering & Domestic Equipment,Miscellaneous retail
Buckinghamshire Council ,31.10.2023,06.10.2023,Adults and Health,Health & Wellbeing - Adults & Health Dir,AMZNMKTPLACE,92.65,0,92.65,Activities & General Recreation,Miscellaneous retail
Buckinghamshire Council ,31.10.2023,06.10.2023,Communities,artnerships - Communities,ARGOS  AYLESBURY GATEHOU,34.99,0,34.99,Equipment,Discount stores
Buckinghamshire Council ,31.10.2023,06.10.2023,"Planning, Growth & Sustainability",AH&R - PGS Dir,B & Q 1124,4.55,0.91,5.46,General Repairs & Maintenance,Home supply warehouse stores
Buckinghamshire Council ,31.10.2023,06.10.2023,"Planning, Growth & Sustainability",AH&R - PGS Dir,B & Q 1124,0.02,0,0.02,General Repairs & Maintenance,Home supply warehouse stores
Buckinghamshire Council ,31.10.2023,06.10.2023,Children's Services,Education & Childrens Services - CS Dir,AMZNMKTPLACE,41.97,0,41.97,Activities & General Recreation,Miscellaneous retail
Buckinghamshire Council ,31.10.2023,06.10.2023,Resources,AH&R - Res Dir,AMZNMKTPLACE,51.55,0,51.55,Printing & Stationery,Miscellaneous retail
Buckinghamshire Council ,31.10.2023,06.10.2023,Communities,Culture & Leisure - Communities Dir,NEXT RETAIL LTD,100,0,100,Miscellaneous (Other)  Expenses,Family clothing shops
Buckinghamshire Council ,31.10.2023,06.10.2023,"Planning, Growth & Sustainability",AH&R - PGS Dir,EDMUNDSON ELECTRICAL,44.64,0,44.64,Community Premises Expenditure,Electrical parts & equipment
Buckinghamshire Council ,31.10.2023,06.10.2023,Children's Services,Education & Childrens Services - CS Dir,SAVERS HEALTH & BEAUTY,7.14,0,7.14,Medical Supplies & Services inc Vet'nary,Chemists & pharmacies
Buckinghamshire Council ,31.10.2023,06.10.2023,Communities,Culture & Leisure - Communities Dir,AMZNMKTPLACE,13.9,2.78,16.68,"Workshop - Materials,Tools & Equipment",Miscellaneous retail
Buckinghamshire Council ,31.10.2023,06.10.2023,Communities,Culture & Leisure - Communities Dir,AMZNMKTPLACE,0.05,0,0.05,"Workshop - Materials,Tools & Equipment",Miscellaneous retail
Buckinghamshire Council ,31.10.2023,06.10.2023,Communities,Culture & Leisure - Communities Dir,AMZNMKTPLACE,10.14,2.04,12.18,"Workshop - Materials,Tools & Equipment",Miscellaneous retail
Buckinghamshire Council ,31.10.2023,06.10.2023,Communities,Culture & Leisure - Communities Dir,AMZNMKTPLACE,17.39,3.48,20.87,"Workshop - Materials,Tools & Equipment",Miscellaneous retail
Buckinghamshire Council ,31.10.2023,06.10.2023,Children's Services,Education & Childrens Services - CS Dir,AMZNMKTPLACE,107.62,0,107.62,Miscellaneous (Other)  Expenses,Miscellaneous retail
Buckinghamshire Council ,31.10.2023,06.10.2023,Children's Services,Education & Childrens Services - CS Dir,BUCKINGHAMSHIRE CNCL,11,0,11,Sec 20/31: Specialist Services,Government services
Buckinghamshire Council ,31.10.2023,06.10.2023,Children's Services,Education & Childrens Services - CS Dir,BUCKINGHAMSHIRE CNCL,11,0,11,Sec 20/31: Specialist Services,Government services
Buckinghamshire Council ,31.10.2023,06.10.2023,Children's Services,Education & Childrens Services - CS Dir,BUCKINGHAMSHIRE CNCL,11,0,11,Sec 20/31: Specialist Services,Government services
Buckinghamshire Council ,31.10.2023,06.10.2023,Children's Services,Education & Childrens Services - CS Dir,GEN REGISTER OFFICE,38,0,38,Sec 20/31: Specialist Services,Government services
Buckinghamshire Council ,31.10.2023,06.10.2023,Children's Services,Education & Childrens Services - CS Dir,HM PASSPORT OFFICE,82.5,0,82.5,Sec 20/31: Specialist Services,Government services
Buckinghamshire Council ,31.10.2023,06.10.2023,"Planning, Growth & Sustainability",Partnership Climate Change & Envir - PGS,LANDOR LINKS LTD,108,0,108,"Courses, Conference and Seminar Fees",Misc business services
Buckinghamshire Council ,31.10.2023,06.10.2023,Children's Services,Education & Childrens Services - CS Dir,BUCKINGHAMSHIRE CNCL,11,0,11,Sec 17: Financial Assistance One Off,Government services
Buckinghamshire Council ,31.10.2023,06.10.2023,Adults and Health,Health & Wellbeing - Adults & Health Dir,TRAVELODGE GB0000,646.96,0,646.96,Other Short Term Support,Travelodge
Buckinghamshire Council ,31.10.2023,06.10.2023,Communities,Climate Change & Environment - Community,WWW.DIRECTHYGIENE.COM,211.57,0,211.57,Stationery & Office Supplies,Misc business services
Buckinghamshire Council ,31.10.2023,06.10.2023,Children's Services,Education & Childrens Services - CS Dir,A1 TAXI SERVICE,576,0,576,Sec 20/31: Transport,Taxicabs & limousines
Buckinghamshire Council ,31.10.2023,06.10.2023,Children's Services,Education & Childrens Services - CS Dir,HOME DONE LIMITED,331.1,0,331.1,Furniture,Furniture & home furnishing
Buckinghamshire Council ,31.10.2023,06.10.2023,Resources,AH&R - Res Dir,AWS EMEA,620.51,0,620.51,Server Hosting,Misc business services
Buckinghamshire Council ,31.10.2023,06.10.2023,Resources,AH&R - Res Dir,GMO GLOBALSIGN LIM,615.6,0,615.6,Annual Licence (IT),Computer network information services
Buckinghamshire Council ,31.10.2023,06.10.2023,Children's Services,Education & Childrens Services - CS Dir,PREMIER INN,285.48,0,285.48,Supply of consultancy services,Premier Inn
Buckinghamshire Council ,31.10.2023,06.10.2023,Children's Services,Education & Childrens Services - CS Dir,BKG*HOTEL AT BOOKING.C,65.45,0,65.45,Supply of consultancy services,Travel agencies
Buckinghamshire Council ,31.10.2023,06.10.2023,Children's Services,Education & Childrens Services - CS Dir,SUMUP  *CABS4U,98,0,98,Sec 20/31: Transport,Taxicabs & limousines
Buckinghamshire Council ,31.10.2023,06.10.2023,"Planning, Growth & Sustainability",Housing & Homelessness & Regulatory PGS,ASDA SUPERSTORE,17,0,17,Other General Office Expenses,Grocery stores
Buckinghamshire Council ,31.10.2023,06.10.2023,Deputy Chief Executive,Leader - DCE,BUCKSFREEPRE,35,0,35,"Books, Records, Films & Oth Publications",Newspapers / newsagents
Buckinghamshire Council ,31.10.2023,06.10.2023,Deputy Chief Executive,AH&R- DCE Dir,MOONPIG,5.14,0,5.14,"Courses, Conference and Seminar Fees",Misc. general merchandise
